{"text_format":"3","workbook":"xlsx","n_sheets":4,"sheets":["7","6","5","4"],"not_rendered":{"defined_names":2},"read":"whole","date_system":"1900"}

{"sheet":"7","index":0,"n_rows":161,"n_cols":21,"rows_kept":161,"merged":[[0,2,0,18]]}
[null,null,"Протокол заключительного этапа республиканской олимпиады по математике в 2016-2017 учебном году"]
["№ п/п","Муниципалитет","Полное наименование образовательного учреждения (по уставу)","Фамилия","Имя","Отчество","Класс","Дата рождения",1,2,3,4,5,6,"итог","апелляция по задачам","результат","Пол","Статус","Фамилия педагога, подготовившего, участника олимпиады","Полное наименование образовательного учреждения (по уставу)"]
[1,"Вахитовский","МАОУ \"Лицей №131\" Вахитовского района г. Казани","Миргалимова","Розалина","Зуфаровна","7","11.10.2003",7,7,7,7,7,7,{"$f":"SUM(I3:N3)","v":42},null,null,"жен","Победитель ","Диянова Ирина Вячеславовна","МАОУ \"Лицей №131\" Вахитовского района г. Казани"]
[2,"Вахитовский","МАОУ \"Лицей №131\" Вахитовского района г. Казани","Сибгатуллин","Данил","Игоревич",7,null,7,7,7,7,7,7,42,{"$nulls":3},"Победитель ","Бородова Елена Михайловна","МАОУ \"Лицей №131\" Вахитовского района г. Казани"]
[3,"Вахитовский","МАОУ \"Лицей №131\" Вахитовского района г. Казани","Ибрагимов","Айдар ","Илсурович","7","09.01.2003",7,7,7,7,7,7,42,4,"4: +1 балл","муж","Победитель ","Диянова Ирина Вячеславовна","МАОУ \"Лицей №131\" Вахитовского района г. Казани"]
[4,"Набережные Челны","МАОУ «Гимназия №76» г. Набережные Челны","Шиварова ","Анастасия ","Александровна","7","06.04.2003",7,7,7,7,7,3,38,6,"Без изменений\n6: не доказано одно из основных утверждений","жен","Призер","Гульбина Фавзия Абдулхамитовна","МАОУ «Гимназия №76» г. Набережные Челны"]
[5,"Московский","МАОУ «Лицей-интернат №2» Московского района г. Казани","Сафин","Аяз","Алмазович","7","29.04.2003",7,7,7,7,7,1,36,null,null,"муж","Призер","Хамидуллин Алмаз Нуртдинович","МАОУ «Лицей-интернат №2» Московского района г. Казани"]
[6,"Вахитовский","МАОУ \"Лицей №131\" Вахитовского района г. Казани","Габдуллина","Алия","Маратовна","7","19.01.2003",7,7,7,7,7,0,35,null,null,"жен","Призер","Диянова Ирина Вячеславовна","МАОУ \"Лицей №131\" Вахитовского района г. Казани"]
[7,"Приволжский","МБОУ «Лицей №83» Приволжского района г. Казани","Гиззатуллин","Амир","Марселевич","7","20.09.2003",7,7,7,7,7,0,35,null,null,"муж","Призер","Чикрин Евгений Анатольевич","МБОУ «Лицей №83» Приволжского района г. Казани"]
[8,"Верхнеуслонский","Государственное автономное общеобразовательное учреждение \"Лицей Иннополис\"","Журавлева ","Дарья","Алексеевна","7","03.04.2003",7,7,7,7,7,0,35,null,null,"жен","Призер","Сагдеев Ришат Рустемович","Государственное автономное общеобразовательное учреждение \"Лицей Иннополис\""]
[9,"Московский","МАОУ «Лицей-интернат №2» Московского района г. Казани","Кузьмин","Максим","Михайлович","7","15.04.2003",7,7,7,6,7,1,35,4,"Без изменений:\n4: нет пояснения откуда взялись уравнения во втором случае","муж","Призер","Хамидуллин Алмаз Нуртдинович","МАОУ «Лицей-интернат №2» Московского района г. Казани"]
[10,"Набережные Челны","МАОУ «Лицей №78 имени А.С.Пушкина» г. Набережные Челны","Назарова","София","Федоровна","7","14.04.2003",7,7,7,0,7,7,35,4,"Без изменений\n4: составлены уравнения не приводящие к решению","жен","Призер","Бубнова Елена Витальевна","МАОУ «Лицей №78 имени А.С.Пушкина» г. Набережные Челны"]
[11,"Нижнекамский","МБОУ «Лицей №35» г. Нижнекамска Республики Татарстан","Тимофеев","Ярослав","Владиславович","7",null,7,7,7,7,7,0,35,null,null,"муж","Призер","Молчанова Нина Викторовна","МБОУ «Лицей №35» г. Нижнекамска Республики Татарстан"]
[12,"Набережные Челны","МБОУ «Гимназия №26» г. Набережные Челны","Хабибулина","Алсу ","Наилевна","7","26.04.2003",7,7,7,7,7,0,35,null,null,"жен","Призер","Наумович Ирина Николаевна","МБОУ «Гимназия №26» г. Набережные Челны"]
[13,"Набережные Челны","МБОУ «Гимназия №29» г. Набережные Челны","Шайхевалиев ","Габдрахман","Ильшатович","7","04.02.2016",7,7,7,7,7,0,35,null,null,"муж","Призер","Хасанова Гульназ Зиннатулловна","МБОУ «Гимназия №29» г. Набережные Челны"]
[14,"Вахитовский","МАОУ \"Лицей №131\" Вахитовского района г. Казани","Шарипов","Камиль","Ниязович","7","01.09.2003",7,7,7,7,0,7,35,null,null,"муж","Призер","Диянова Ирина Вячеславовна","МАОУ \"Лицей №131\" Вахитовского района г. Казани"]
[15,"Вахитовский","Муниципальное бюджетное общеобразовательное учреждение «Гимназия №27 с татарским языком обучения» Вахитовского района г. Казани","Надиманов","Ахмед","Ренатович","7","06.02.2003",7,7,4,7,7,0,32,3,"Без изменений\n3: не составлено одно из уравнений","муж","Призер","Гильмиева Гульназ Гаптельзаветовна","Муниципальное бюджетное общеобразовательное учреждение «Гимназия №27 с татарским языком обучения» Вахитовского района г. Казани"]
[16,"Вахитовский","МАОУ \"Лицей №131\" Вахитовского района г. Казани","Бикмуллина","Амина","Айратовна","7","06.08.2003",7,7,7,0,7,3,31,null,null,"жен","Призер","Бородова Елена Михайловна","МАОУ \"Лицей №131\" Вахитовского района г. Казани"]
[17,"Верхнеуслонский","Государственное автономное общеобразовательное учреждение \"Лицей Иннополис\"","Дюдин"," Герман","Александрович","7","30.09.2003",7,7,7,3,7,0,31,null,null,"муж","Призер","Сагдеев Ришит Рустемович","Государственное автономное общеобразовательное учреждение \"Лицей Иннополис\""]
[18,"Ново-Савиновский","МБОУ «Гимназия №7» Ново-Савиновского района г.Казани. Школа-центр компетенции в электронном образовании","Маломуж","Ангелина","Артемовна","7","08.03.2003",7,7,7,0,7,3,31,null,null,"жен","Призер","Мироновская Татьяна Викторовна","МБОУ «Гимназия №7» Ново-Савиновского района г.Казани. Школа-центр компетенции в электронном образовании"]
[19,"Московский","МАОУ «Лицей-интернат №2» Московского района г. Казани","Гайнутдинов","Расул","Маратович","7","20.09.2003",7,7,7,0,7,0,28,null,null,"муж","Призер","Хамидуллин Алмаз Нуртдинович","МАОУ «Лицей-интернат №2» Московского района г. Казани"]
[20,"Набережные Челны","МБОУ «Гимназия №26» г. Набережные Челны","Гаффаров","Даниль ","Равилевич","7","03.07.2003",7,7,7,7,0,0,28,null,null,"муж","Призер","Наумович Ирина Николаевна","ГБОУ «Кадетская школа им. Н.Кайманова» г. Набережные Челны"]
[21,"Вахитовский","МАОУ \"Лицей №131\" Вахитовского района г. Казани","Зарипов","Рамиль","Ринатович","7","15.11.2003",7,7,7,7,0,0,28,null,null,"муж","Призер","Зеличёнок Альберт Бенцианович","МАОУ \"Лицей №131\" Вахитовского района г. Казани"]
[22,"Приволжский","МАОУ «Гимназия №19» Приволжского района г. Казани","Кириллов","Глеб","Аркадьвич","7","23.09.2003",7,7,7,7,0,0,28,null,null,"муж","Призер","Гаврилова Наталья Николаевна","МАОУ «Гимназия №19» Приволжского района г. Казани"]
[23,"Зеленодольский","МБОУ «Осиновская гимназия им. С.К.Гиматдинова Зеленодольского муниципального района Республики Татарстан» ","Маханов","Ильяс","Алмазович","7",null,7,7,7,7,0,0,28,5,"Без изменений\n5: BMO не равносторонний","муж","Призер","Усманова Зария Сабирзяновна","МБОУ «Осиновская гимназия им. С.К.Гиматдинова Зеленодольского муниципального района Республики Татарстан» "]
[24,"Набережные Челны","МБОУ «Гимназия №26» г. Набережные Челны","Метельский","Виталий","Павлович","7","26.03.2003",0,7,7,7,7,0,28,null,null,"муж","Призер","Наумович Ирина Николаевна","МБОУ «Гимназия №26» г. Набережные Челны"]
[25,"Вахитовский","Муниципальное автономное общеобразовательное учреждение для детей, проявивших выдающиеся способности «Средняя общеобразовательная школа-интернат «Специализированный олимпиадно-научный центр «СОлНЦе» Вахитовского района г. Казани","Музалевский","Никита","Игоревич","7",null,7,7,7,7,0,0,28,null,null,"муж","Призер","  ","Муниципальное автономное общеобразовательное учреждение для детей, проявивших выдающиеся способности «Средняя общеобразовательная школа-интернат «Специализированный олимпиадно-научный центр «СОлНЦе» Вахитовского района г. Казани"]
[26,"Приволжский","Лицей-интернат \"IТ-лицей К(П)ФУ\"","Назаров","Данил","Александрович","7","24.05.2003",7,7,7,7,0,0,28,null,null,"муж","Призер","Фадеев Алексей Валерьевич","Лицей-интернат \"IТ-лицей К(П)ФУ\""]
[27,"Приволжский","Лицей-интернат \"IТ-лицей К(П)ФУ\"","Файзуллин","Аяз","Рустемович","7","30.07.2003",7,7,7,7,0,0,28,null,null,"муж","Призер","Крайонова Ляйсан Хамитовна","Лицей-интернат \"IТ-лицей К(П)ФУ\""]
[28,"Нижнекамский","МБОУ «Лицей №35» г. Нижнекамска Республики Татарстан","Хасиятуллов","Наиль","Айратович","7","23.01.2003",7,7,7,0,7,0,28,null,null,"муж","Призер","Молчанова Нина Викторовна","МБОУ «Лицей №35» г. Нижнекамска Республики Татарстан"]
[29,"Набережные Челны","МАОУ «Лицей №78 имени А.С.Пушкина» г. Набережные Челны","Шайхутдинов ","Рустам","Эльвирович","7","15.05.2003",7,7,7,0,7,0,28,null,null,"муж","Призер","Бубнова Елена Витальевна","МАОУ «Лицей №78 имени А.С.Пушкина» г. Набережные Челны"]
[30,"Московский","МАОУ «Лицей-интернат №2» Московского района г. Казани","Шатохин","Антон","Андреевич","7",null,7,7,7,7,0,0,28,null,null,"муж","Призер","Хамидуллин Алмаз Нуртдинович","МАОУ «Лицей-интернат №2» Московского района г. Казани"]
[31,"Вахитовский","МАОУ \"Лицей №131\" Вахитовского района г. Казани","Шнейдман","Ян","Тимурович","7","06.05.2003",7,7,7,7,0,0,28,null,null,"муж","Призер","Диянова Ирина Вячеславовна","МАОУ \"Лицей №131\" Вахитовского района г. Казани"]
[32,"Московский","МАОУ «Лицей-интернат №2» Московского района г. Казани","Юлдашбаев","Искандер","Тимурович","7","30.09.2003",7,7,7,7,0,0,28,null,null,"муж","Призер","Хамидуллин Алмаз Нуртдинович","МАОУ «Лицей-интернат №2» Московского района г. Казани"]
[33,"Вахитовский","Общеобразовательная школа-интернат «Лицей имени Н. И. Лобачевского» К(П)ФУ","Кутьин","Иван","Андреевич","7","12.10.2003",7,7,6,7,0,0,27,null,null,"муж","Призер","Бисеров\tДенис\tСергеевич","Общеобразовательная школа-интернат «Лицей имени Н. И. Лобачевского» К(П)ФУ"]
[34,"Бавлинский","МБОУ «Средняя общеобразовательная школа №2 с углубленным изучением отдельных предметов» Бавлинского муниципального района РТ","Ханова","Диляра","Айдаровна","7","05.11.2003",7,7,7,6,0,0,27,null,null,"жен","Призер","Шайхиева Ильмира Нурзагитовна","МБОУ «Средняя общеобразовательная школа №2 с углубленным изучением отдельных предметов» Бавлинского муниципального района РТ"]
[35,"Набережные Челны","МАОУ «Лицей №78 имени А.С.Пушкина» г. Набережные Челны","Иванова ","Марина","Алексеевна","7","29.04.2003",7,7,7,0,5,0,26,null,null,"жен","Призер","Бубнова Елена Витальевна","МАОУ «Лицей №78 имени А.С.Пушкина» г. Набережные Челны"]
[36,"Приволжский","МБОУ «Лицей №83»","Костин","Юрий","Борисович",7,null,7,7,5,7,0,0,26,{"$nulls":3},"Призер","Чикрин Евгений Александровна","МБОУ «Лицей №83»"]
[37,"Московский","МАОУ «Лицей-интернат №2» Московского района г. Казани","Насретдинов","Камиль","Ильшатович","7","07.01.2003",7,5,7,0,7,0,26,null,null,"муж","Призер","Хамидуллин Алмаз Нуртдинович","МАОУ «Лицей-интернат №2» Московского района г. Казани"]
[38,"Приволжский","Лицей-интернат \"IТ-лицей К(П)ФУ\"","Ниневский","Николай ","Николаевич","7","31.08.2003",7,7,4,7,0,0,25,null,null,"муж","Призер","Без места Победитель Фадеев","Лицей-интернат \"IТ-лицей К(П)ФУ\""]
[39,"Бугульминский","МБОУ «Средняя общеобразовательная школа №6 с углубленным изучением отдельных предметов» Бугульминского муниципального района РТ","Хохлов ","Илья ","Вячеславович","7","24.03.2003",7,7,3,7,0,1,25,6,"без изменений. 6: не доказано основное утверждение решения","муж","Призер","Ахметова Гульназ Мансуровна","МБОУ «Средняя общеобразовательная школа №6 с углубленным изучением отдельных предметов» Бугульминского муниципального района РТ"]
[40,"Вахитовский","МАОУ \"Лицей №131\" Вахитовского района г. Казани","Казакова","Светлана","Олеговна","7","18.04.2003",7,7,7,3,0,0,24,null,null,"жен","Призер","Диянова Ирина Вячеславовна","МАОУ \"Лицей №131\" Вахитовского района г. Казани"]
[41,"Вахитовский","МАОУ \"Лицей №131\" Вахитовского района г. Казани","Клейдман","Полина","Дмитриевна","7","17.06.2003",7,0,7,0,6,4,24,null,null,"жен","Призер","Диянова Ирина Вячеславовна  ","МАОУ \"Лицей №131\" Вахитовского района г. Казани"]
[42,"Вахитовский","МАОУ \"Лицей №131\" Вахитовского района г. Казани","Минеева","Дарья","Сергеевна","7",null,7,7,7,0,0,3,24,5.6,"Без измениний\n5: условие задачи понято не верно\n6: рассмотрены частные случаи количества этапов","жен","Призер","Диянова Ирина Вячеславовна","МАОУ \"Лицей №131\" Вахитовского района г. Казани"]
[43,"Приволжский","Лицей-интернат \"IТ-лицей К(П)ФУ\"","Садыкова","Диляра","Фаритовна","7","13.01.2004",7,6,4,0,7,0,24,null,null,"жен","Призер","Фадеев Алексей Валерьевич","Лицей-интернат \"IТ-лицей К(П)ФУ\""]
[44,"Нижнекамский","МБОУ «Лицей-интернат №24» НМР РТ","Званцов","Матвей","Юрьевич","7","25.04.2003",7,7,7,2,0,0,23,null,null,"муж","Призер","Каранаева Лилия Михайловна","МБОУ «Лицей-интернат №24» НМР РТ"]
[45,"Верхнеуслонский","Государственное автономное общеобразовательное учреждение \"Лицей Иннополис\"","Майоров ","Данил","Игоревич","7","25.02.2003",7,7,7,2,0,0,23,null,null,"муж","Призер","Сагдеев Ришит Рустемович","Государственное автономное общеобразовательное учреждение \"Лицей Иннополис\""]
[46,"Приволжский","МАОУ «Гимназия №19» Приволжского района г. Казани","Осин","Андрей","Сергеевич","7","04.02.2003",7,7,7,0,0,1,22,null,null,"муж","Призер","Гаврилова Наталья Николаевна","МАОУ «Гимназия №19» Приволжского района г. Казани"]
[47,"Вахитовский","МАОУ \"Лицей №131\" Вахитовского района г. Казани","Пейсахов","Имануил","Иридович","7","22.03.2003",7,7,7,0,0,1,22,null,null,"муж","Призер","Диянова Ирина Вячеславовна","МАОУ \"Лицей №131\" Вахитовского района г. Казани"]
[48,"Нижнекамский","МБОУ «Лицей-интернат №24» НМР РТ","Стрельцов","Максим","Евгеньевич","7","18.12.2002",7,7,1,0,7,0,22,null,null,"муж","Призер","Каранаева Лилия Михайловна","МБОУ «Лицей-интернат №24» НМР РТ"]
[49,"Набережные Челны","МБОУ «Гимназия №26» г. Набережные Челны","Фролов ","Кирилл ","Олегович","7","03.01.2004",7,0,7,7,0,1,22,null,null,"муж","Призер","Князева Вера Леонидовна","МБОУ «Гимназия №26» г. Набережные Челны"]
[50,"Нурлатский","МАОУ \"Средняя общеобразовательная школа № 2\"","Азизов","Зуфар","Феннурович",7,null,7,7,7,0,0,0,21,6.5,"Без изменений\n6: рассмотрены частные случаи, в них не приведено полного решения\n5: продвижения оценивались в 0 баллов",null,"Призер","Кочова Элеонора Ермолаевна","МАОУ \"Средняя общеобразовательная школа № 2\""]
[51,"Приволжский","МАОУ «Гимназия №19» Приволжского района г. Казани","Бурганова","Альбина","Рустамовна","7","29.05.2003",7,7,7,0,0,0,21,4,"Без измениний\n4: скорости муравьев найдены не правильно","жен","Призер","Гаврилова Наталья Николаевна","МАОУ «Гимназия №19» Приволжского района г. Казани"]
[52,"Ютазинский","МБОУ \"Каразерикская средняя общеобразовательная школа им.Г.Вильданова\" Ютазинского муниципального района Республики Татарстан","Галеева","Наиля","Маратовна","7","18.12.2003",7,7,7,0,0,0,21,4.6,"Без изменений\n4: не верный ответ, не обоснованные предположения о скорости во второй раз\n6: не верный ответ, не верные рассуждения","жен","Призер","Мухаметзянова Зинфира Наиловна","МБОУ \"Каразерикская средняя общеобразовательная школа им.Г.Вильданова\" Ютазинского муниципального района Республики Татарстан"]
[53,"Ново-Савиновский","МБОУ \"Средняя общеобразовательная школа №170\"","Гаязов","Булат","Ринатович",7,null,7,0,7,7,0,0,21,2,"Без изменений\n2: рассмотрены не все случаи, нет объяснений",null,"Призер","Бушуева Анна Александровна","МБОУ \"Средняя общеобразовательная школа №170\""]
[54,"Верхнеуслонский","Государственное автономное общеобразовательное учреждение \"Лицей Иннополис\"","Жукова ","Анна","Игоревна","7","14.02.2003",7,7,7,0,0,0,21,null,null,"жен","Призер","Сагдеев Ришит Рустемовичев ","Государственное автономное общеобразовательное учреждение \"Лицей Иннополис\""]
[55,"Зеленодольский","МБОУ \"Лицей № 1\"","Зейнетдинова","Альбина","Руслановна",7,null,7,7,7,0,0,0,21,{"$nulls":3},"Призер","Перебатова Татьяна Александровна","МБОУ \"Лицей № 1\""]
[56,"Ново-Савиновский","МБОУ «Средняя общеобразовательная татарско-русская школа №23 с углубленным изучением отдельных предметов» Ново-Савиновского района г.Казани","Лузина","Екатерина","Алексеевна","7","14.04.2003",0,7,7,7,0,0,21,null,null,"жен","Призер","Блохина Гузэль Ильдусовна","МБОУ «Средняя общеобразовательная татарско-русская школа №23 с углубленным изучением отдельных предметов» Ново-Савиновского района г.Казани"]
[57,"Приволжский","Лицей-интернат \"IТ-лицей К(П)ФУ\"","Низамов","Ильяс","Ильнарович","7","31.08.2003",7,7,7,0,0,0,21,null,null,"муж","Призер","Фадеев Алексей Валерьевич","Лицей-интернат \"IТ-лицей К(П)ФУ\""]
[58,"Верхнеуслонский","Государственное автономное общеобразовательное учреждение \"Лицей Иннополис\"","Печерский"," Илья","Андреевич","7","03.01.2003",7,6,5,0,0,3,21,null,null,"муж","Призер","Сагдеев Ришат Рустемович","Государственное автономное общеобразовательное учреждение \"Лицей Иннополис\""]
[59,"Набережные Челны","МБОУ «Средняя общеобразовательная школа №60» г. Набережные Челны","Попова","Кристина","Вячеславовна","7","22.12.2003",7,7,7,0,0,0,21,null,null,"жен","Призер","Андарова Фина Шариповна","МБОУ «Средняя общеобразовательная школа №60» г. Набережные Челны"]
[60,"Казань","ЧОУ «Лицей имени Н. И. Лобачевского» ","Решетникова","Ульяна","Владимировна","7","20.07.2003",7,7,7,0,0,0,21,2.5,"2:разобраны не все варианты\n5: вопрос к руслану","жен","Призер","Валеева Сария Нурутдиновна","Муниципальное автономное общеобразовательное учреждение «Гимназия №5» г. Альметьевска РТ"]
[61,"Вахитовский","МАОУ \"Лицей №131\" Вахитовского района г. Казани","Салимуллина","Розалия","Маратовна","7","25.11.2003",7,7,7,0,0,0,21,null,null,"жен","Призер","Зеличёнок Альберт Бенцианович","МАОУ \"Лицей №131\" Вахитовского района г. Казани"]
[62,"Набережные Челны","МАОУ «Лицей №78 имени А.С.Пушкина» г. Набережные Челны","Сираев","Наиль","Маратович","7","01.04.2003",7,7,7,0,0,0,21,4,"Без изменений\n4: не обоснованы утверждения про скорости муравьев во второй день","муж","Призер","Бубнова Елена Витальевна","МАОУ «Лицей №78 имени А.С.Пушкина» г. Набережные Челны"]
[63,"Приволжский","Лицей-интернат \"IТ-лицей К(П)ФУ\"","Фаттахов","Марат","Русланович","7","16.12.2003",7,7,7,0,0,0,21,null,null,"муж","Призер","Без места призер Крайнова","Лицей-интернат \"IТ-лицей К(П)ФУ\""]
[64,"Актанышский","ГАОУ «Гуманитарная гимназия-интернат для одаренных детей»","Хайбиев","Амир","Расихович","7","11.07.2003",7,7,0,7,0,0,21,null,null,"муж","Призер","Фардиева Регина Равилевна","ГАОУ «Гуманитарная гимназия-интернат для одаренных детей»"]
[65,"Верхнеуслонский","Государственное автономное общеобразовательное учреждение \"Лицей Иннополис\"","Хайруллин ","Ренат","Габдракипович","7","16.11.2002",7,7,7,0,0,0,21,null,null,"муж","Призер","Сагдеев Ришат Рустемович","Государственное автономное общеобразовательное учреждение \"Лицей Иннополис\""]
[66,"Набережные Челны","МАОУ «Лицей №78 имени А.С.Пушкина» г. Набережные Челны","Шайдуллин","Шамиль","Рамилевич","7","16.06.2003",7,7,7,0,0,0,21,null,null,"муж","Призер","Бубнова Елена Витальевна","МАОУ «Лицей №78 имени А.С.Пушкина» г. Набережные Челны"]
[67,"Бугульминский","МБОУ «Средняя общеобразовательная школа №3 с углубленным изучением отдельных предметов» Бугульминского муниципального района РТ","Шакиров  ","Рустам ","Салихзянович","7","23.05.2003",7,7,7,0,0,0,21,null,null,"муж","Призер","Ратникова Александра Михайловна","МБОУ «Средняя общеобразовательная школа №3 с углубленным изучением отдельных предметов» Бугульминского муниципального района РТ"]
[68,"Верхнеуслонский","Государственное автономное общеобразовательное учреждение \"Лицей Иннополис\"","Юсупова ","Ильвина","Расиловна","7","09.05.2003",7,7,7,0,0,0,21,null,null,"жен","Призер","Сагдеев Ришат Рустемович","Государственное автономное общеобразовательное учреждение \"Лицей Иннополис\""]
[69,"Вахитовский","МАОУ \"Лицей №131\" Вахитовского района г. Казани","Абдулова","Алсу","Рамилевна","7","31.12.2003",7,5,7,0,0,1,20,null,null,"жен",null,"Диянова Ирина Вячеславовна","МАОУ \"Лицей №131\" Вахитовского района г. Казани"]
[70,"Зеленодольский","МБОУ \"Лицей №1 Зеленодольского муниципального района РТ\"","Гараева","Диана","Искандеровна","7",null,7,6,7,0,0,0,20,null,null,"жен",null,"Перебатова Татьяна Александровна","МБОУ \"Лицей №1 Зеленодольского муниципального района РТ\""]
[71,"Вахитовский","МАОУ \"Лицей №131\" Вахитовского района г. Казани","Гареев","Руслан","Олегович","7","16.12.2003",7,0,4,0,7,1,19,2.6,"Без измененей\n2: считает, что лжец должны одинаково отвечать на вопросы\n6: уравнение решено методом подбора","муж",null,"Бородова Елена Михайловна","МАОУ \"Лицей №131\" Вахитовского района г. Казани"]
[72,"Вахитовский","МАОУ \"Лицей №131\" Вахитовского района г. Казани","Гурьянов","Вадим","Игоревич","7","26.02.2004",7,6,6,0,0,0,19,"2;3;4","Без изменений.\n2: нет противорения когда первй рыцарь\n3: формально не верно составлено уравнение, но это не влияет на суть решения\n4: не верно посчитаны скорости муравьев, неверный ответ","муж",null,"Диянова Ирина Вячеславовна","МАОУ \"Лицей №131\" Вахитовского района г. Казани"]
[73,"Советский","МБОУ \"Гимназия №90\"","Дулов","Виктор","Евгеньевич",7,null,7,5,7,0,0,0,19,{"$nulls":4},"Хафизова Светлана Саидовна","МБОУ \"Гимназия №90\""]
[74,"Вахитовский","Муниципальное автономное общеобразовательное учреждение для детей, проявивших выдающиеся способности «Средняя общеобразовательная школа-интернат «Специализированный олимпиадно-научный центр «СОлНЦе» Вахитовского района г. Казани","Зинченко","Валерия","Витальевна","7","17.02.2003",7,5,7,0,0,0,19,4.5,"Без изменений\n4: продвижения в задаче оценены в 0 баллов по критериям\n5: в четырехугольнике высота и биссектриса не является медианой","жен",null,"Королёв Юрий Николаевич","Муниципальное автономное общеобразовательное учреждение для детей, проявивших выдающиеся способности «Средняя общеобразовательная школа-интернат «Специализированный олимпиадно-научный центр «СОлНЦе» Вахитовского района г. Казани"]
[75,"Нижнекамский","МБОУ «Лицей №35» г. Нижнекамска Республики Татарстан","Камалова","Аделя","Айратовна","7","17.04.2003",7,5,7,0,0,0,19,null,null,"жен",null,"Молчанова Нина Викторовна","МБОУ «Лицей №35» г. Нижнекамска Республики Татарстан"]
[76,"Советский","МАОУ \"Лицей № 121\" Советского района г. Казани (Центр образования №178)","Кирасиров","Данис","Ильясович","7","08.08.2003",7,5,7,0,0,0,19,4,"Без изменений\n4: не обосновано нахождение скоростей во втором случае","муж",null,"Цветкова Марина Альбертовна","МАОУ \"Лицей № 121\" Советского района г. Казани (Центр образования №178)"]
[77,"Вахитовский","МБОУ «Гимназия №3 Вахитовского района г. Казани»","Мильграм","Сергей","Сергеевич","7","30.04.2003",7,7,5,0,0,0,19,null,null,"муж",null,"Минеева Наталья Викторовна","МБОУ «Гимназия №3 Вахитовского района г. Казани»"]
[78,"Камско-Устьинский","МБОУ «Затонская средняя общеобразовательная школа имени Василия Петровича Муравьёва» Камско-Устьинского муниципального района РТ","Оленичев","Артём","Радифович","7","03.02.2003",7,7,2,3,0,0,19,null,null,"муж",null,"Даминова Фирдауса Нурулловна","МБОУ «Затонская средняя общеобразовательная школа имени Василия Петровича Муравьёва» Камско-Устьинского муниципального района РТ"]
[79,"Бугульминский","МБОУ «Лицей №2» Бугульминского муниципального района РТ, \"Школа - центр компетенции в электронном образовании\"","Пятова ","Арина ","Витальевна","7","13.06.2003",7,7,5,0,0,0,19,null,null,"жен",null,"Вогнерубова Елена Васильевна","МБОУ «Лицей №2» Бугульминского муниципального района РТ, \"Школа - центр компетенции в электронном образовании\""]
[80,"Вахитовский","МАОУ \"Лицей №131\" Вахитовского района г. Казани","Сафина","Алия","Линаровна","7","20.01.2003",7,5,7,0,0,0,19,null,null,"жен",null,"Диянова Ирина Вячеславовна","МАОУ \"Лицей №131\" Вахитовского района г. Казани"]
[81,"Буинский","МБОО «Лицей №2 г. Буинска Республики Татарстан» «Школа-центр компетенции в электронном образовании на 2011-2015 годы», Школа Intel в Республике Татарстан»","Халиков","Раян","Ренатович","7","10.06.2003",7,5,7,0,0,0,19,null,null,"муж",null,"Гафурова Венера Азатовна","МБОО «Лицей №2 г. Буинска Республики Татарстан» «Школа-центр компетенции в электронном образовании на 2011-2015 годы», Школа Intel в Республике Татарстан»"]
[82,"Приволжский","МБОУ «Лицей №83» Приволжского района г. Казани","Быковская","Ирина","Дмитриевна","7","23.09.2003",7,7,4,0,0,0,18,null,null,"жен",null,"Чикрин Евгений Анатольевич","МБОУ «Лицей №83» Приволжского района г. Казани"]
[83,"Советский","МАОУ \"Лицей № 121\" Советского района г. Казани (Центр образования №178)","Зарипов","Карим","Ильнарович","7","04.08.2004",3,7,7,0,0,1,18,"???","Без изменений во всех задачах\nАпелляция в очень плохом разрешении. не видно, что написано","муж",null,"Цветкова Марина Альбертовна","МАОУ \"Лицей № 121\" Советского района г. Казани (Центр образования №178)"]
[84,"Московский","Лицей-интернат \"IТ-лицей К(П)ФУ\"","Исхаков","Камиль","Айдарович","7","28.02.2004",7,7,3,0,0,1,18,null,null,"муж",null,"Фадеев  Алексей Валерьевич","Лицей-интернат \"IТ-лицей К(П)ФУ\""]
[85,"Набережные Челны","МБОУ «Гимназия №2 имени Мулланура Вахитова» г. Набережные Челны","Шакирова","Эльза ","Ришатовна","7","04.05.2003",7,7,3,0,0,1,18,4.6,"Без изменений\n4: скорости муравьев найдены не правильно\n6: составлено уравнение из скоторого нельзя найти неизвестную (12x-72-12x=-72)","жен",null,"Егорова Рушания Леонидовна","МБОУ «Гимназия №2 имени Мулланура Вахитова» г. Набережные Челны"]
[86,"Набережные Челны","МБОУ «Лицей-интернат №79» г. Набережные Челны","Амуков","Владислав","Сергеевич","7","31.10.2002",7,3,7,0,0,0,17,2.4,"без изменений (2:не верное понимание фраз, 4: нет задачи)","муж",null,"Шайхутдинова Разима Закиевна","МБОУ «Лицей-интернат №79» г. Набережные Челны"]
[87,"Набережные Челны","МАОУ «Лицей №78 имени А.С.Пушкина» г. Набережные Челны","Верхотурова","Вера","Вячеславовна","7","02.01.2003",7,7,3,0,0,0,17,null,null,"муж",null,"Бубнова Елена Витальевна","МАОУ «Лицей №78 имени А.С.Пушкина» г. Набережные Челны"]
[88,"Балтасинский","МБОУ «Карадуванская гимназия имени Баки Зиятдинова» Балтасинского муниципального района РТ","Гафуров","Ирек","Равилович","7","08.06.2003",7,5,5,0,0,0,17,null,null,"муж",null,"Садикзянова Зульфия Зайдулловна ","МБОУ «Карадуванская гимназия имени Баки Зиятдинова» Балтасинского муниципального района РТ"]
[89,"Нижнекамский","МБОУ «Лицей-интернат №24» НМР РТ","Ибрагимов","Инсаф","Айратович","7","14.03.2003",0,7,3,7,0,0,17,3,"Без изменений\n3: рассмотрен только один из двух случаев","муж",null,"Агалтдинов Ильшат Гайнуллович","МБОУ «Лицей-интернат №24» НМР РТ"]
[90,"Мамадышский","МБОУ «Большешиинская средняя общеобразовательная школа» Мамадышского муниципального района РТ","Кляшев","Алексей","Германович","7","24.11.2003",7,7,3,0,0,0,17,4,"Без изменений\n4: рассмотре конкретный пример скоростей","муж",null,"Кляшева Маргарита Александровна","МБОУ «Большешиинская средняя общеобразовательная школа» Мамадышского муниципального района РТ"]
[91,"Набережные Челны","МБОУ «Гимназия №26» г. Набережные Челны","Мингалиева ","Гузель ","Галимзяновна","7","20.11.2003",7,7,3,0,0,0,17,null,null,"жен",null,"Князева Вера Леонидовна","МБОУ «Гимназия №26» г. Набережные Челны"]
[92,"Сабинский","МБОУ \"Большеарташская основная общеобразовательная школа Сабинского муниципального района Республики Татарстан\"","Мухаметзянов","Раис","Рустамович","7","06.01.2004",7,7,3,0,0,0,17,null,null,"муж",null,"Гайбадуллин Ильнур Бакиевич","МБОУ \"Большеарташская основная общеобразовательная школа Сабинского муниципального района Республики Татарстан\""]
[93,"Пестречинский","МБОУ «Тат-Ходяшевская средняя общеобразовательная школа» Пестречинского муниципального района РТ","Раимов","Алмаз","Рамисович","7","12.11.2003",7,7,3,0,0,0,17,3.4,"Без изменений\n3: не рассмотрен один из двух основных случаев\n4: не обосновано получение скоростей муравьев","муж",null,"Сафина Илюса Равильевна","МБОУ «Тат-Ходяшевская средняя общеобразовательная школа» Пестречинского муниципального района РТ"]
[94,"Набережные Челны","МАОУ «Лицей инновационных технологий №36» г. Набережные Челны","Фролов","Вадим ","Константинович","7","28.11.2002",7,7,3,0,0,0,17,null,null,"муж",null,"Галимова Татьяна Кузьминична","МАОУ «Лицей инновационных технологий №36» г. Набережные Челны"]
[95,"Вахитовский","Общеобразовательная школа-интернат «Лицей имени Н. И. Лобачевского» К(П)ФУ","Валеев","Тимур","Альбертович","7","20.01.2004",7,5,4,0,0,0,16,null,null,"муж",null,"Бисеров Денис Сергеевич","Общеобразовательная школа-интернат «Лицей имени Н. И. Лобачевского» К(П)ФУ"]
[96,"Альметьевский","МАОУ «Средняя общеобразовательная школа №16» Альметьевского муниципального района РТ","Галиуллин ","Карим","Радикович","7","08.01.2003",7,6,3,0,0,0,16,null,null,"муж",null,"Крючкова Елена Борисовна","МАОУ «Средняя общеобразовательная школа №16» Альметьевского муниципального района РТ"]
[97,"Московский","МАОУ «Лицей-интернат №2» Московского района г. Казани","Гимадеев","Ильдар","Айратович","7","05.04.2003",0,6,3,0,7,0,16,null,null,"муж",null,"Хамидуллин Алмаз Нуртдинович","МАОУ «Лицей-интернат №2» Московского района г. Казани"]
[98,"Московский","МБОУ \"Гимназия №122 имени Ж.А Зайцевой\" Московского района г.Казани","Архипова","Александра","Александровна","7","24.04.2003",3,5,7,0,0,0,15,null,null,"жен",null,"Петрова Луиза Николаевна","МБОУ \"Гимназия №122 имени Ж.А Зайцевой\" Московского района г.Казани"]
[99,"Приволжский","Лицей-интернат \"IТ-лицей К(П)ФУ\"","Гарифуллина","Эндже","Илгизовна","7","09.03.2004",7,7,1,0,0,0,15,null,null,"жен",null,"Фадеев Алексей Валерьевич","Лицей-интернат \"IТ-лицей К(П)ФУ\""]
[100,"Приволжский","МАОУ «Гимназия №19» Приволжского района г. Казани","Гиззатуллин","Тимур","Рустемович","7","03.12.2004",7,5,3,0,0,0,15,null,null,"муж",null,"Гаврилова Наталья Николаевна","МАОУ «Гимназия №19» Приволжского района г. Казани"]
[101,"Нурлатский","МАОУ \"Средняя общеобразовательная школа №9\" г. Нурлат Республики Татарстан","Тухватуллина ","Гузель ","Маратовна","7","03.10.2003",7,5,3,0,0,0,15,null,null,"жен",null,"Аюпова Зульфия салимзяновна","МАОУ \"Средняя общеобразовательная школа №9\" г. Нурлат Республики Татарстан"]
[102,"Набережные Челны","МАОУ «Лицей №78 имени А.С.Пушкина» г. Набережные Челны","Абрамова","Валентина","Григорьевна","7","12.07.2003",0,7,7,0,0,0,14,4.6,"Без изменений\n4: скорости муравьев найдены не верно\n6: не верные рассуждения, неверный ответ","жен",null,"Бубнова Елена Витальевна","МАОУ «Лицей №78 имени А.С.Пушкина» г. Набережные Челны"]
[103,"Набережные Челны","МБОУ «Гимназия №26» г. Набережные Челны","Арсланов","Роберт ","Илгизович","7","02.06.2003",0,7,7,0,0,0,14,null,null,"муж",null,"\tНаумович Ирина Николаевна","МБОУ «Гимназия №26» г. Набережные Челны"]
[104,"Набережные Челны","МАОУ «Лицей №78 имени А.С.Пушкина» г. Набережные Челны","Михайлова","Екатерина","Александровна","7","13.01.2003",0,7,7,0,0,0,14,null,null,"жен",null,"Бубнова Елена Витальевна","МАОУ «Лицей №78 имени А.С.Пушкина» г. Набережные Челны"]
[105,"Ново-Савиновский","МАОУ \"Средняя общеобразовательная школа №23\"","Пронин","Александр","Алексеевич",7,null,7,0,7,0,0,0,14,{"$nulls":4},"Хафизова Гульнара Ханифовна","МАОУ \"Средняя общеобразовательная школа №23\""]
[106,"Нижнекамский","МБОУ «Лицей №35» г. Нижнекамска Республики Татарстан","Семёнов","Родион","Константинович","7","09.02.2003",7,0,7,0,0,0,14,null,null,"муж",null,"Молчанова Нина Викторовна","МБОУ «Лицей №35» г. Нижнекамска Республики Татарстан"]
[107,"Вахитовский","Общеобразовательная школа-интернат «Лицей имени Н. И. Лобачевского» К(П)ФУ","Сергеев","Илья","Константинович","7","28.02.2003",7,0,7,0,0,0,14,4,"Без изменений\n4: не доказаны утверждения про скорости","муж",null,"Бисеров Денис Сергеевич","Общеобразовательная школа-интернат «Лицей имени Н. И. Лобачевского» К(П)ФУ"]
[108,"Набережные Челны","МАОУ «Гимназия №76» г. Набережные Челны","Хафизуллин ","Артур ","Ильнурович","7","11.11.2002",7,7,0,0,0,0,14,null,null,"муж",null,"Гульбина Фавзия Абдулхамитовна","МАОУ «Гимназия №76» г. Набережные Челны"]
[109,"Бугульминский","МБОУ «Лицей №2» Бугульминского муниципального района РТ, \"Школа - центр компетенции в электронном образовании\"","Шаймарданов ","Владимир ","Андреевич","7","02.04.2004",7,7,0,0,0,0,14,null,null,"муж",null,"Вогнерубова Елена Васильевна","МБОУ «Лицей №2» Бугульминского муниципального района РТ, \"Школа - центр компетенции в электронном образовании\""]
[110,"Кировский","МАОУ «Гимназия-интернат №4» Кировского района г.Казани","Мустакимова","Дарина","Ильдаровна","7","22.12.2003",7,5,0,1,0,0,13,null,null,"жен",null,"Зинько Татьяна Михайловна","МАОУ «Гимназия-интернат №4» Кировского района г.Казани"]
[111,"Нижнекамский","МБОУ «Средняя общеобразовательная школа №6» Нижнекамского муниципального района Республики Татарстан","Окунев","Роман","Владимирович","7","09.01.2003",7,0,5,0,0,1,13,null,null,"муж",null,"Дорофеева Лилия Ильинична","МБОУ «Средняя общеобразовательная школа №6» Нижнекамского муниципального района Республики Татарстан"]
[112,"Елабужский","МБОУ «Гимназия №1» Елабужского муниципального района Республики Татарстан","Хакимуллина","Азалия","Миннехарисовна","7","12.12.2002",3,7,3,0,0,0,13,null,null,"жен",null,"Гильмутдинова Ильза Маснавиевна","МБОУ «Гимназия №1» Елабужского муниципального района Республики Татарстан"]
[113,"Балтасинский","МБОУ «Соснинская основная общеобразовательная школа» Балтасинского муниципального района РТ","Аскаров ","Фанус ","Фирдусович","7","12.09.2003",7,0,4,0,0,1,12,null,null,"муж",null,"Нуриева Гузель Фархатовна","МБОУ «Соснинская основная общеобразовательная школа» Балтасинского муниципального района РТ"]
[114,"Набережные Челны","МАОУ «Лицей инновационных технологий №36» г. Набережные Челны","Гольдфайн","Андрей","Александрович","7","28.09.2003",7,0,5,0,0,0,12,null,null,"муж",null,"Галимова Татьяна Кузьминична","МАОУ «Лицей инновационных технологий №36» г. Набережные Челны"]
[115,"Зеленодольский","МБОУ «Лицей №9 имени А. С. Пушкина Зеленодольского муниципального района Республики Татарстан\"","Тазиев ","Анвар","Рамисович","7",null,0,5,7,0,0,0,12,1.4,"Без изменений\n1: есть одинаковые фигуры\n4: скорости муравьев посчитаны не правильно","муж",null,"Мишенькина Татьяна Ивановна","МБОУ «Лицей №9 имени А. С. Пушкина Зеленодольского муниципального района Республики Татарстан\""]
[116,"Советский","МБОУ «Средняя общеобразовательная школа №144 с углубленным изучением отдельных предметов» Советского района г. Казани","Тюник","Виталия","Станиславовна","7","28.07.2003",0,7,3,1,0,0,11,null,null,"жен",null,"Бусова Оксана Юрьевна","МБОУ «Средняя общеобразовательная школа №144 с углубленным изучением отдельных предметов» Советского района г. Казани"]
[117,"Вахитовский","МБОУ «Лицей №116» Вахитовского района г. Казани","Хасанов ","Арслан","Азатович","7","31.10.2002",0,3,1,7,0,0,11,null,null,"муж",null,"Кипякина Любовь Степановна","МБОУ «Лицей №116» Вахитовского района г. Казани"]
[118,"Советский","МБОУ «Средняя общеобразовательная школа №175» Советского района г. Казани","Ахметзянов","Дамир","Ришатович","7","23.04.2003",7,0,3,0,0,0,10,null,null,"муж",null,"Чучкалова Галина Викторовна","МБОУ «Средняя общеобразовательная школа №175» Советского района г. Казани"]
[119,"Приволжский","МБОУ \"Средняя общеобразовательная школа №35 с углубленным изучением отдельных предметов\" Приволжского района города Казани","Ашрафзянов","Марат","Марселевич","7","03.06.2003",7,0,3,0,0,0,10,null,null,"муж",null,"Кузьмина Ирина Анатольевна","МБОУ \"Средняя общеобразовательная школа №35 с углубленным изучением отдельных предметов\" Приволжского района города Казани"]
[120,"Нурлатский","МАОУ «Средняя общеобразовательная школа №1» города Нурлат РТ","Баймурзин","Марат","Дамирович","7","26.03.2004",0,7,3,0,0,0,10,null,null,"муж",null,"Муртазина Римма Хамдямовна","МАОУ «Средняя общеобразовательная школа №1» города Нурлат РТ"]
[121,"Московский","ГБМБУ \"КФУ каршындагы 2 нче татар гимназиясе\" МБОУ \"Татарская гимназия №2 при КФУ\"","Бариев","Раиль","Рустемович","7","06.10.2003",0,7,2,0,0,1,10,null,null,"муж",null,"Сабирова Альсина Халимовна","ГБМБУ \"КФУ каршындагы 2 нче татар гимназиясе\" МБОУ \"Татарская гимназия №2 при КФУ\""]
[122,"Советский","МБОУ \"Лицей №159\"","Валиуллина","Сабина","Альбертовна",7,null,7,0,3,0,0,0,10,"2;3;4","Без изменений\n2: рассмотрены не все случаи\n3: разобран один случай\n4: только частный случай без обоснования",null,null,"Тарасова Валентина Владимировна","МБОУ \"Лицей №159\""]
[123,"Ново-Савиновский","МБОУ «Гимназия №7» Ново-Савиновского района г.Казани. Школа-центр компетенции в электронном образовании","Ефлова","Дарья","Сергеевна","7","13.12.2002",0,5,5,0,0,0,10,null,null,"жен",null,"Мироновская  Татьяна  Викторовна","МБОУ «Гимназия №7» Ново-Савиновского района г.Казани. Школа-центр компетенции в электронном образовании"]
[124,"Актанышский","ГАОУ «Гуманитарная гимназия-интернат для одаренных детей»","Имамов","Гадель","Зуфарович","7","11.02.2003",0,7,3,0,0,0,10,1.6,"без изменений\n1: есть равные фигурки\n6: разобраны частные случае, не верный ответ","муж",null,"Фардиева Регина Равилевна","ГАОУ «Гуманитарная гимназия-интернат для одаренных детей»"]
[125,"Алексеевский","Муниципальное бюджетное общеобразовательное учреждение Алексеевская средняя общеобразовательная школа №1 Алексеевского муниципального района Республики Татарстан","Кирюхин","Егор","Дмитриевич","7","15.03.2003",0,7,3,0,0,0,10,null,null,"муж",null,"Скалова Ирина Николаевна","Муниципальное бюджетное общеобразовательное учреждение Алексеевская средняя общеобразовательная школа №1 Алексеевского муниципального района Республики Татарстан"]
[126,"Сабинский","МБОУ «Завод-Ныртинская средняя общеобразовательная школа им И.С. Башкирова Сабинского муниципального района Республики Татарстан\"","Шаймиева","Алсу","Ильнаровна","7","03.08.2003",0,7,3,0,0,0,10,null,null,"жен",null,"Ахметвалиева Гульчачак Ризвановна","МБОУ «Завод-Ныртинская средняя общеобразовательная школа им И.С. Башкирова Сабинского муниципального района Республики Татарстан\""]
[127,"Московский","МАОУ «Лицей-интернат №2» Московского района г. Казани","Шарафутдинов","Булат","Айдарович","7","17.01.2003",7,0,3,0,0,0,10,null,null,"муж",null,"Хамидуллин Алмаз Нуртдинович","МАОУ «Лицей-интернат №2» Московского района г. Казани"]
[128,"г. Набережные Челны","МБОУ \"Гимназия №26\"","Акимова ","Анастасия","Алексеевна",7,null,0,1,7,0,1,0,9,2.5,"Без изменений\n2:разобраны не все варианты\n5: используется факт что B середина AM",null,null,"Наумович Ирина Николаевна","МБОУ \"Гимназия №26\""]
[129,"Приволжский","МАОУ «Гимназия №19» Приволжского района г. Казани","Баринов","Богдан","Сергеевич","7","06.05.2003",7,0,2,0,0,0,9,3.4,"Без изменений\n3: не показано как решаются уравнения\n4: скорости муравьев найдены не правильно","муж",null,"Гаврилова Наталья Николаевна","МАОУ «Гимназия №19» Приволжского района г. Казани"]
[130,"Лениногорский","МАОУ «Средняя общеобразовательная школа №2» муниципального образования \"Лениногорский муниципальный район\" РТ","Гадельшин","Руслан","Ильдарович","7","20.02.2003",0,5,3,0,0,1,9,null,null,"муж",null,"Панкрушина Наталья Михайловна","МАОУ «Средняя общеобразовательная школа №2» муниципального образования \"Лениногорский муниципальный район\" РТ"]
[131,"Нурлатский","МАОУ \"Средняя общеобразовательная школа №9\" г. Нурлат Республики Татарстан","Дмитриев ","Владислав ","Вячеславович","7","10.03.2004",3,6,0,0,0,null,9,null,null,"муж",null,"Киямова танзиля гайнутдиновна","МАОУ \"Средняя общеобразовательная школа №9\" г. Нурлат Республики Татарстан"]
[132,"Балтасинский","МБОУ «Карадуванская гимназия имени Баки Зиятдинова» Балтасинского муниципального района РТ","Зиятдинов","Газиз","Булатович","7","27.01.2004",3,1,5,0,0,0,9,null,null,"муж",null,"Садикзянова Зульфия Зайдулловна","МБОУ «Карадуванская гимназия имени Баки Зиятдинова» Балтасинского муниципального района РТ"]
[133,"Верхнеуслонский","Государственное автономное общеобразовательное учреждение \"Лицей Иннополис\"","Гафурова"," Айрис","Камильевна","7","04.11.2002",7,1,0,0,0,0,8,null,null,"жен",null,"Сагдеев Ришат Рустемович","Государственное автономное общеобразовательное учреждение \"Лицей Иннополис\""]
[134,"Бугульминский","МБОУ «Карабашская средняя общеобразовательная школа №2» Бугульминского муниципального района РТ","Гималетдинова ","Василя ","Ильдаровна","7","30.10.2003",0,1,7,0,0,0,8,null,null,"жен",null,"Вогнерубова Елена Васильевна","МБОУ «Карабашская средняя общеобразовательная школа №2» Бугульминского муниципального района РТ"]
[135,"Ново-Савиновский","МБОУ «Средняя общеобразовательная школа №85 с углубленным изучением отдельных предметов» Ново-Савиновского района г. Казани","Калистратова","Елена","Александровна","7","26.06.2003",7,0,0,0,0,1,8,null,null,"жен",null,"Фадеева Марина Николаевна","МБОУ «Средняя общеобразовательная школа №85 с углубленным изучением отдельных предметов» Ново-Савиновского района г. Казани"]
[136,"Нижнекамский","МБОУ «Лицей №35» г. Нижнекамска Республики Татарстан","Коробов","Роман","Дмитриевич","7","11.12.2002",7,0,1,0,0,0,8,"2;3;5","Без изменений\n2: не обоснования\n3: составлены уравнения, из которых не следует решение\n5: разобран частный случай","муж",null,"Молчанова Нина Викторовна","МБОУ «Лицей №35» г. Нижнекамска Республики Татарстан"]
[137,"Зеленодольский","МБОУ \"Лицей №1 Зеленодольского муниципального района РТ\"","Брагина","Анастасия","Денисовна","7",null,7,0,0,0,0,0,7,null,null,"жен",null,"Галанина Оксана Александровна","МБОУ \"Лицей №1 Зеленодольского муниципального района РТ\""]
[138,"Московский","МБОУ «Гимназия №94» Московского района г. Казани","Галиуллин","Рашит","Дамирович","7","19.12.2003",7,0,4,0,0,0,11,"1;2;3","Повышены на 4 балла\n1:+4 балла. Верное решение\n2: утверждается, что рыцарь и лжец не могут дать одинаковые ответы\n3: в одном из случаев не верно решено уравнение","муж",null,"Сырова Ольга Варсонофьевна","МБОУ «Гимназия №94» Московского района г. Казани"]
[139,"Московский","МАОУ «Лицей-интернат №2» Московского района г. Казани","Гатауллин","Денис","Романович","7","28.04.2003",0,0,7,0,0,0,7,null,null,"муж",null,"Хамидуллин Алмаз Нуртдинович","МАОУ «Лицей-интернат №2» Московского района г. Казани"]
[140,"Нурлатский","МАОУ «Средняя общеобразовательная школа №1» города Нурлат РТ","Ильина ","Юлия","Сергеевна","7","18.01.2004",7,0,0,0,0,0,7,null,null,"жен",null,"Муртазина Римма Хамдямовна","МАОУ «Средняя общеобразовательная школа №1» города Нурлат РТ"]
[141,"Набережные Челны","МБОУ «Средняя общеобразовательная школа №18 с углубленным изучением отдельных предметов» г. Набережные Челны","Нечаева","Лидия","Александровна","7","04.08.2003",0,7,0,0,0,0,7,null,null,"жен",null,"Шарапова Марьям Минрахмановна","МБОУ «Средняя общеобразовательная школа №18 с углубленным изучением отдельных предметов» г. Набережные Челны"]
[142,"Тукаевский","МБОУ «Бурдинская средняя общеобразовательная школа» Тукаевского муниципального района РТ","Фардиев","Раиль","Рамилевич","7","03.10.2003",0,0,7,0,0,0,7,null,null,"муж",null,"Ямалтдинова Гульнур Мирзануровна","МБОУ «Бурдинская средняя общеобразовательная школа» Тукаевского муниципального района РТ"]
[143,"Ново-Савиновский","МБОУ «Средняя общеобразовательная школа № 9 с углубленным изучением английского языка» Ново-Савиновского района г.Казани","Фаттахов","Оскар","Эдуардович","7","04.08.2003",0,0,7,0,0,0,7,null,null,"муж",null,"Карагузина Надежда Владимировна","МБОУ «Средняя общеобразовательная школа № 9 с углубленным изучением английского языка» Ново-Савиновского района г.Казани"]
[144,"Советский","МБОУ «Лицей №149 с татарским языком обучения» Советского района г. Казани","Муртазин","Рустам","Альбертович","7","18.10.2003",0,3,3,0,0,0,6,null,null,"муж",null,"Валеев Ильдус Завдятович","МБОУ «Лицей №149 с татарским языком обучения» Советского района г. Казани"]
[145,"Арский","ГБОУ \"Ново-Кинерская школа-интернат для детей с ограниченными возможностями здоровья\"","Хакимов","Ильмир","Радикович","7",null,0,3,3,0,0,0,6,null,null,"муж",null,"Мустафина Гульсина Габделхаевна","ГБОУ \"Ново-Кинерская школа-интернат для детей с ограниченными возможностями здоровья\""]
[146,"Советский","МБОУ \"Гимназия №90\"","Вавилова","Анастасия","Сергеевна",7,null,0,0,3,0,0,0,3,{"$nulls":4},"Хафизова Светлана Саидовна","МБОУ \"Гимназия №90\""]
[147,"Казань","МБОУ \"Средняя общеобразовательная школа №62 с углубленным изучением отдельных предметов\"","Случаев","Кирилл","Константинович","7","07.02.2003",0,0,3,0,0,0,3,null,null,"муж",null,"Галимзянова Виктория Викторовна","МБОУ \"Средняя общеобразовательная школа №62 с углубленным изучением отдельных предметов\""]
[148,"Нижнекамский","МБОУ «Лицей №35» г. Нижнекамска Республики Татарстан","Фадеев","Артём","Евгеньевич","7","06.05.2003",3,0,0,0,0,0,3,null,null,"муж",null,"Молчанова Нина Викторовна","МБОУ «Лицей №35» г. Нижнекамска Республики Татарстан"]
[149,"Альметьевский","МБОУ «Нижнемактаминская средняя общеобразовательная школа №2» Альметьевского муниципального района РТ","Халиков  ","Карим","Рустемович","7","11.03.2003",0,0,3,0,0,0,3,null,null,"муж",null,"Шарипова Айсылу Фаридовна","МБОУ «Нижнемактаминская средняя общеобразовательная школа №2» Альметьевского муниципального района РТ"]
[150,"Агрызский","МБОУ «Средняя общеобразовательная школа №3 имени Тази Гиззата» Агрызского муниципального района РТ","Арасланова","Рената","Альбертовна","7","03.11.2002",{"$nulls":6},0,null,null,"жен",null,"Широбокова Дина Николаевна","МБОУ «Средняя общеобразовательная школа №3 имени Тази Гиззата» Агрызского муниципального района РТ"]
[151,"Приволжский","МБОУ «Татарско-русская средняя общеобразовательная школа №68 с углублённым изучением отдельных предметов» Приволжского района г. Казани","Ахмадуллина","Ралина","Ленаровна","7","20.12.2003",0,0,0,0,0,0,0,null,null,"жен",null,"Мишурин Владимир  Геннадьевич","МБОУ «Татарско-русская средняя общеобразовательная школа №68 с углублённым изучением отдельных предметов» Приволжского района г. Казани"]
[152,"Набережные Челны","МБОУ «Гимназия №26» г. Набережные Челны","Бабиков","Данила ","Романович","7","11.10.2002",{"$nulls":6},0,null,null,"муж",null,"Наумович Ирина Николаевна","МБОУ «Гимназия №26» г. Набережные Челны"]
[153,"Вахитовский","Муниципальное автономное общеобразовательное учреждение для детей, проявивших выдающиеся способности «Средняя общеобразовательная школа-интернат «Специализированный олимпиадно-научный центр «СОлНЦе» Вахитовского района г. Казани","Батраков","Кирилл","Ильич","7","07.05.2003",{"$nulls":6},0,null,null,"муж",null,"Королёв Юрий Николаевич","Муниципальное автономное общеобразовательное учреждение для детей, проявивших выдающиеся способности «Средняя общеобразовательная школа-интернат «Специализированный олимпиадно-научный центр «СОлНЦе» Вахитовского района г. Казани"]
[154,"Советский","МАОУ \"Лицей № 121\" Советского района г. Казани (Центр образования №178)","Гизатуллин","Раиль","Рамилевич","7","31.08.2003",0,0,0,0,0,0,0,null,null,"муж",null,"Шакирова Диана Дамировна","МАОУ \"Лицей № 121\" Советского района г. Казани (Центр образования №178)"]
[155,"Приволжский","МБОУ «Татарско-русская средняя общеобразовательная школа №68 с углублённым изучением отдельных предметов» Приволжского района г. Казани","Ибатуллина","Юлия","Булатовна","7","18.06.2003",0,0,0,0,0,0,0,null,null,"жен",null,"Мишурин Владимир Геннадьевич","МБОУ «Татарско-русская средняя общеобразовательная школа №68 с углублённым изучением отдельных предметов» Приволжского района г. Казани"]
[156,"Вахитовский","МАОУ \"Лицей №131\" Вахитовского района г. Казани","Кондратьев","Сергей","Евгеньевич","7","18.03.2003",7,7,7,7,0,0,28,"1,2,3,4","Был не правильно вбит результат","муж",null,"Диянова Ирина Вячеславовна","МАОУ \"Лицей №131\" Вахитовского района г. Казани"]
[157,"Набережные Челны","МАОУ «Лицей №78 имени А.С.Пушкина» г. Набережные Челны","Сафина","Далия","Фаридовна","7","09.11.2002",0,0,0,0,0,0,0,"2;3;4","Без изменений\n2: рассмотрен только один случай\n3: рассмотрен только один случай\n4: не доказаны утверждения про скорости муравьев во втором случае","жен",null,"Каирова Мунира Фанавеевна","МАОУ «Лицей №78 имени А.С.Пушкина» г. Набережные Челны"]
[158,"Агрызский","МБОУ «Средняя общеобразовательная школа №3 имени Тази Гиззата» Агрызского муниципального района РТ","Шурманов","Рашид","Рафисович","7","04.12.2002",0,0,0,0,0,0,0,3.4,"Без изменений\n3: в работе не приведено решение\n4: утверждается, что время движения в 1 и 2 день у первого муравье было одинаково","муж",null,"Широбокова Дина Николаевна","МБОУ «Средняя общеобразовательная школа №3 имени Тази Гиззата» Агрызского муниципального района РТ"]
[null,"Азнакаевский","МБОУ «Средняя общеобразовательная школа №5 с углубленным изучением английского языка г. Азнакаево» ","Михайлов","Сергей","Юрьевич",7,null,7,0,7,7,7,0,28]

{"sheet":"6","index":1,"n_rows":153,"n_cols":20,"rows_kept":153,"merged":[[0,0,0,19]]}
["Протокол заключительного этапа республиканской олимпиады по математике в 2016-2017 учебном году"]
["№ п/п","Муниципалитет","Полное наименование образовательного учреждения (по уставу)","Фамилия","Имя","Отчество","Класс",1,2,3,4,5,6,"сумма","апелляция по задачам","результат","итог","Статус","Фамилия педагога, подготовившего, участника олимпиады","Полное наименование образовательного учреждения (по уставу)"]
[1,"Московский","МБОУ \"Гимназия №9\" Московского района г.Казани","Шарафетдинова","Галия","Маратовна","6",7,7,7,7,7,7,{"$f":"SUM(H3:M3)","v":42},{"$nulls":3},"Победитель","Власова Светлана Владимировна","МБОУ \"Гимназия №9\" Московского района г.Казани"]
[2,"Вахитовский","Муниципальное автономное общеобразовательное учреждение для детей, проявивших выдающиеся способности «Средняя общеобразовательная школа-интернат «Специализированный олимпиадно-научный центр «СОлНЦе» Вахитовского района г. Казани","Филатов","Вячеслав","Михайлович","6",7,7,7,7,5,7,40,5,"Задача 5. Арифметическая ошибка. Баллы без изменений",null,"Призер","Фролова Ольга Олеговна","Муниципальное автономное общеобразовательное учреждение для детей, проявивших выдающиеся способности «Средняя общеобразовательная школа-интернат «Специализированный олимпиадно-научный центр «СОлНЦе» Вахитовского района г. Казани"]
[3,"Верхнеуслонский","Государственное автономное образовательное учреждение «Школа Иннополис»","Алишева"," Азалия ","Равилевна","6",7,7,7,7,0,7,35,{"$nulls":3},"Призер","Липатов Михаил Валерьевич","Государственное автономное образовательное учреждение «Школа Иннополис»"]
[4,"Ново-Савиновский","Муниципальное бюджетное общеобразовательное учреждение \"Лицей № 177\" Ново-Савиновского района г. Казани","Курин","Виталий","Арсеньевич","6",7,7,7,7,1,3,32,{"$nulls":3},"Призер","Сайфутдинова Елена Валерьевна","Муниципальное бюджетное общеобразовательное учреждение \"Лицей № 177\" Ново-Савиновского района г. Казани. "]
[5,"Вахитовский","МБОУ «Гимназия №96» Вахитовского района г. Казани","Закиева","Рената","Рустамовна","6",7,7,7,1,7,1,30,{"$nulls":3},"Призер","Луконина Светлана Юрьевна","МБОУ «Гимназия №96» Вахитовского района г. Казани"]
[6,"Верхнеуслонский","МБОУ «Верхнеуслонская средняя общеобразовательная школа» Верхнеуслонского муниципального района РТ (Школа - центр компетенции в электронном образовании)","Маслова ","Александра ","Георгиевна","6",7,7,2,7,0,7,30,{"$nulls":3},"Призер","Фокеева Валентина Сергеевна","МБОУ «Верхнеуслонская средняя общеобразовательная школа» Верхнеуслонского муниципального района РТ (Школа - центр компетенции в электронном образовании)"]
[7,"Набережные Челны","МАОУ «Лицей инновационных технологий №36» г. Набережные Челны","Хамидуллин","Дамир","Дамирович","6",7,7,7,2,7,0,30,{"$nulls":3},"Призер","Шапеева  Анфиса  Васльевна","МАОУ «Лицей инновационных технологий №36» г. Набережные Челны"]
[8,"Ново-Савиновский","МАОУ «Средняя общеобразовательная школа №146 с углубленным изучением отдельных предметов» Ново-Савиновского района г. Казани","Чепкунов","Альберт","Аделевич","6",7,7,7,7,0,1,29,{"$nulls":3},"Призер","Зайцева Марина Юрьевна","МАОУ «Средняя общеобразовательная школа №146 с углубленным изучением отдельных предметов» Ново-Савиновского района г. Казани"]
[9,"Советский","МАОУ \"Лицей № 121\" Советского района г. Казани (Центр образования №178)","Кандрашкин","Алексей","Юрьевич","6",7,7,7,7,0,1,29,{"$nulls":3},"Призер","Закирова Миляуша Фаридовна","МАОУ \"Лицей № 121\" Советского района г. Казани (Центр образования №178)"]
[10,"Вахитовский","МБОУ «Гимназия №96» Вахитовского района г. Казани","Шведов","Владислав","Романович","6",7,7,7,7,0,1,29,6,"Задача 6. Баллы соответствуют критериям. Дальнейшее продвижение отсутствует",null,"Призер","Луконина Светлана Юрьевна","МБОУ «Гимназия №96» Вахитовского района г. Казани"]
[11,"Приволжский","МАОУ «Гимназия №19» Приволжского района г. Казани","Абдуллин","Адель","Айратович","6",7,7,7,7,1,0,29,{"$nulls":3},"Призер","Кузина Марина Геннадьевна","МАОУ «Гимназия №19» Приволжского района г. Казани"]
[12,"Вахитовский","МБОУ «Открытая (сменная) общеобразовательная школа №12» Вахитовского района г. Казани","Гарифзянов","Нияз","Алмазович","6",7,7,7,7,0,1,29,6,"Задача 6. Баллы соответствуют критериям. Дальнейшее продвижение отсутствует",null,"Призер","Гайнутдинова Айгуль Рашатовна","МБОУ «Открытая (сменная) общеобразовательная школа №12» Вахитовского района г. Казани"]
[13,"Московский","МБОУ «Гимназия №94» Московского района г. Казани","Хамитова","Ильмира","Равильевна","6",7,7,7,7,0,1,29,{"$nulls":3},"Призер","Сырова Ольга Варсонофьевна","МБОУ «Гимназия №94» Московского района г. Казани"]
[14,"Кукморский","МБОУ «Многопрофильный лицей имени А.М. Булатова п.г.т. Кукмор» Кукморского муниципального района РТ","Галиев","Ирек","Ильдарович","6",7,7,7,7,0,1,29,{"$nulls":3},"Призер","Кочергина Светлана Наилевна","МБОУ «Многопрофильный лицей имени А.М. Булатова п.г.т. Кукмор» Кукморского муниципального района РТ"]
[15,"Вахитовский","МАОУ «Средняя общеобразовательная школа №18 с углубленным изучением английского языка» Вахитовского района г. Казани","Тимерзянов","Тимур","Маратович","6",7,7,7,7,0,1,29,{"$nulls":3},"Призер","Замалиева Миляуша Камилевна","МАОУ «Средняя общеобразовательная школа №18 с углубленным изучением английского языка» Вахитовского района г. Казани"]
[16,"Нижнекамский","МБОУ «Лицей №35» г. Нижнекамска Республики Татарстан","Бакулина","Диана","Дмитриевна","6",7,7,7,7,0,1,29,{"$nulls":3},"Призер","Усманова Назиря Исмагиловна","МБОУ «Лицей №35» г. Нижнекамска Республики Татарстан"]
[17,"Советский","МБОУ «Средняя общеобразовательная школа №84» с углубленным изучением иностранных языков Советского района г. Казани","Павлов","Илья","Дмитриевич","6",7,7,7,0,7,1,29,{"$nulls":3},"Призер","Дюгурова Светлана Владимировна","МБОУ «Средняя общеобразовательная школа №84» с углубленным изучением иностранных языков Советского района г. Казани"]
[18,"Казань","Федеральное Государственное Казенное ОбщеобразовательноеУчреждение \"Казанское суворовское военное училище Министерства обороны Российской Федерации\"","Селезнев","Сергей","Сергеевич","6",7,7,7,7,0,1,29,{"$nulls":3},"Призер","Никонова Людмила Николаевна","Федеральное Государственное Казенное ОбщеобразовательноеУчреждение \"Казанское суворовское военное училище Министерства обороны Российской Федерации\""]
[19,"Набережные Челны","МБОУ «Средняя общеобразовательная школа №25 » г. Набережные Челны","Шагиев","Раиль","Зульфатович","6",6,7,7,1,7,1,29,1.4,"Задача 1. Недочетом признано отсутствие доказательства, что первые цифры 4-значного палиндрома — это 10. Баллы без изменений.\nЗадача 4. Ошибки в записанных формулах. Баллы без изменений",null,"Призер","Щербакова Наталья Геннадьевна","МБОУ «Средняя общеобразовательная школа №25 » г. Набережные Челны"]
[20,"Набережные Челны","МБОУ «Средняя общеобразовательная школа №60» г. Набережные Челны","Санников","Никита","Васильевич","6",7,7,7,7,0,1,29,{"$nulls":3},"Призер","Воронкова Анна Ивановна","МБОУ «Средняя общеобразовательная школа №60» г. Набережные Челны"]
[21,"Ново-Савиновский","МБОУ «Средняя общеобразовательная татарско-русская школа №23 с углубленным изучением отдельных предметов» Ново-Савиновского района г.Казани","Кононова","Юлия","Алексеевна","6",7,7,7,7,0,0,28,{"$nulls":3},"Призер","Каюмова Ирина Харитоновна","МБОУ «Средняя общеобразовательная татарско-русская школа №23 с углубленным изучением отдельных предметов» Ново-Савиновского района г.Казани"]
[22,"Набережные Челны","МАОУ «Лицей №78 имени А.С.Пушкина» г. Набережные Челны","Семенова","София","Владимировна","6",7,7,7,7,0,0,28,{"$nulls":3},"Призер","Бубнова Екатерина Витальевна","МАОУ «Лицей №78 имени А.С.Пушкина» г. Набережные Челны"]
[23,"Ново-Савиновский","МБОУ «Гимназия №7» Ново-Савиновского района г.Казани. Школа-центр компетенции в электронном образовании","Биктагиров","Амир","Хамзанович","6",7,7,6,0,0,7,27,{"$nulls":3},"Призер","Гайнанова Мадина Газизовна","МБОУ «Гимназия №7» Ново-Савиновского района г.Казани. Школа-центр компетенции в электронном образовании"]
[24,"Зеленодольский","МБОУ \"Гимназия №3\" Зеленодольского муниципального района РТ ","Чибикова","Валерия","Максимовна","6",6,7,7,7,0,0,27,{"$nulls":3},"Призер","Марьина Наталья Александровна","МБОУ \"Гимназия №3\" Зеленодольского муниципального района РТ "]
[25,"Ново-Савиновский","МБОУ «Гимназия №7» Ново-Савиновского района г.Казани. Школа-центр компетенции в электронном образовании","Якимова","Энна","Родионовна","6",7,7,7,4,0,1,26,{"$nulls":3},"Призер","Гайнанова Мадина Газизовна","МБОУ «Гимназия №7» Ново-Савиновского района г.Казани. Школа-центр компетенции в электронном образовании"]
[26,"Приволжский","МБОУ «Гимназия №18 с татарским языком обучения» Приволжского района г. Казани","Харисов","Булат","Рафаилевич","6",7,7,3,7,0,1,25,3.6,"Задача 3. Утверждение, что Ваня сказал правду неверно. Баллы соответствуют критериям.\nЗадача 6. Баллы соответствуют критериям. Дальнейшее продвижение отсутствует",null,"Призер","Гарипова Рушания Бадрутдиновна","МБОУ «Гимназия №18 с татарским языком обучения» Приволжского района г. Казани"]
[27,"Набережные Челны","МБОУ «Гимназия №26» г. Набережные Челны","Калинин ","Степан","Константинович","6",7,7,7,2,1,1,25,{"$nulls":3},"Призер","Наумович  Ирина  Николаевна","МБОУ «Гимназия №26» г. Набережные Челны"]
[28,"Бугульминский","МБОУ «Средняя общеобразовательная школа №1 с углубленным изучением отдельных предметов» Бугульминского муниципального района РТ","Габидуллин ","Камиль ","Маратович","6",7,7,3,7,0,1,25,{"$nulls":3},"Призер","Чуканова Ильгиза Ильгизовна","МБОУ «Средняя общеобразовательная школа №1 с углубленным изучением отдельных предметов» Бугульминского муниципального района РТ"]
[29,"Приволжский","МАОУ «Гимназия №19» Приволжского района г. Казани","Булкина","Алина","Анатольевна","6",7,7,3,7,0,0,24,{"$nulls":3},"Призер","Кузина Марина Геннадьевна","МАОУ «Гимназия №19» Приволжского района г. Казани"]
[30,"Московский","МБОУ «Гимназия №102 им. М.С.Устиновой» Московского района г. Казани","Сергеев","Ян","Романович","6",7,7,2,7,0,1,24,{"$nulls":3},"Призер","Гайфуллина Нурия Лукманхакимовна","МБОУ «Гимназия №102 им. М.С.Устиновой» Московского района г. Казани"]
[31,"Альметьевский","МАОУ \"Лицей №2\" г.Альметьевска","Хуснутдинов","Тимур","Фаязович","6",7,7,7,2,1,0,24,{"$nulls":3},"Призер","Домнина Марина Николаевна","МАОУ \"Лицей №2\" г.Альметьевска"]
[32,"Сабинский","МБОУ «Шеморданский лицей Сабинского муниципального района Республики Татарстан\"","Хамзин","Рустем","Алмазович","6",7,7,7,2,0,1,24,4.6,"Задача 4. В работе предполагается, что расстояние — целое. Это заранее неизвестно. Баллы без изменений\nЗадача 6.  Баллы соответствуют критериям. Дальнейшее продвижение отсутствует.",null,"Призер","Галиахметова Алсу Салимовна","МБОУ «Шеморданский лицей Сабинского муниципального района Республики Татарстан\""]
[33,"Московский","МБОУ \"Гимназия №122 имени Ж.А Зайцевой\" Московского района г.Казани","Никитина","Дарья","Дмитриевна","6",7,7,7,2,0,1,24,{"$nulls":3},"Призер","Жарова Гузель Закиевна","МБОУ \"Гимназия №122 имени Ж.А Зайцевой\" Московского района г.Казани"]
[34,"Азнакаевский","МБОУ «Средняя общеобразовательная школа с. Сарлы» Азнакаевского муниципального района РТ","Мингазова","Зухра","Айратовна","6",7,7,2,7,0,1,24,3,"Задача 3.  Текст работы не соответствует тексту апелляции. Можно считать правильно рассмотренным только 2-й случай, и частично 1-й случай. \nПоднять оценку с 0 до 2.",null,"Призер","Хабибуллина Гузель Миннесагировна","МБОУ «Средняя общеобразовательная школа с. Сарлы» Азнакаевского муниципального района РТ"]
[35,"Приволжский","МАОУ «Гимназия №19» Приволжского района г. Казани","Саматова","Дина","Ренатовна","6",7,7,7,3,0,0,24,4,"Задача 4. Арифметическая ошибка при решении верно составленной системы уравнений.\nПоднять оценку с 0 до 3",null,"Призер","Кузина Марина  Геннадьевна","МАОУ «Гимназия №19» Приволжского района г. Казани"]
[36,"Сабинский","МБОУ \"Средняя общеобразовательная школа-интернат с углубленным изучением отдельных предметов для одаренных детей\" Сабинского муниципального района Республики Татарстан","Зиннуров","Фанис","Рамилевич","6",7,7,7,1,0,1,23,{"$nulls":3},"Призер","Гаптерахимова Лейсан Саубановна","МБОУ \"Средняя общеобразовательная школа-интернат с углубленным изучением отдельных предметов для одаренных детей\" Сабинского муниципального района Республики Татарстан"]
[37,"Ново-Савиновский","МАОУ «Средняя общеобразовательная школа №146 с углубленным изучением отдельных предметов» Ново-Савиновского района г. Казани","Николаев","Арслан","Игоревич","6",7,7,2,7,0,0,23,4,"Задача 4. Решение уже оценено в 7 баллов. Апелляция отклонена как не имеющая смысла",null,"Призер","Зайцева Марина Юрьевна","МАОУ «Средняя общеобразовательная школа №146 с углубленным изучением отдельных предметов» Ново-Савиновского района г. Казани"]
[38,"Набережные Челны","МБОУ «Гимназия №26» г. Набережные Челны","Егоров ","Сергей","Владимирович","6",7,7,6,2,0,1,{"$f":"SUM(H40:M40)","v":23},4,"Задача 4. В работе предполагается, что расстояние — целое. Это заранее неизвестно. Баллы без изменений",null,"Призер","Наумович  Ирина  Николаевна","МБОУ «Гимназия №26» г. Набережные Челны"]
[39,"Бугульминский","МБОУ «Средняя общеобразовательная школа №6 с углубленным изучением отдельных предметов» Бугульминского муниципального района РТ","Набережнов","Денис  ","Андреевич","6",7,7,6,2,0,1,23,4.6,"Задача 4. В работе предполагается, что расстояние — целое. Это заранее неизвестно. Баллы без изменений\nЗадача 6.  Баллы соответствуют критериям. Дальнейшее продвижение отсутствует",null,"Призер","Соловьева Надежда Алексеевна","МБОУ «Средняя общеобразовательная школа №6 с углубленным изучением отдельных предметов» Бугульминского муниципального района РТ"]
[40,"Набережные Челны","МБОУ «Гимназия №26» г. Набережные Челны","Силантьев ","Вячеслав","Валерьевич","6",7,7,7,1,0,1,23,{"$nulls":3},"Призер","Наумович  Ирина  Николаевна","МБОУ «Гимназия №26» г. Набережные Челны"]
[41,"Московский","Муниципальное бюджетное общеобразовательное учреждение «Средняя общеобразовательная школа №20» Московского района г. Казани","Григорьева","Виктория","Владимировна","6",7,7,7,0,2,0,23,3,"Задача 3. Поднять оценку с 6 до 7.",null,"Призер","Печенькова Марина Викторовна","Муниципальное бюджетное общеобразовательное учреждение «Средняя общеобразовательная школа №20» Московского района г. Казани"]
[42,"Приволжский","МАОУ «Гимназия №19» Приволжского района г. Казани","Уваров","Тимур","Рустемович","6",7,7,7,0,1,1,23,3.6,"Задача 3. Поднять оценку с 2 до 7.\nЗадача 6. Баллы соответствуют критериям. Дальнейшее продвижение отсутствует.",null,"Призер","Кузина Марина Геннадьевна","МАОУ «Гимназия №19» Приволжского района г. Казани"]
[43,"Вахитовский","МБОУ «Гимназия №96» Вахитовского района г. Казани","Бикмухаметов","Фарид","Рустемович","6",7,7,7,0,0,1,22,{"$nulls":3},"Призер","Луконина Светлана Юрьевна","МБОУ «Гимназия №96» Вахитовского района г. Казани"]
[44,"Набережные Челны","МБОУ «Гимназия №26» г. Набережные Челны","Маврин ","Денис","Геннадьевич","6",7,7,7,0,0,1,22,{"$nulls":3},"Призер","Наумович  Ирина  Николаевна","МБОУ «Гимназия №26» г. Набережные Челны"]
[45,"Приволжский","МАОУ «Гимназия №19» Приволжского района г. Казани","Сабирзянова","Азалия","Алмазовна","6",7,7,0,7,0,1,22,{"$nulls":3},"Призер","Кузина Марина Геннадьевна","МАОУ «Гимназия №19» Приволжского района г. Казани"]
[46,"Московский","МБОУ «Гимназия №94» Московского района г. Казани","Галяутдинов","Эмиль","Шамильевич","6",7,7,7,1,0,0,22,{"$nulls":3},"Призер","Сырова Ольга Варсонофьевна","МБОУ «Гимназия №94» Московского района г. Казани"]
[47,"Заинский","МБОУ «Заинская средняя общеобразовательная школа №2» Заинского муниципального района РТ","Козлова","Наталья","Витальевна","6",7,7,7,0,0,1,22,{"$nulls":3},"Призер","Мухарамова Ильвира Булатовна","МБОУ «Заинская средняя общеобразовательная школа №2» Заинского муниципального района РТ"]
[48,"Приволжский","МБОУ «Лицей №83» Приволжского района г. Казани","Шайхиев","Ислам","Ильясович","6",7,7,7,0,0,1,22,6,"Задача 6. Баллы соответствуют критериям. Дальнейшее продвижение отсутствует",null,"Призер","Коткова Евгения Сергеевна","МБОУ «Лицей №83» Приволжского района г. Казани"]
[49,"Пестречинский","МБОУ \"Пестречинская средняя общеобразовательная школа №1 с углубленным изучением отдельных предметов\" (Школа - центр компетенции в электронном образовании)","Гарипов","Фаргат","Ильшатович","6",7,7,7,0,0,1,22,6,"Задача 6. Баллы соответствуют критериям. Дальнейшее продвижение отсутствует",null,"Призер","Киямова Разина Гимрановна","МБОУ \"Пестречинская средняя общеобразовательная школа №1 с углубленным изучением отдельных предметов\" (Школа - центр компетенции в электронном образовании)"]
[50,"Нижнекамский","МБОУ «Лицей №35» г. Нижнекамска Республики Татарстан","Буслаев","Роман","Павлович","6",6,7,2,7,0,0,22,3,"Задача 3. Можно считать доказанным только, что Дима — лжец. Баллы соответствуют критериям",null,"Призер","Усманова Назиря Исмагиловна","МБОУ «Лицей №35» г. Нижнекамска Республики Татарстан"]
[51,"Нижнекамский","МБОУ «Лицей №35» г. Нижнекамска Республики Татарстан","Кайнов","Данил","Дмитриевич","6",7,7,7,1,0,0,22,{"$nulls":3},"Призер","Усманова Назиря Исмагиловна","МБОУ «Лицей №35» г. Нижнекамска Республики Татарстан"]
[52,"Бавлинский","МБОУ «Средняя общеобразовательная школа №3» Бавлинского муниципального района РТ","Ахметзянова ","Алина","Руслановна","6",7,7,7,0,0,1,22,{"$nulls":3},"Призер","Гайнутдинова Ольга Николаевна","МБОУ «Средняя общеобразовательная школа №3» Бавлинского муниципального района РТ"]
[53,"Елабужский","МБОУ «Средняя общеобразовательная школа №9 с углубленным изучением отдельных предметов» Елабужского муниципального района Республики Татарстан. Школа - центр компетенции в электронном образовании.","Савенков","Егор","Дмитриевич","6",7,7,7,0,0,1,22,{"$nulls":3},"Призер","Хисамиева Резеда Мансуровна","МБОУ «Средняя общеобразовательная школа №9 с углубленным изучением отдельных предметов» Елабужского муниципального района Республики Татарстан. Школа - центр компетенции в электронном образовании."]
[54,"Буинский","МБОУ «Гимназия им. М.М.Вахитова г. Буинска Республики Татарстан»","Галимов","Альфис","Рашитович","6",7,0,7,7,0,1,22,{"$nulls":3},"Призер","Аббазова Резида Хайдаровна","МБОУ «Гимназия им. М.М.Вахитова г. Буинска Республики Татарстан»"]
[55,"Заинский","МБОУ «Заинская средняя общеобразовательная школа №2» Заинского муниципального района РТ","Замарацких","Илья","Денисович","6",7,7,7,0,0,1,22,{"$nulls":3},"Призер","Мухарамова Ильвира Булатовна","МБОУ «Заинская средняя общеобразовательная школа №2» Заинского муниципального района РТ"]
[56,"Набережные Челны","МАОУ «Лицей №78 имени А.С.Пушкина» г. Набережные Челны","Сабаев ","Денис","Юрьевич","6",7,7,7,0,0,1,22,{"$nulls":3},"Призер","Бубнова Екатерина Витальевна","МАОУ «Лицей №78 имени А.С.Пушкина» г. Набережные Челны"]
[57,"Высокогорский","МБОУ «Высокогорская средняя общеобразовательная школа №1» Высокогорского муниципального района РТ","Латыпов","Булат","Рустемович","6",7,7,7,0,1,0,22,{"$nulls":3},"Призер","Ибрагимова Эльмира Фаритовна","МБОУ «Высокогорская средняя общеобразовательная школа №1» Высокогорского муниципального района РТ"]
[58,"Набережные Челны","МБОУ «Гимназия №26» г. Набережные Челны","Данилов ","Тимофей","Николаевич","6",6,7,7,0,0,1,21,{"$nulls":3},"Призер","Наумович  Ирина  Николаевна","МБОУ «Гимназия №26» г. Набережные Челны"]
[59,"Ново-Савиновский","Муниципальное автономное образовательное учреждение \"Основная общеобразовательная Школа №30\" Ново-Савинского раона г.Казани","Наумов","Юсуф","Альбертович","6",7,7,7,0,0,0,21,{"$nulls":3},"Призер","  ","Муниципальное автономное образовательное учреждение \"Основная общеобразовательная Школа №30\" Ново-Савинского раона г.Казани"]
[60,"Московский","МБОУ \"Гимназия №122 имени Ж.А Зайцевой\" Московского района г.Казани","Авхадиев","Арсен","Тимурович","6",7,7,7,0,0,0,21,{"$nulls":3},"Призер","Петрова Луиза Николаевна","МБОУ \"Гимназия №122 имени Ж.А Зайцевой\" Московского района г.Казани"]
[61,"Ново-Савиновский","МБОУ «Гимназия №7» Ново-Савиновского района г.Казани. Школа-центр компетенции в электронном образовании","Ахметшина","Элина","Ильдаровна","6",6,7,7,0,0,1,21,{"$nulls":3},"Призер","Гайнанова Мадина Газизовна","МБОУ «Гимназия №7» Ново-Савиновского района г.Казани. Школа-центр компетенции в электронном образовании"]
[62,"Рыбно-Слободский","МБОУ «Биектауская средняя общеобразовательная школа» Рыбно-Слободского муниципального района РТ","Шайдуллина","Зифа","Ильнуровна","6",7,7,7,0,0,0,21,{"$nulls":3},"Призер","Тухватуллина  Люция Миннулловна","МБОУ «Биектауская средняя общеобразовательная школа» Рыбно-Слободского муниципального района РТ"]
[63,"Набережные Челны","МБОУ «Гимназия №26» г. Набережные Челны","Демьянова ","Анна","Андреевна","6",6,7,7,0,0,1,21,{"$nulls":3},"Призер","Наумович  Ирина  Николаевна","МБОУ «Гимназия №26» г. Набережные Челны"]
[64,"Чистопольский","Муниципальное бюджетное общеобразовательное учреждение «Лицей №1» Чистопольского муниципального района Республики Татарстан","Леванова","Марина","Владимировна","6",7,7,0,7,0,0,21,{"$nulls":3},"Призер","Яруллина Айгуль Талгатовна","Муниципальное бюджетное общеобразовательное учреждение «Лицей №1» Чистопольского муниципального района Республики Татарстан"]
[65,"Приволжский","МБОУ «Лицей №83» Приволжского района г. Казани","Суслова","Алена","Витальевна","6",7,7,7,0,0,0,21,{"$nulls":3},"Призер","Ахмадиева Гульназ Наилевна","МБОУ «Лицей №83» Приволжского района г. Казани"]
[66,"Сармановский","МБОУ «Джалильская средняя общеобразовательная школа №1 с углубленным изучением отдельных предметов» Сармановского муниципального района РТ","Тухбатуллин","Нияз","Нафисович","6",7,7,7,0,0,0,21,{"$nulls":3},"Призер","Давлетова Ильсеяр Марселевна","МБОУ «Джалильская средняя общеобразовательная школа №1 с углубленным изучением отдельных предметов» Сармановского муниципального района РТ"]
[67,"Альметьевский","МБОУ «Старомихайловская средняя общеобразовательная школа» Альметьевского муниципального района РТ","Валиева","Есения","Равилевна","6",7,7,7,0,0,0,21,{"$nulls":3},"Призер","Смирнова Светлана Владимировна","МБОУ «Старомихайловская средняя общеобразовательная школа» Альметьевского муниципального района РТ"]
[68,"Елабужский","МБОУ «Гимназия №4» Елабужского муниципального района Республики Татарстан","Кузнецова","Елизавета","Дмитриевна","6",7,7,7,0,0,0,21,{"$nulls":3},"Призер","Мингазова Вагиза Мирсаитовна","МБОУ «Гимназия №4» Елабужского муниципального района Республики Татарстан"]
[69,"Кировский","МБОУ «Гимназия №50» Кировского района г. Казани","Суров","Артем","Сергеевич","6",7,7,0,7,0,0,21,{"$nulls":3},"Призер","Овчинникова Луиза Рамилевна","МБОУ «Гимназия №50» Кировского района г. Казани"]
[70,"Ново-Савиновский","МАОУ \"СОШ №146\" ","Семенова","Дарья","Александровна",null,7,7,7,0,0,0,{"$f":"SUM(H72:M72)","v":21},{"$nulls":3},"Призер"]
[71,"Бугульминский","МБОУ «Средняя общеобразовательная школа №3 с углубленным изучением отдельных предметов» Бугульминского муниципального района РТ","Нуждина  ","Дарья","Юрьевна","6",7,7,3,2,0,1,20,3.4,"Задача 3. Неверно рассмотрен случай, когда Ваня — рыцарь.  Баллы соответствуют критериям.\nЗадача 4. Сформулировано и не доказано утверждение, которое равносильно составлению и решению верного уравнения. Баллы соответствуют критериям",null,null,"Ратникова Александра Михайловна","МБОУ «Средняя общеобразовательная школа №3 с углубленным изучением отдельных предметов» Бугульминского муниципального района РТ"]
[72,"Набережные Челны","МБОУ «Гимназия №26» г. Набережные Челны","Полетаев ","Александр","Михайлович","6",7,7,3,2,0,1,20,{"$nulls":4},"Наумович  Ирина  Николаевна","МБОУ «Гимназия №26» г. Набережные Челны"]
[73,"Приволжский","МБОУ «Гимназия №18 с татарским языком обучения» Приволжского района г. Казани","Халиуллина","Камиля","Маратовна","6",5,7,7,0,0,1,20,{"$nulls":4},"Гарипова Рушания Бадрутдиновна","МБОУ «Гимназия №18 с татарским языком обучения» Приволжского района г. Казани"]
[74,"Набережные Челны","МАОУ «Средняя общеобразовательная школа №21» г. Набережные Челны","Дереженко ","Эвелина","Викторовна","6",5,0,7,7,0,0,19,{"$nulls":4},"Закирова Гульнара Фаниловна","МАОУ «Средняя общеобразовательная школа №21» г. Набережные Челны"]
[75,"Набережные Челны","МБОУ «Гимназия №26» г. Набережные Челны","Лукоянов ","Александр","Сергеевич","6",7,0,3,7,1,1,19,3,"Задача 3. Можно считать рассмотренным случай, когда Ваня — рыцарь. По критериям +1 балл.",null,null,"Наумович  Ирина  Николаевна","МБОУ «Гимназия №26» г. Набережные Челны"]
[76,"Нижнекамский","МБОУ «Гимназия №22» Нижнекамского муниципального района Республики Татарстан","Хасанов","Булат","Ильнурович","6",7,7,3,0,0,1,18,3.6,"Задача 3. Неверно рассмотрен случай, когда Ваня — рыцарь.  Баллы соответствуют критериям.\nЗадача 6.Баллы соответствуют критериям. Дальнейшее продвижение отсутствует",null,null,"Идиятуллина Альфия Минвалиевна","МБОУ «Гимназия №22» Нижнекамского муниципального района Республики Татарстан"]
[77,"Советский","МБОУ «Средняя общеобразовательная школа №175» Советского района г. Казани","Галиев","Ибрагим","Ильдарович","6",6,7,2,2,0,1,18,3,"Задача 3. В работе не показано, почему таблица заполняется именно так. Фактически, утверждения сформулированы, но не обоснованы.  Баллы соответствуют критериям",null,null,"Самигуллина Миляуша Габдуллазяновна","МБОУ «Средняя общеобразовательная школа №175» Советского района г. Казани"]
[78,"Набережные Челны","МАОУ «Гимназия №77» г. Набережные Челны","Бекмамбетов","Тимур","Сергеевич","6",7,7,3,0,1,0,18,{"$nulls":4},"Халиуллина   Галия Калимулловна","МАОУ «Гимназия №77» г. Набережные Челны"]
[79,"Нурлатский","МАОУ «Средняя общеобразовательная школа №4» г.Нурлат РТ","Бархаткин ","Данил","Сергеевич","6",6,7,3,2,0,0,18,{"$nulls":4},"Курбанова Миннегель Минхаировна","МАОУ «Средняя общеобразовательная школа №4» г.Нурлат РТ"]
[80,"Авиастроительный","МБОУ «Средняя общеобразовательная школа №33 с углубленным изучением отдельных предметов» Авиастроительного района г. Казани","Салахов","Данияр","Ленарович","6",6,7,2,2,0,1,18,{"$nulls":4},"Галиева Анжелика Тафкиловна","МБОУ «Средняя общеобразовательная школа №33 с углубленным изучением отдельных предметов» Авиастроительного района г. Казани"]
[81,"Приволжский","МАОУ «Гимназия №139» Приволжского района г. Казани","Шишляева","Ксения","Александровна","6",7,7,3,0,0,1,18,{"$nulls":4},"Сафиуллина Эвелина Эльбрусовна","МАОУ «Гимназия №139» Приволжского района г. Казани"]
[82,"Московский","МБОУ «Гимназия №94» Московского района г. Казани","Гилязова","Алина","Рашидовна","6",7,7,3,0,0,1,18,{"$nulls":4},"Терешина\tЮлия\tВладимировна","МБОУ «Гимназия №94» Московского района г. Казани"]
[83,"Набережные Челны","МАОУ «Гимназия №77» г. Набережные Челны","Байдина","Аделина","Сергеевна","6",7,2,7,0,0,1,17,{"$nulls":4},"Халиуллина   Галия Калимулловна","МАОУ «Гимназия №77» г. Набережные Челны"]
[84,"Московский","МБОУ \"Гимназия №122 имени Ж.А Зайцевой\" Московского района г.Казани","Зимин","Даниил","Александрович","6",6,7,3,0,0,1,17,{"$nulls":4},"Петрова Луиза Николаевна","МБОУ \"Гимназия №122 имени Ж.А Зайцевой\" Московского района г.Казани"]
[85,"Набережные Челны","МБОУ «Гимназия №26» г. Набережные Челны","Кадыльская ","Анастасия","Андреевна","6",7,7,3,0,0,0,17,{"$nulls":4},"Наумович  Ирина  Николаевна","МБОУ «Гимназия №26» г. Набережные Челны"]
[86,"Набережные Челны","МАОУ «СОШ №40 с углубленным изучением отдельных предметов» г. Набережные Челны","Гарифуллин"," Рамиль ","Саматович","6",2,0,7,7,0,1,17,{"$nulls":4},"Карпова Любовь Ивановна","МАОУ «СОШ №40 с углубленным изучением отдельных предметов» г. Набережные Челны"]
[87,"Зеленодольский","МБОУ \"Лицей №1 Зеленодольского муниципального района РТ\"","Залялеев","Айдар","Альбертович","6",7,7,2,0,0,1,17,{"$nulls":4},"Перебатова Татьяна Александровна","МБОУ \"Лицей №1 Зеленодольского муниципального района РТ\""]
[88,"Альметьевский","МАОУ \"Средняя общеобразовательная школа №7\" г. Альметьевска, РТ","Шакирова","Аделина","Рустемовна","6",7,7,2,0,0,1,17,{"$nulls":4},"Селиверстова Екатерина Александровна","МАОУ \"Средняя общеобразовательная школа №7\" г. Альметьевска, РТ"]
[89,"Набережные Челны","МБОУ «Гимназия №26» г. Набережные Челны","Власов","Николай","Алексеевич","6",7,7,2,0,0,1,17,{"$nulls":4},"Наумович  Ирина  Николаевна","МБОУ «Гимназия №26» г. Набережные Челны"]
[90,"Черемшанский","МБОУ «Черемшанский лицей» Черемшанского муниципального района РТ (Школа - центр компетенции в электронном образовании)","Гайнуллина ","Камиля","Радифовна","6",6,7,3,0,1,0,17,{"$nulls":4},"Сахабиева Эльвира Маратовна","МБОУ «Черемшанский лицей» Черемшанского муниципального района РТ (Школа - центр компетенции в электронном образовании)"]
[91,"Ново-Савиновский","МБОУ \"Гимназия №155 с татарским языком обучения\" Ново-Савиновского района г.Казани","Маслахова","Аделина","Альбертовна","6",7,7,3,0,0,0,17,{"$nulls":4},"Бикчантаев Раиль Муслихович","МБОУ \"Гимназия №155 с татарским языком обучения\" Ново-Савиновского района г.Казани"]
[92,"Сабинский","МБОУ «Евлаштауская средняя общеобразовательная школа» Сабинского муниципального района РТ","Минкабиров","Айзат","Гаптельнурович","6",7,7,3,0,0,0,17,{"$nulls":4},"Гафиятова Гулюса Айратовна","МБОУ «Евлаштауская средняя общеобразовательная школа» Сабинского муниципального района РТ"]
[93,"Советский","МБОУ «Лицей №149 с татарским языком обучения» Советского района г. Казани","Садыков","Асад","Русланович","6",7,7,3,0,0,0,17,{"$nulls":4},"Каримова Лилия Имелевна","МБОУ «Лицей №149 с татарским языком обучения» Советского района г. Казани"]
[94,"Ново-Савиновский","МБОУ «Средняя общеобразовательная школа № 9 с углубленным изучением английского языка» Ново-Савиновского района г.Казани","Полищук","Оксана","Андреевна","6",7,7,3,0,0,0,17,{"$nulls":4},"Ахметзянова Алсу Салихзяновна","МБОУ «Средняя общеобразовательная школа № 9 с углубленным изучением английского языка» Ново-Савиновского района г.Казани"]
[95,"Балтасинский","МБОУ «Арборская основная общеобразовательная школа» Балтасинского муниципального района РТ","Шайхиева","Язгуль","Ришатовна","6",7,7,3,0,0,0,17,{"$nulls":4},"Фаляхов Габдельбар Гамберович","МБОУ «Арборская основная общеобразовательная школа» Балтасинского муниципального района РТ"]
[96,"Чистопольский","Муниципальное бюджетное общеобразовательное учреждение «Лицей №1» Чистопольского муниципального района Республики Татарстан","Новикова","Елена","Павловна","6",7,7,3,0,0,0,17,{"$nulls":4},"Яруллина Айгуль Талгатовна","Муниципальное бюджетное общеобразовательное учреждение «Лицей №1» Чистопольского муниципального района Республики Татарстан"]
[97,"Нижнекамский","МБОУ «Лицей №35» г. Нижнекамска Республики Татарстан","Кривова","Рената","Эдуардовна","6",7,7,2,0,0,1,17,3,"Задача 3. Можно считать доказанным, что Дима — лжец. По критериям 2 балла.\nПоднять оценку с 0 до 2.",null,null,"Усманова Назиря Исмагиловна","МБОУ «Лицей №35» г. Нижнекамска Республики Татарстан"]
[98,"Набережные Челны","МАОУ «Гимназия №76» г. Набережные Челны","Градобоева ","Арина ","Артемовна","6",7,7,2,0,0,0,16,"3,4 и 6","Задача 3. В решении сделан неверный вывод из утверждения, высказанного Ваней. Баллы соответствуют критериям.\nЗадача 4. Баллы соответствуют критериям. Дальнейшее продвижение отсутствует.\nЗадача 6. Баллы соответствуют критериям. Дальнейшее продвижение отсутствует",null,null,"Филиппова Надежда  Михайловна","МАОУ «Гимназия №76» г. Набережные Челны"]
[99,"Казань","Частное общеобразовательное учреждение \"Средняя общеобразовательная школа \"Усмания\" г. Казани","Аллаяров","Мухаммад","Шухратович","6",6,7,2,0,0,1,16,{"$nulls":4},"Фатыхов Ильсур Мулланурович","Частное общеобразовательное учреждение \"Средняя общеобразовательная школа \"Усмания\" г. Казани"]
[100,"Набережные Челны","МБОУ «Гимназия №26» г. Набережные Челны","Асафьев ","Игнат","Артемович","6",7,0,7,1,0,1,16,{"$nulls":4},"Наумович  Ирина  Николаевна","МБОУ «Гимназия №26» г. Набережные Челны"]
[101,"Зеленодольский","МБОУ \"Лицей №1 Зеленодольского муниципального района РТ\"","Сафин","Марат","Талипович","6",7,7,2,0,0,0,16,{"$nulls":4},"Перебатова Татьяна Александровна","МБОУ \"Лицей №1 Зеленодольского муниципального района РТ\""]
[102,"Набережные Челны","МБОУ «Гимназия №26» г. Набережные Челны","Касимов ","Ильнур","Данирович","6",7,7,0,2,0,0,{"$f":"SUM(H104:M104)","v":16},{"$nulls":4},"Краснова  Лидия  Егоровна","МБОУ «Гимназия №26» г. Набережные Челны"]
[103,"Нижнекамский","МБОУ «Гимназия №22» Нижнекамского муниципального района Республики Татарстан","Конюхов","Семён","Львович","6",7,0,7,0,0,1,15,{"$nulls":4},"Идиятуллина Альфия Минвалиевна","МБОУ «Гимназия №22» Нижнекамского муниципального района Республики Татарстан"]
[104,"Приволжский","МБОУ «Лицей №83» Приволжского района г. Казани","Павлов","Андрей","Эдуардович","6",5,7,3,0,0,0,15,{"$nulls":4},"Коткова Евгения Сергеевна","МБОУ «Лицей №83» Приволжского района г. Казани"]
[105,"Нижнекамский","МБОУ «Средняя общеобразовательная школа №31 с углубленным изучением предметов» г. Нижнекамска Республики Татарстан","Гималетдинова","Айсылу","Айдаровна","6",7,7,0,0,0,1,15,{"$nulls":4},"Гирфанова Венера Олеговна","МБОУ «Средняя общеобразовательная школа №31 с углубленным изучением предметов» г. Нижнекамска Республики Татарстан"]
[106,"Набережные Челны","МБОУ «Средняя общеобразовательная школа №58» г. Набережные Челны","Гарифьянова","Диана","Вадимовна","6",7,0,7,0,0,1,15,{"$nulls":4},"Сабирова Раиса Аглямовна","МБОУ «Средняя общеобразовательная школа №58» г. Набережные Челны"]
[107,"Зеленодольский","МБОУ «Лицей №9 имени А. С. Пушкина Зеленодольского муниципального района Республики Татарстан\"","Козлов","Кирилл","Александрович","6",7,7,0,0,0,1,15,{"$nulls":4},"Мишенькина Татьяна Ивановна","МБОУ «Лицей №9 имени А. С. Пушкина Зеленодольского муниципального района Республики Татарстан\""]
[108,"Нурлатский","Муниципальное автомное общеобразовательное учреждение «Средняя общеобразовательная школа №3\" г. Нурлат РеспубликиТатарстан","Мингалимова ","Гульназ","Ильхамовна","6",5,7,2,0,0,1,15,{"$nulls":4},"Давыдкина Ольга Николаевна","Муниципальное автомное общеобразовательное учреждение «Средняя общеобразовательная школа №3\" г. Нурлат РеспубликиТатарстан"]
[109,"Мензелинский","МБОУ «Средняя общеобразовательная школа №1» г. Мензелинска РТ","Рахманова","Алсу","Ильнаровна","6",7,5,3,0,0,0,15,{"$nulls":4},"Махасимова Екатерина Петровна","МБОУ «Средняя общеобразовательная школа №1» г. Мензелинска РТ"]
[110,"Ново-Савиновский","Муниципальное автономное образовательное учреждение \"Основная общеобразовательная Школа №30\" Ново-Савинского раона г.Казани","Шакирзянов","Юсуф","Ринатович","6",7,0,7,0,0,1,15,{"$nulls":4},"  ","Муниципальное автономное образовательное учреждение \"Основная общеобразовательная Школа №30\" Ново-Савинского раона г.Казани"]
[111,"Вахитовский","Муниципальное автономное общеобразовательное учреждение для детей, проявивших выдающиеся способности «Средняя общеобразовательная школа-интернат «Специализированный олимпиадно-научный центр «СОлНЦе» Вахитовского района г. Казани","Сенченкова","Софья","Владимировна","6",2,7,3,2,0,0,14,{"$nulls":4},"Королёв Юрий","Муниципальное автономное общеобразовательное учреждение для детей, проявивших выдающиеся способности «Средняя общеобразовательная школа-интернат «Специализированный олимпиадно-научный центр «СОлНЦе» Вахитовского района г. Казани"]
[112,"Кукморский","МБОУ «Многопрофильный лицей имени А.М. Булатова п.г.т. Кукмор» Кукморского муниципального района РТ","Аглиуллина","Диляра","Ранилевна","6",7,7,0,0,0,0,14,{"$nulls":4},"Кочергина Светлана Наилевна","МБОУ «Многопрофильный лицей имени А.М. Булатова п.г.т. Кукмор» Кукморского муниципального района РТ"]
[113,"Приволжский","МБОУ «Лицей №83» Приволжского района г. Казани","Царев","Диас","Сергеевич","6",7,7,0,0,0,0,14,{"$nulls":4},"Ахмеджанова Фарида Наилевна","МБОУ «Лицей №83» Приволжского района г. Казани"]
[114,"Сармановский","МБОУ «Джалильская средняя общеобразовательная школа №2» Сармановского муниципального района РТ. (Школа - центр компетенции в электронном образовании).","Фролов","Александр","Константинович","6",7,0,6,0,0,1,14,{"$nulls":4},"Ихсанова Римма Ильясовна","МБОУ «Джалильская средняя общеобразовательная школа №2» Сармановского муниципального района РТ. (Школа - центр компетенции в электронном образовании)."]
[115,"Балтасинский","МБОУ «Балтасинская гимназия» Балтасинского муниципального района РТ","Хабибуллин","Раян","Радикович","6",7,7,0,0,0,0,14,3,"Задача 3. Ни одно из сформулированных утверждений (таблица) не обосновано. Баллы без изменений",null,null,"\tХуснутдинова Юнусовна Роза","МБОУ «Балтасинская гимназия» Балтасинского муниципального района РТ"]
[116,"Ново-Савиновский","МБОУ «Гимназия №7» Ново-Савиновского района г.Казани. Школа-центр компетенции в электронном образовании","Алиев","Карим","Радикович","6",4,7,2,0,0,1,14,{"$nulls":4},"Гайнанова Мадина Газизовна","МБОУ «Гимназия №7» Ново-Савиновского района г.Казани. Школа-центр компетенции в электронном образовании"]
[117,"Набережные Челны","МБОУ «Гимназия №2 имени Мулланура Вахитова» г. Набережные Челны","Рахматуллина ","Диляра","Ришатовна","6",7,0,7,0,0,0,14,{"$nulls":4},"Егорова Раушания Леонидовна","МБОУ «Гимназия №2 имени Мулланура Вахитова» г. Набережные Челны"]
[118,"Набережные Челны","МАОУ «Средняя общеобразовательная школа №1» г. Набережные Челны","Якупова","Дания","Ильдаровна","6",7,0,7,0,0,0,14,{"$nulls":4},"Бикова Роза Ахатовна","МАОУ «Средняя общеобразовательная школа №1» г. Набережные Челны"]
[119,"Нижнекамский","МБОУ «Лицей №35» г. Нижнекамска Республики Татарстан","Бадгиев","Булат","Наилевич","6",2,7,3,0,1,1,14,{"$nulls":4},"Усманова Назиря Исмагиловна","МБОУ «Лицей №35» г. Нижнекамска Республики Татарстан"]
[120,"Набережные Челны","МАОУ «Гимназия №76» г. Набережные Челны","Файрузов ","Дмитрий ","Эдуардович","6",5,0,0,7,0,1,13,2.3,"Задача 2. Баллы соответствуют критериям. В разрезании две пары различных фигур\nЗадача 3. Ни одно из сформулированных утверждений не обосновано. Баллы без изменений",null,null,"Филиппова Надежда  Михайловна","МАОУ «Гимназия №76» г. Набережные Челны"]
[121,"Мензелинский","МБОУ «Средняя общеобразовательная школа №2» г. Мензелинска РТ \"Школа-центр компетенции в электронном образовании\"","Гилемов","Артур","Фархадович","6",6,7,0,0,0,0,13,{"$nulls":4},"Ботова татьяна Викторовна","МБОУ «Средняя общеобразовательная школа №2» г. Мензелинска РТ \"Школа-центр компетенции в электронном образовании\""]
[122,"Зеленодольский","МБОУ \"Лицей №1 Зеленодольского муниципального района РТ\"","Кунгурцев","Александр","Алексеевич","6",3,7,2,0,0,1,13,3,"Задача 3. Можно считать доказанным, что Дима — лжец. По критериям 2 балла.\nПоднять оценку с 0 до 2.",null,null,"Шамгунова Наиля Бургановна","МБОУ \"Лицей №1 Зеленодольского муниципального района РТ\""]
[123,"Зеленодольский","МБОУ \"Гимназия №3\" Зеленодольского муниципального района РТ ","Звонцев  ","Илья","Дмитриевич","6",2,7,0,2,0,1,12,{"$nulls":4},"Чеканина Ольга Геннадьевна","МБОУ \"Гимназия №3\" Зеленодольского муниципального района РТ "]
[124,"Набережные Челны","МАОУ «Гимназия №57» г. Набережные Челны","Загиров","Рузиль","Равилевич","6",2,7,0,2,1,0,{"$f":"SUM(H126:M126)","v":12},{"$nulls":4},"Барашкова Елена Васильевна","МАОУ «Гимназия №57» г. Набережные Челны"]
[125,"Нурлатский","МАОУ «Cредняя общеобразовательная школа №2» г.Нурлат Республики Татарстан","Гаязов ","Алмаз","Райсович","6",0,7,3,1,0,1,12,{"$nulls":4},"Файзуллина Гулина Рафаэлевна","МАОУ «Cредняя общеобразовательная школа №2» г.Нурлат Республики Татарстан"]
[126,"Набережные Челны","МБОУ «Гимназия №2 имени Мулланура Вахитова» г. Набережные Челны","Шакуров ","Ильназ ","Фанисович","6",2,7,2,1,0,0,12,{"$nulls":4},"Егорова Раушания Леонидовна","МБОУ «Гимназия №2 имени Мулланура Вахитова» г. Набережные Челны"]
[127,"Сабинский","МБОУ «Кильдебякская средняя общеобразовательная школа Сабинского муниципального района Республики Татарстан\"","Шамилов","Алмаз","Ильшатович","6",2,7,2,0,0,0,11,{"$nulls":4},"Фазылова Гузелия Габдуллаяновна","МБОУ «Кильдебякская средняя общеобразовательная школа Сабинского муниципального района Республики Татарстан\""]
[128,"Набережные Челны","МБОУ «Гимназия №26» г. Набережные Челны","Пискунов ","Степан","Александрович","6",7,0,2,0,0,1,10,{"$nulls":4},"Наумович  Ирина  Николаевна","МБОУ «Гимназия №26» г. Набережные Челны"]
[129,"Альметьевский","МБОУ «Гимназия №1 им. Ризы Фахретдина» г.Альметьевска РТ","Асадуллин ","Айдар ","Ильдарович","6",3,7,0,0,0,0,10,{"$nulls":4},"Рассадина  Венера Кашифовна","МБОУ «Гимназия №1 им. Ризы Фахретдина» г.Альметьевска РТ"]
[130,"Авиастроительный","Муниципальное бюджетное общеобразовательное учреждение «Гимназия №5» Авиастроительного района г. Казани","Галиев","Булат","Ильсурович","6",3,7,0,0,0,0,10,{"$nulls":4},"Гизатуллина Фавзия Габделисламовна","Муниципальное бюджетное общеобразовательное учреждение «Гимназия №5» Авиастроительного района г. Казани"]
[131,"Сабинский","МБОУ \"Средняя общеобразовательная школа-интернат с углубленным изучением отдельных предметов для одаренных детей\" Сабинского муниципального района Республики Татарстан","Шайхутдинов","Нур","Айдарович","6",7,0,3,0,0,0,10,{"$nulls":4},"Гаптерахимова Лейсан Саубановна","МБОУ \"Средняя общеобразовательная школа-интернат с углубленным изучением отдельных предметов для одаренных детей\" Сабинского муниципального района Республики Татарстан"]
[132,"Актанышский","МБОУ «Актанышская средняя общеобразовательная школа №1» Актанышского района РТ","Габдуллина","Алия","Раиловна","6",2,7,0,0,0,1,10,{"$nulls":4},"Атнагулова Елена Альбертовна","МБОУ «Актанышская средняя общеобразовательная школа №1» Актанышского района РТ"]
[133,"Елабужский","МБОУ «Средняя общеобразовательная школа №9 с углубленным изучением отдельных предметов» Елабужского муниципального района Республики Татарстан. Школа - центр компетенции в электронном образовании.","Гребёнкин","Дмитрий","Сергеевич","6",2,7,0,0,0,1,10,{"$nulls":4},"Хисамиева Резеда Мансуровна","МБОУ «Средняя общеобразовательная школа №9 с углубленным изучением отдельных предметов» Елабужского муниципального района Республики Татарстан. Школа - центр компетенции в электронном образовании."]
[134,"Кукморский","Муниципальное бюджетное общеобразовательное учреждение «Кукморская средняя школа №4» Кукморского муниципального района Республики Татарстан","Шаймарданов","Мирза ","Ильшатович","6",7,0,0,2,1,0,10,{"$nulls":4},"Федорова Эльвира Анатольевна","Муниципальное бюджетное общеобразовательное учреждение «Кукморская средняя школа №4» Кукморского муниципального района Республики Татарстан"]
[135,"Балтасинский","МБОУ «Пижмаринская основная общеобразовательная школа» Балтасинского муниципального района Республики Татарстан","Сулейманова","Айзиля","Айратовна","6",2,7,0,0,0,0,9,{"$nulls":4},"Сулейманова Разиля Габдельхановна","МБОУ «Пижмаринская основная общеобразовательная школа» Балтасинского муниципального района Республики Татарстан"]
[136,"Набережные Челны","МАОУ «Средняя общеобразовательная школа №56» г. Набережные Челны","Аскаров","Амир","Айдарович","6",2,7,0,0,0,0,9,{"$nulls":4},"Мирзаханова Гульсина Хазиповна","МАОУ «Средняя общеобразовательная школа №56» г. Набережные Челны"]
[137,"Заинский","МБОУ «Средняя общеобразовательная школа №3» Заинского муниципального района РТ","Кузнецов","Егор","Сергеевич","6",0,0,7,2,0,0,9,{"$nulls":4},"Юрченко Светлана Владимировна","МБОУ «Средняя общеобразовательная школа №3» Заинского муниципального района РТ"]
[138,"Заинский","МБОУ «Заинская средняя общеобразовательная школа №4» Заинского муниципального района РТ","Рыжова","Анна","Евгеньевна","6",2,0,7,0,0,0,9,{"$nulls":4},"Александрова Наталия Николаевна","МБОУ «Заинская средняя общеобразовательная школа №4» Заинского муниципального района РТ"]
[139,"Альметьевский","Муниципальное автономное общеобразовательное учреждение «Гимназия №5» г. Альметьевска РТ","Садыкова","Диана","Руслановна","6",2,7,0,0,0,0,9,{"$nulls":4},"Валеева Сария Нурутдиновна","Муниципальное автономное общеобразовательное учреждение «Гимназия №5» г. Альметьевска РТ"]
[140,"Ново-Савиновский","МБОУ \"Гимназия №155 с татарским языком обучения\" Ново-Савиновского района г.Казани","Минсагирова","Сафия","Ильнуровна","6",5,0,3,0,0,1,9,{"$nulls":4},"Бикчантаев Раиль Муслихович","МБОУ \"Гимназия №155 с татарским языком обучения\" Ново-Савиновского района г.Казани"]
[141,"Вахитовский","МБОУ «Гимназия №96» Вахитовского района г. Казани","Гайнетдинов","Марат","Рафаэлевич","6",2,2,3,0,0,0,7,{"$nulls":4},"Луконина Светлана Юрьевна","МБОУ «Гимназия №96» Вахитовского района г. Казани"]
[142,"Нурлатский","МБОУ «Егоркинская средняя общеобразовательная школа» Нурлатского муниципального района Республики Татарстан\"","Трофимов ","Кирилл","Сергеевич","6",2,2,2,0,0,0,6,{"$nulls":4},"Тверскова наталья Петровна","МБОУ «Егоркинская средняя общеобразовательная школа» Нурлатского муниципального района Республики Татарстан\""]
[143,"Арский","МБОУ «Смак Корсинская СОШ» Арского МР РТ","Хуснутдинов ","Ильсаф","Ильхамович","6",6,0,0,0,0,0,6,{"$nulls":4},"Хаирова Гулия Сагидулловна","МБОУ «Смак Корсинская СОШ» Арского МР РТ"]
[144,"Нурлатский","МАОУ «Cредняя общеобразовательная школа №2» г.Нурлат Республики Татарстан","Магизов ","Ильназ","Рафисович","6",2,0,3,1,0,0,6,"1,3 и 6","Задача 1. Сформулированные утверждения не обоснованы. Баллы \nЗадача 3. Можно считать верно рассмотренным только случай, что Ваня — рыцарь. По критериям +1 балл.  В случае, когда Ваня — лжец, не рассмотрен случай, когда лжецы — все трое. \nПоднять оценку с 0 до 3.\nЗадача 6. Баллы соответствуют критериям. Дальнейшее продвижение отсутствует.",null,null,"Нургатина Гульнара Ильдусовна","МАОУ «Cредняя общеобразовательная школа №2» г.Нурлат Республики Татарстан"]
[145,"Балтасинский","МБОУ «Смаильская средняя общеобразовательная школа» Балтасинского муниципального района РТ","Салихзянов","Амир","Рафилович","6",2,0,3,0,0,0,5,{"$nulls":4},"Салихзянова Василя Хакимзяновна","МБОУ «Смаильская средняя общеобразовательная школа» Балтасинского муниципального района РТ"]
[146,"Нурлатский","МБОУ «Фомкинская средняя общеобразовательная школа » Нурлатского муниципального района Республики Татарстан","Гумерова ","Лейсан","Фанисовна","6",2,2,0,0,0,0,4,{"$nulls":4},"Сулейманова Раиля Загитовна","МБОУ «Фомкинская средняя общеобразовательная школа » Нурлатского муниципального района Республики Татарстан"]
[147,"Набережные Челны","МБОУ «Средняя общеобразовательная школа №19 с углубленным изучением отдельных предметов» г. Набережные Челны","Голубева","Анастасия","Евгеньевна","6",2,0,0,0,0,1,3,{"$nulls":4},"Гимадиева Зульфира Ибраевна","МБОУ «Средняя общеобразовательная школа №19 с углубленным изучением отдельных предметов» г. Набережные Челны"]
[148,"Нурлатский","МАОУ «Средняя общеобразовательная школа №4» г.Нурлат РТ","Гильманова ","Назиля ","Маратовна","6",2,0,0,0,0,0,2,{"$nulls":4},"Лукьянова Фарида Салиховна","МАОУ «Средняя общеобразовательная школа №4» г.Нурлат РТ"]
[149,"Нурлатский","МАОУ «Средняя общеобразовательная школа №1» города Нурлат РТ","Захаров ","Михаил","Сергеевич","6",0,0,0,0,0,0,0,{"$nulls":4},"Гибадуллина Гульшат Ильсуаровна","МАОУ «Средняя общеобразовательная школа №1» города Нурлат РТ"]
[{"$nulls":13},{"$f":"SUM(H152:M152)","v":0}]
[{"$nulls":13},{"$f":"SUM(H153:M153)","v":0}]

{"sheet":"5","index":2,"n_rows":158,"n_cols":21,"rows_kept":158,"merged":[[0,0,0,19]]}
["Протокол заключительного этапа республиканской олимпиады по математике в 2016-2017 учебном году"]
["№ п/п","Муниципалитет","Полное наименование образовательного учреждения (по уставу)","Фамилия","Имя","Отчество","Класс",1,2,3,4,5,6,"сумма","апелляция по задачам","результат","статус"]
[1,"Ново-Савиновский","МАОУ «Средняя общеобразовательная школа №146 с углубленным изучением отдельных предметов» Ново-Савиновского района г. Казани","Трапезников","Роман","Дмириевич",5,7,7,7,7,7,7,{"$f":"SUM(H3:M3)","v":42},null,null,"Победитель","Ягина\tЕлена\tВикторовна","МАОУ «Средняя общеобразовательная школа №146 с углубленным изучением отдельных предметов» Ново-Савиновского района г. Казани","19.05.2005","муж"]
[2,"Верхнеуслонский","Государственное автономное образовательное учреждение «Школа Иннополис»","Алишева ","Камалия ","Равилевна",5,7,7,7,7,6,7,41,null,null,"призер","Липатов Михаил Валерьевич","Государственное автономное образовательное учреждение «Школа Иннополис»","04.09.2005","жен"]
[3,"Вахитовский","МБОУ «Открытая (сменная) общеобразовательная школа №12» Вахитовского района г. Казани","Пейсахов","Эйтан","Иридович",5,7,7,7,7,6,7,41,5,"№ 5 без изменений - согласно критериям, не организован последовательный процесс от одного участника к другому. Между появлением первого участника в круге и всем кругом нет связки.","призер","Гайнутдинова Айгуль Рашатовна","МБОУ «Открытая (сменная) общеобразовательная школа №12» Вахитовского района г. Казани","09.11.2005","муж"]
[4,"Приволжский","МБОУ «Лицей №83» Приволжского района г. Казани","Хамидуллин","Ильнур","Альбертович",5,7,7,7,7,6,7,41,null,null,"призер","Шарапова Гулия Рашадовна","МБОУ «Лицей №83» Приволжского района г. Казани","22.03.2005","муж"]
[5,"Нижнекамский","МБОУ «Гимназия №32» г. Нижнекамска Республики Татарстан","Шамсемухаметов","Радмир","Ранасович",5,7,7,7,7,6,7,41,null,null,"призер","Шакирова Алсу Анасовна","МБОУ «Гимназия №32» г. Нижнекамска Республики Татарстан","09.06.2005","муж"]
[6,"Вахитовский","МБОУ «Гимназия №96» Вахитовского района г. Казани","Гизатуллин","Тимур","Ильясович",5,7,7,7,7,7,5,40,null,null,"призер","Сафина Гульшат Габдельбареевна","МБОУ «Гимназия №96» Вахитовского района г. Казани","28.09.2005","муж"]
[7,"Московский","МБОУ \"Гимназия №122 имени Ж.А Зайцевой\" Московского района г.Казани","Куценко","Роберт","Дмитриевич",5,7,7,7,7,3,5,36,null,null,"призер","Жарова Гузель Закиевна","МБОУ \"Гимназия №122 имени Ж.А Зайцевой\" Московского района г.Казани","11.01.2005","муж"]
[8,"Ново-Савиновский","МАОУ «Средняя общеобразовательная школа №146 с углубленным изучением отдельных предметов» Ново-Савиновского района г. Казани","Саитов ","Дамир","Рустемович",5,7,7,7,7,0,7,35,null,null,"призер","Ягина Елена Викторовна","МАОУ «Средняя общеобразовательная школа №146 с углубленным изучением отдельных предметов» Ново-Савиновского района г. Казани","08.11.2005","муж"]
[9,"Вахитовский","МБОУ «Лицей №116» Вахитовского района г. Казани","Волков","Артем","Данилович",5,7,7,7,7,6,0,34,null,null,"призер","Гаптерахимова Танзиля Таснимовна","МБОУ «Лицей №116» Вахитовского района г. Казани","18.05.2005","муж"]
[10,"Приволжский","МБОУ «Лицей №83» Приволжского района г. Казани","Пакканен","Мария","Александровна",5,7,7,7,7,6,0,34,5,"№ 5 без изменений - согласно критериям, не организован последовательный процесс от одного участника к другому. Есть три тройки, а потом сразу целый круг ","призер","Шарапова Гулия Рашатовна","МБОУ «Лицей №83» Приволжского района г. Казани","04.08.2005","жен"]
[11,"Альметьевский","МАОУ \"Лицей №2\" г.Альметьевска","Сираев","Роберт"," Рустемович",5,7,7,7,0,6,7,34,null,null,"призер","Чернова Лариса Ивановна","МАОУ \"Лицей №2\" г.Альметьевска","14.03.2005","муж"]
[12,"Кировский","МБОУ \"Средняя общеобразовательная школа №151 с углубленным изучением отдельных предметов\" Кировского района г.Казани","Григорьянц","Даниль","Денисович",5,5,7,7,7,7,0,33,null,null,"призер","Мамаева Надежда Геннадьевна","МБОУ \"Средняя общеобразовательная школа №151 с углубленным изучением отдельных предметов\" Кировского района г.Казани","11.01.2006","муж"]
[13,"Рыбно-Слободский","МБОУ «Кугарчинская средняя общеобразовательная школа» Рыбно-Слободского муниципального района РТ","Зайнуллин","Ильназ","Ильясович",5,7,7,7,7,5,0,33,5,"без изменений\nсогласно критериям: не организован последовательный процесс от одного участника к другому; не прописано с кого мы точно начинаем","призер","Сагирова Сания Сабирзяновна","МБОУ «Кугарчинская средняя общеобразовательная школа» Рыбно-Слободского муниципального района РТ","28.11.2005","муж"]
[14,"Приволжский","МАОУ «Гимназия №19» Приволжского района г. Казани","Маликов","Тимур","Маратович",5,7,7,7,0,5,7,33,5,"без изменений\nбездоказательное утверждение, что комбинации ррл склеиваются в круг только одним способом; нет в явном виде утверждения, что соседи лжеца однотипны, а соседи рыцаря разные","призер","Стахева Наталья Вадимовна","МАОУ «Гимназия №19» Приволжского района г. Казани","25.05.2005","муж"]
[15,"Ново-Савиновский","МБОУ «Средняя общеобразовательная школа №170 с углублённым изучением отдельных предметов» Ново-Савиновского района г. Казани","Поливин","Никита","Евгеньевич",5,7,7,7,0,7,5,33,4,"№4 без изменений - вычислительная ошибка 2016+1*6=2024. Все остальные действия вытекают их первого","призер","Логинова Евгения Валентиновна","МБОУ «Средняя общеобразовательная школа №170 с углублённым изучением отдельных предметов» Ново-Савиновского района г. Казани","18.10.2005","муж"]
[16,"Бугульминский","МБОУ «Средняя общеобразовательная школа №6 с углубленным изучением отдельных предметов» Бугульминского муниципального района РТ","Усманов","Тимур","Ринатович",5,7,7,7,0,7,5,33,4,"без изменений\nне верный ответ, школьник считал, что число на доске не меняется, неверно понял условие","призер","Ерзина Альфия Ильхановна","МБОУ «Средняя общеобразовательная школа №6 с углубленным изучением отдельных предметов» Бугульминского муниципального района РТ","20.03.2005","муж"]
[17,"Набережные Челны","МАОУ «Гимназия №77» г. Набережные Челны","Чекардов ","Михаил","Романович",5,7,7,7,7,5,0,33,null,null,"призер","Раимова  Клара  Михайловна","МАОУ «Гимназия №77» г. Набережные Челны","11.08.2005","муж"]
[18,"Вахитовский","Муниципальное автономное общеобразовательное учреждение для детей, проявивших выдающиеся способности «Средняя общеобразовательная школа-интернат «Специализированный олимпиадно-научный центр «СОлНЦе» Вахитовского района г. Казани","Шубин","Максим","Родионович",5,7,7,7,0,7,5,33,null,null,"призер","Сегинёв Александр Сергеевич","Муниципальное автономное общеобразовательное учреждение для детей, проявивших выдающиеся способности «Средняя общеобразовательная школа-интернат «Специализированный олимпиадно-научный центр «СОлНЦе» Вахитовского района г. Казани","22.07.2005","муж"]
[19,"Приволжский","МБОУ «Лицей №83» Приволжского района г. Казани","Валиуллин","Рафаэль","Разифович",5,7,6,7,7,5,0,32,2.5,"№2 +3 балла (итого 6) - забыл записать ответ; №5 без изменений - в некоторых случаях рассмотрены не все возможные расстановки рыцарей относительно друг друга","призер","Шарапова Гулия Рашадовна","МБОУ «Лицей №83» Приволжского района г. Казани","05.01.2005","муж"]
[20,"Набережные Челны","МАОУ «Гимназия №26» г. Набережные Челны","Герасимов","Владислав","Владимирович",5,7,7,7,7,4,0,32,null,null,"призер"]
[21,"Нижнекамский","Муниципальное бюджетное общеобразовательное учреждение «Средняя общеобразовательная школа №16 с углубленным изучением отдельных предметов» г. Нижнекамска Республики Татарстан","Догадин","Денис","Александрович",5,7,6,7,7,4,1,32,null,null,"призер","Галиулина Дилия Рамилевна","Муниципальное бюджетное общеобразовательное учреждение «Средняя общеобразовательная школа №16 с углубленным изучением отдельных предметов» г. Нижнекамска Республики Татарстан","16.03.2005","муж"]
[22,"Приволжский","МАОУ «Гимназия №19» Приволжского района г. Казани","Зиятдинов","Карим","Ильдарович",5,5,7,7,7,6,0,32,1.5,"№1 без изменений - согласно критериям, число найдено, но нет проверки, что оно подходит; №5 без изменений - не организован последовательный процесс от одного участника к другому, есть первый человек, соседи и сразу целый круг","призер","Стахева Наталья Вадимовна","МАОУ «Гимназия №19» Приволжского района г. Казани","17.08.2005","муж"]
[23,"Московский","МБОУ \"Гимназия №75\" Московского района г. Казани","Александров","Владислав","Дмитриевич",5,7,7,7,7,3,0,31,"в олимпиаде участие принимал, но в протоколе его нет","ребенок есть в протоколе, возможно, искал себя среди учеников другого класса","призер",null,"МБОУ \"Гимназия №75\"",null,"муж"]
[24,"Набережные Челны","МБОУ «Гимназия №26» г. Набережные Челны","Гайнуллина  ","Амина ","Алмазовна",5,7,7,7,0,7,3,31,null,null,"призер","Наумович  Ирина  Николаевна","МБОУ «Гимназия №26» г. Набережные Челны","03.07.2005","жен"]
[25,"Вахитовский","МБОУ \"Лицей №116\"","Хуснуллин","Асгат","Халитович",5,7,7,7,7,3,0,31,null,null,"призер"]
[26,"Ново-Савиновский","МБОУ «Гимназия №7» Ново-Савиновского района г.Казани. Школа-центр компетенции в электронном образовании","Загидуллин","Даниэль","Маратович",5,5,7,7,7,4,0,30,1.6,"№1 без изменений - согласно критериям, число найдено, но нет проверки, что оно подходит; №6 без изменений - из предложенной схемы видно, что если кролик первым ходом сходит на 1, то у Алисы нет стратегии","призер","Гайнанова Мадина Газизовна","МБОУ «Гимназия №7» Ново-Савиновского района г.Казани. Школа-центр компетенции в электронном образовании","10.01.2005","муж"]
[27,"Советский","МБОУ \"Лицей №83\" Приволжского района г. Казани","Габидовский","Ислам","Айдарович",5,7,7,7,7,0,1,29,null,null,"призер","Шарапова Гулия Рашатовна","МБОУ \"Лицей №83\" Приволжского района г. Казани",null,"муж"]
[28,"Лаишевский","МБОУ «Средняя общеобразовательная школа №2 г. Лаишево»","Галимов","Адель","Камилевич",5,7,7,7,0,4,4,29,null,null,"призер","Кренкова Татьяна Александровна","МБОУ «Средняя общеобразовательная школа №2 г. Лаишево»","09.08.2005","муж"]
[29,"Приволжский","МБОУ \"Лицей №78 \"Фарватер\" Приволжского района г. Казани","Глинкин","Даниил","Андреевич",5,7,0,7,7,3,5,29,null,null,"призер","Тихонова Анастасия Алексеевна","МБОУ \"Лицей №78 \"Фарватер\" Приволжского района г. Казани","03.04.2005","муж"]
[30,"Ново-Савиновский","МБОУ \"Средняя общеобразовательная школа №179 с углубленным изучением отдельных предметов\" Ново-Савиновского района города Казани","Евстафьев","Андрей","Евгеньевич",5,7,7,7,0,7,1,29,null,null,"призер","Исмагилова Гузель Рафизовна","МБОУ \"Средняя общеобразовательная школа №179 с углубленным изучением отдельных предметов\" Ново-Савиновского района города Казани","02.02.2005","муж"]
[31,"Чистопольский","Муниципальное бюджетное общеобразовательное учреждение «Средняя общеобразовательная школа №1» Чистопольского муниципального района Республики Татарстан","Публиков","Ярослав","Юрьевич",5,7,7,7,7,1,0,29,null,null,"призер","Салахова Гузель Талиповна","Муниципальное бюджетное общеобразовательное учреждение «Средняя общеобразовательная школа №1» Чистопольского муниципального района Республики Татарстан","11.06.2005","муж"]
[32,"Зеленодольский","МБОУ «Васильевская средняя общеобразовательная школа №3 Зеленодольского муниципального района РТ\"","Саетова","Алина","Евгеньевна",5,7,7,7,7,1,0,29,null,null,"призер","Наумова Елена Николаевна","МБОУ «Васильевская средняя общеобразовательная школа №2» Зеленодольского муниципального района РТ",null,"жен"]
[33,"Альметьевский","МБОУ «Гимназия №1 им. Ризы Фахретдина» г.Альметьевска РТ","Ахметжанов ","Риналь ","Ринатович",5,7,7,7,0,7,0,{"$f":"SUM(H35:M35)","v":28},null,null,"призер","Ашрапова  Танзиля  Хазиевна","МБОУ «Гимназия №1 им. Ризы Фахретдина» г.Альметьевска РТ","11.04.2005","муж"]
[34,"Лениногорский","МБОУ «Лениногорская средняя общеобразовательная школа №6» Лениногорского муниципального района РТ","Гаврилова","Анна","Алексеевна",5,7,7,7,0,7,0,28,null,null,"призер","Михайлова Наталья Евгеньевна","МБОУ «Лениногорская средняя общеобразовательная школа №6» Лениногорского муниципального района РТ","02.03.2005","жен"]
[35,"Сабинский","МБОУ «Тимершикская средняя общеобразовательная школа Сабинского муниципального района Республики Татарстан\"","Давлитов","Баязит","Ильнарович",5,7,7,7,0,7,0,28,6,"без изменений\nв решении не указано кто именно из игроков может гарантировать себе победу и как он должен для этого играть","призер","Валиева Ландыш Аглямзяновна","МБОУ «Тимершикская средняя общеобразовательная школа Сабинского муниципального района Республики Татарстан\"","30.01.2005","муж"]
[36,"Вахитовский","Муниципальное автономное общеобразовательное учреждение для детей, проявивших выдающиеся способности «Средняя общеобразовательная школа-интернат «Специализированный олимпиадно-научный центр «СОлНЦе» Вахитовского района г. Казани","Даминдарова","Диана","Раяновна",5,7,7,7,0,7,0,28,null,null,"призер","Сегинёв Александр Сергеевич","Муниципальное автономное общеобразовательное учреждение для детей, проявивших выдающиеся способности «Средняя общеобразовательная школа-интернат «Специализированный олимпиадно-научный центр «СОлНЦе» Вахитовского района г. Казани","18.05.2005","жен"]
[37,"Ново-Савиновский","МБОУ «Средняя общеобразовательная школа №49» Ново-Савиновского района г. Казани","Кочкаров","Эрхаз","исмаилович",5,7,7,7,7,0,0,28,6,"без изменений - повторение ходов кролика не приведет Алису к успеху. Кролик может одним ходом преодолеть расстояние между ними и выиграть","призер","Асадуллина Эльза Ринатовна","МБОУ «Средняя общеобразовательная школа №49» Ново-Савиновского района г. Казани","07.01.2005","муж"]
[38,"Набережные Челны","МБОУ «Гимназия №26» г. Набережные Челны","Маннанов  ","Арслан ","Маратович",5,7,7,7,0,7,0,28,null,null,"призер","Наумович  Ирина  Николаевна","МБОУ «Гимназия №26» г. Набережные Челны","18.04.2005","муж"]
[39,"Ново-Савиновский","МБОУ «Гимназия №7» Ново-Савиновского района г.Казани. Школа-центр компетенции в электронном образовании","Сафин","Булат","Рамилевич",5,7,7,7,0,7,0,28,null,null,"призер","Гайнанова Мадина Газизовна","МБОУ «Гимназия №7» Ново-Савиновского района г.Казани. Школа-центр компетенции в электронном образовании","20.12.2005","муж"]
[40,"Арский","МБОУ «Арская НОШ №3 - детский сад» Арского МР РТ","Хакимов","Камиль","Маратович",5,7,7,7,7,0,0,28,null,null,"призер","Хайруллин Рафаэль Ильязович","МБОУ «Арская НОШ №3 - детский сад» Арского МР РТ",null,"муж"]
[41,"Нижнекамский","МБОУ «Лицей №35» г. Нижнекамска Республики Татарстан","Харитонов","Артемий","Алексеевич",5,7,7,7,0,7,0,28,6,"без изменений\nв решении не указано как именно должна играть Алиса, чтобы  гарантировать себе победу. Если она будет повторять ходы кролика, то проиграет (Кролик последним ходом сократит расстояние между ними до нуля)","призер","Корягина Юлия Вячеславовна","МБОУ «Лицей №35» г. Нижнекамска Республики Татарстан","05.02.2005","муж"]
[42,"Альметьевский","НОУ «Средняя общеобразовательная школа №23 «Менеджер» Альметьевского муниципального района РТ","Шакиров","Карим","Ильнурович",5,7,7,7,0,7,0,28,null,null,"призер","Ильина Ирина Юрьевна ","НОУ «Средняя общеобразовательная школа №23 «Менеджер» Альметьевского муниципального района РТ","22.01.2006","муж"]
[43,"Московский","МБОУ \"Гимназия №94\" Московского района г. Казани","Ягафаров","Раиль",null,5,7,7,7,0,4,3,28,null,null,"призер"]
[44,"Вахитовский","МАОУ «Средняя общеобразовательная школа №39 с углубленным изучением английского языка» Вахитовского района г. Казани","Ахметьянов","Аскар","Рашидович",5,7,6,7,0,7,0,27,2.6,"№2 +3 балла (итого 6) - допущена вычислительная ошибка; №6 без изменений - предложенная схема не приводит к победе кого-либо из игроков ","призер","Шайхулова Евгения Андреевна","МАОУ «Средняя общеобразовательная школа №39 с углубленным изучением английского языка» Вахитовского района г. Казани","17.08.2005","муж"]
[45,"Бавлинский","МБОУ «Средняя общеобразовательная школа №3» Бавлинского муниципального района РТ/Татарстан Республикасы Баулы муниципаль районы муниципаль бюджет гомуми белем учреждениесе «Ю.А.Гагарин исемендәге өченче санлы урта гомуми белем мәктәбе»","Валиуллина","Иделия","Ильшатовна",5,7,7,7,0,6,0,27,null,null,"призер","Гайнутдинова Ольга Николаевна","МБОУ «Средняя общеобразовательная школа №3» Бавлинского муниципального района РТ/Татарстан Республикасы Баулы муниципаль районы муниципаль бюджет гомуми белем учреждениесе «Ю.А.Гагарин исемендәге өченче санлы урта гомуми белем мәктәбе»","15.03.2006","жен"]
[46,"г. Набережные Челны","МАОУ \"Гимназия №76\" г. Набережные Челны","Вахитова","Карина","Ринатовна",5,7,7,7,0,6,0,27,null,null,"призер",null,"МАОУ \"Гимназия №76\"",null,"жен"]
[47,"Московский","МБОУ \"Гимназия №122 имени Ж.А Зайцевой\" Московского района г.Казани","Губанова","Арина","Евгеньевна",5,7,5,7,7,1,0,27,null,null,"призер","Маслова Елена Владимировна","МБОУ \"Гимназия №122 имени Ж.А Зайцевой\" Московского района г.Казани","17.11.2004","жен"]
[48,"Московский","МБОУ \"Гимназия №122 имени Ж.А Зайцевой\" Московского района г.Казани","Карпова","Ксения","Олеговна",5,7,7,7,0,6,0,27,null,null,"призер","Жарова Гузель Закиевна","МБОУ \"Гимназия №122 имени Ж.А Зайцевой\" Московского района г.Казани","30.06.2005","жен"]
[49,"Нижнекамский","МБОУ «Лицей №35» г. Нижнекамска Республики Татарстан","Сабирьянова","Регина","Руслановна",5,7,7,7,0,5,1,27,"4,5,6","№ 4 без изменений - неверный ответ, школьник не учел, что число, написанное на доске, меняется; \n№5 без изменений - нет примера на 5 лжецов, только утверджение, что при этом количестве лжецы и рыцари будут стоять согласно условиям, при другом количестве лжецов переход от количества к конечной картинке не прописан; \n№6 +1 балл (итого 1) - описано, что разница 3 выигрышная для второго игрока. Стратегия ответа 1 на 2 и 2 на 1 не описана в общем виде, только для разницы 3","призер","Корягина Юлия Вячеславовна","МБОУ «Лицей №35» г. Нижнекамска Республики Татарстан","09.01.2005","жен"]
[50,"Набережные Челны","МАОУ «Гимназия №76» г. Набережные Челны","Хомин ","Максим ","Вячеславович",5,7,7,7,0,6,0,27,null,null,"призер","Айзатуллова  Анися  Арифулловна","МАОУ «Гимназия №76» г. Набережные Челны","23.05.2005","муж"]
[51,"Агрызский","МБОУ  Средняя общеобразовательная школа № 4 г. Агрыз Агрызского муниципального района РТ","Шайхайдаров","Артур ","Альбертович",5,0,7,7,7,6,0,27,null,null,"призер","Самарцева Светлана Юрьевна","МБОУ  Средняя общеобразовательная школа № 4 г. Агрыз Агрызского муниципального района РТ","22.12.2005","муж"]
[52,"Альметьевский","МАОУ \"Средняя общеобразовательная школа №7\" г. Альметьевска, РТ","Бехтерев ","Павел","Павлович",5,7,7,7,0,5,0,26,null,null,"призер","Шарипов Ильнур Халитович","МАОУ \"Средняя общеобразовательная школа №7\" г. Альметьевска, РТ","24.11.2004","муж"]
[53,"Ново-Савиновский","МАОУ «Средняя общеобразовательная школа №165 с углубленным изучением английского языка» Ново-Савиновского района г.Казани","Вильданов","Руслан","Юрьевич",5,7,7,7,0,5,0,26,null,null,"призер","Панкратова Елена Николаевна","МАОУ «Средняя общеобразовательная школа №165 с углубленным изучением английского языка» Ново-Савиновского района г.Казани","09.06.2005","муж"]
[54,"Арский","МБОУ «Арская СОШ №2» Арского МР РТ","Галаутдинов","Нияз","Анасович",5,7,7,7,0,5,0,26,null,null,"призер","Мухамметзянова Гульфина Явдатовна","МБОУ «Арская СОШ №2» Арского МР РТ",null,"муж"]
[55,"Набережные Челны","МБОУ «Гимназия №26» г. Набережные Челны","Зернова","Ксения ","Александровна",5,7,7,7,0,5,0,26,5.6,"без изменений\n№5 - согласно критериям: нет случая, что первый рыцарь, все объяснение начинается с лжеца; не организован последовательный процесс от одного участника к другому (первый, его соседи и сразу весь круг);\n№6 - указанный алгоритм для Алисы не работает. Крлик последним ходом может сходить на 2 деления, перескочить цифру 6 и выиграть","призер","Наумович  Ирина  Николаевна","МБОУ «Гимназия №26» г. Набережные Челны","11.06.2004","жен"]
[56,"Елабужский","МБОУ «Гимназия №4» Елабужского муниципального района Республики Татарстан","Карпов","Станислав","Андреевич",5,7,7,7,0,0,5,26,5.6,"без изменений\n№5 - согласно критериям: только один из ответов 5, 15 лжецов без пояснений или с неверным пояснением \n№6 - согласно критериям: представлен только алгоритм Алисы, обоснование не верное или не полное;","призер","Мингазова Вагиза Мирсаитовна","МБОУ «Гимназия №4» Елабужского муниципального района Республики Татарстан","08.08.2005","муж"]
[57,"Зеленодольский","МБОУ \"Гимназия №3\" Зеленодольского муниципального района РТ ","Коротков","Алексей","Александрович",5,7,7,7,0,5,0,26,null,null,"призер","Майстренко Оксана Юрьевна","МБОУ \"Гимназия №3\" Зеленодольского муниципального района РТ ",null,"муж"]
[58,"Чистопольский","Муниципальное бюджетное общеобразовательное учреждение «Лицей №1» Чистопольского муниципального района Республики Татарстан","Матвеева","Алина","Сергеевна",5,7,7,7,0,5,0,26,null,null,"призер","Зарипова Венера Ильдусовна","Муниципальное бюджетное общеобразовательное учреждение «Лицей №1» Чистопольского муниципального района Республики Татарстан","20.05.2005","жен"]
[59,"Приволжский","МАОУ \"Гимназия №19\" Приволжского района г. Казани","Миронов","Владимир","Александрович",5,7,7,7,0,5,0,26,4,"без изменений\nв цепочке есть ошибка 2038+2*8=2046. С этого момента вся цепочка нарушается","призер"]
[60,"Вахитовский","МБОУ «Гимназия №96» Вахитовского района г. Казани","Польский","Марк","Борисович",5,7,6,7,0,6,0,26,null,null,"призер","Сафина Гульшат Габдельбареевна","МБОУ «Гимназия №96» Вахитовского района г. Казани","11.02.2004","муж"]
[61,"Приволжский","МАОУ \"Гимназия №19\" Приволжского района г. Казани","Салихов","Амир",null,5,7,7,7,0,5,0,26,4.6,"без изменений\n№4 ответ не верен, пример не найден; №6 указанная стратегия не приводит к победе Алисы","призер"]
[62,"Кукморский","МБОУ «Многопрофильный лицей имени А.М. Булатова п.г.т. Кукмор» Кукморского муниципального района РТ","Филиппова","Александра","Николаевна",5,7,7,7,0,5,0,26,null,null,"призер","Кочергин Руслан Геннадьевич","МБОУ «Многопрофильный лицей имени А.М. Булатова п.г.т. Кукмор» Кукморского муниципального района РТ","08.03.2005","жен"]
[63,"Набережные Челны","МАОУ «Лицей №78 имени А.С.Пушкина» г. Набережные Челны","Хамзин       ","Рамиль","Денисович",5,7,7,7,0,5,0,26,null,null,"призер","Егорова Наталья Васильевна","МАОУ «Лицей №78 имени А.С.Пушкина» г. Набережные Челны","01.08.2005","муж"]
[64,"Набережные Челны","МАОУ «Гимназия №76» г. Набережные Челны","Чуракова ","Диана"," Дмитриевна",5,7,7,7,0,5,0,26,5.6,"без изменений\n№5 - рассмотрены только симметричные картинки (через одного, через два), нет объяснения, что невозможны другие случаи\n№6 - предложенная тактика (повторять ходы) не приведет Алису к успеху. Кроли последним ходом может сократить растояние до нуля и выиграть; написано, что Алиса должна подстраиваться под ходы кролика, не написано как именно.","призер","Шаруда Жанна Николаевна","МАОУ «Гимназия №76» г. Набережные Челны","11.11.2004","муж"]
[65,"Сабинский","МБОУ «Шеморданский лицей Сабинского муниципального района Республики Татарстан\"","Абсалихов ","Рустем","Габдельнурович",5,0,6,7,0,5,7,{"$f":"SUM(H67:M67)","v":25},4,"без изменения\nневерное понимание условия, ответ нельзя","призер","Батыршина Лилия Назиповна","МБОУ «Шеморданский лицей Сабинского муниципального района Республики Татарстан\"","13.05.2005","муж"]
[66,"Бугульминский","МБОУ «Лицей №2» Бугульминского муниципального района РТ, \"Школа - центр компетенции в электронном образовании\"","Вечкитов "," Кирилл ","Игоревич",5,7,6,7,0,5,0,25,null,null,"призер","Кудряшова Наталья Владимировна","МБОУ «Лицей №2» Бугульминского муниципального района РТ, \"Школа - центр компетенции в электронном образовании\"","13.05.2005","муж"]
[67,"Вахитовский","МАОУ \"Гимназия №96\" Вахитовского района г. Казани","Гражданцев","Арсений ","Андреевич",5,5,7,7,0,6,0,25,null,null,"призер"]
[68,"Рыбно-Слободский","МБОУ «Рыбно-Слободская средняя общеобразовательная школа №2» Рыбно-Слободского муниципального района РТ","Мустафин","Аяз","Наилевич",5,7,7,7,0,4,0,25,null,null,"призер","Королева Ольга Евгеньевна","МБОУ «Рыбно-Слободская средняя общеобразовательная школа №2» Рыбно-Слободского муниципального района РТ","03.02.2005","муж"]
[69,"Заинский","МБОУ «Средняя общеобразовательная школа №3» Заинского муниципального района РТ","Рябова","Татьяна","Алексеевна",5,7,7,7,0,4,0,25,null,null,"призер","Борисов Иван Александрович","МБОУ «Средняя общеобразовательная школа №3» Заинского муниципального района РТ","04.02.2005","жен"]
[70,"Ново-Савиновский","МБОУ «Гимназия №7» Ново-Савиновского района г.Казани. Школа-центр компетенции в электронном образовании","Сабирзанова","Арина","Айратовна",5,7,7,0,0,4,7,25,null,null,"призер"," Гайнанова Мадина Газизовна","МБОУ «Гимназия №7» Ново-Савиновского района г.Казани. Школа-центр компетенции в электронном образовании","16.09.2005","жен"]
[71,"Альметьевский","МАОУ \"Средняя общеобразовательная школа №7\" г. Альметьевска, РТ","Бехтерев ","Кирилл","Павлович",5,7,7,7,0,3,0,24,null,null,"призер"," Шарипов Ильнур Халитович","МАОУ \"Средняя общеобразовательная школа №7\" г. Альметьевска, РТ","24.11.2004","муж"]
[72,"Набережные Челны","Муниципальное бюджетное общеобразовательное учреждение г. Набережные Челны «Средняя общеобразовательная школа № 30»","Гумеров","Нияз","Айратович",5,7,7,7,0,3,0,24,null,null,"призер","Швецова Светлана Валерьевна","Муниципальное бюджетное общеобразовательное учреждение г. Набережные Челны «Средняя общеобразовательная школа № 30»","23.06.2005","муж"]
[73,"Приволжский","МАОУ \"Гимназия №19\" Приволжского района г. Казани","Гювенч","Эмрэ","Халитович",5,7,3,7,7,0,0,24,2,"№2 +1 балл (итого 3)- решение верное, не доведено до конца, нет никаких вычислений, только идея какие матчи проигрышные и ответ","призер"]
[74,"Бугульминский","МБОУ «Лицей №2» Бугульминского муниципального района РТ, \"Школа - центр компетенции в электронном образовании\"","Деканоидзе ","Михаил "," Гочевич",5,7,7,7,0,3,0,24,6,"без изменений\nидея четности числа 12 не приводит к решению, Алиса может проиграть при четном числе 10 и выиграть при нечетном числе 9.","призер","Кудряшова Наталья Владимировна","МБОУ «Лицей №2» Бугульминского муниципального района РТ, \"Школа - центр компетенции в электронном образовании\"","08.01.2005","муж"]
[75,"Вахитовский","МАОУ «Средняя общеобразовательная школа №39 с углубленным изучением английского языка» Вахитовского района г. Казани","Ларин","Алексей","Алексеевич",5,7,7,7,0,3,0,24,null,null,"призер","Шайхулова  Евгения Андреевна","МАОУ «Средняя общеобразовательная школа №39 с углубленным изучением английского языка» Вахитовского района г. Казани","17.01.2005","муж"]
[76,"Елабужский","МБОУ \"Средняя общеобразовательная школа №3 им. Героя Российской Федерации А.Н. Епанешникова\" Елабужского муниципального района РТ","Малыкина","Карина","Вадимовна",5,7,7,7,0,3,0,24,null,null,"призер","Балобанова Мария Ивановна","МБОУ \"Средняя общеобразовательная школа №3 им. Героя Российской Федерации А.Н. Епанешникова\" Елабужского муниципального района РТ","19.11.2005","жен"]
[77,"Альметьевский","МБОУ «Ерсубайкинская основная общеобразовательная школа\" Альметьевского муниципального района РТ","Миронов","Даниил","Алексеевич",5,7,0,7,7,3,0,24,null,null,"призер","Охотникова Светлана Владимировна","МБОУ «Ерсубайкинская основная общеобразовательная школа\" Альметьевского муниципального района РТ","16.03.2006","муж"]
[78,"Вахитовский","МАОУ СОШИ \"СОлНЦе\"","Нацибуллина","Милена","Вадимовна",5,7,0,7,7,3,0,24,2,"без изменений. В задаче указан только неверный ответ","призер"]
[79,"Сабинский","МБОУ «Кильдебякская средняя общеобразовательная школа Сабинского муниципального района Республики Татарстан\"","Харматуллина ","Дильбар","Ринатовна",5,0,7,7,0,5,5,24,5,"без изменений\nнет доказательства того, что нет других случаев. ","призер","Валиуллина Гульбика Ашрафуллаевна","МБОУ «Кильдебякская средняя общеобразовательная школа Сабинского муниципального района Республики Татарстан\"","12.10.2005","жен"]
[80,"Мензелинский","МБОУ «Гимназия» г. Мензелинска РТ - Школа Превосходства (CL), Ресурсный центр развития национального образования","Ахметов ","Рунар","Алмазович",5,7,6,7,0,3,0,23,{"$nulls":3},"Бочкарева Нина Николаевна","МБОУ «Гимназия» г. Мензелинска РТ - Школа Превосходства (CL), Ресурсный центр развития национального образования","05.01.2006","муж"]
[81,"Приволжский","МБОУ «Гимназия №6» Приволжского района г. Казани","Баширова","Адиля","Радиковна",5,7,7,7,0,2,0,23,{"$nulls":3},"Беляева Ризида Гумаровна","МБОУ «Гимназия №6» Приволжского района г. Казани",null,"жен"]
[82,"Вахитовский","МБОУ «Лицей №5» Вахитовского района г. Казани","Насыбуллин","Амин","Эдуардович",5,7,7,7,0,2,0,23,{"$nulls":3},"Вильданова Резеда Фаритовна","МБОУ «Лицей №5» Вахитовского района г. Казани","16.02.2005","муж"]
[83,"Набережные Челны","МБОУ «Гимназия №26» г. Набережные Челны","Пучинин","Артем ","Сергеевич",5,7,7,7,0,2,0,23,{"$nulls":3},"Наумович  Ирина  Николаевна","МБОУ «Гимназия №26» г. Набережные Челны","14.12.2004","муж"]
[84,"Авиастроительный","МБОУ «Гимназия №14» Авиастроительного района г. Казани","Андреев","Кирилл","Евгеньевич",5,7,7,7,0,1,0,22,{"$nulls":3},"Ишметова Фардана Гусмановна","МБОУ «Гимназия №14» Авиастроительного района г. Казани","23.06.2005","муж"]
[85,"Вахитовский","МБОУ «Лицей №149 с татарским языком обучения» Советского района г. Казани","Бильданов","Ибрагим","Дамирович",5,7,7,7,0,1,0,22,{"$nulls":3},"Бахитова Гелюся Ильгизяровна","МБОУ «Лицей №149 с татарским языком обучения» Советского района г. Казани","29.05.2005","муж"]
[86,"Приволжский","МБОУ «Лицей №83» Приволжского района г. Казани","Даниил","Ризаев","Маратович",5,7,7,7,0,1,0,22,{"$nulls":3},"Шарапова Гулия Рашатовна","МБОУ «Лицей №83» Приволжского района г. Казани","16.09.2005","муж"]
[87,"Московский","МБОУ \"Татарская гимназия №2 имени Шигабутдина Марджани при К(П)ФУ\"","Камалиева","Камилла","Леонидовна",5,7,7,7,0,1,0,22,{"$nulls":4},"МБОУ \"Татарская гимназия №2 имени Шигабутдина Марджани при К(П)ФУ\"",null,"жен"]
[88,"Набережные Челны","МАОУ «Гимназия №57» г. Набережные Челны","Кашапов  ","Амир","Айратович",5,7,7,7,0,0,1,22,6,"без изменений\nприведен один способ игры, использована стратегия 2-1, но явно не описана. В конце примера игры ошибка: Кролик ходит с 4 на 5, а Алиса с 7 на 6. На этом решение кончается",null,"Барашкова Елена Васильевна","МАОУ «Гимназия №57» г. Набережные Челны","29.04.2005","муж"]
[89,"Набережные Челны","МАОУ «Лицей №78 имени А.С.Пушкина» г. Набережные Челны","Нуриахметова","Аделина","Марсельевна",5,7,7,7,0,1,0,22,{"$nulls":3},"Хабибрахманова Фарида Масхутовна","МАОУ «Лицей №78 имени А.С.Пушкина» г. Набережные Челны","29.08.2004","жен"]
[90,"Лениногорский","МБОУ «Лицей №12 г.Лениногорска» муниципального образования «Лениногорский муниципальный район» РТ","Саримов","Айнур","Ленарович",5,7,7,7,0,1,0,22,{"$nulls":3},"Гаязова Ольга Дмитриевна","МБОУ «Лицей №12 г.Лениногорска» муниципального образования «Лениногорский муниципальный район» РТ","16.07.2005","муж"]
[91,"Кировский","МБОУ \"Средняя общеобразовательная школа № 135 с углубленным изучением отдельных предметов\"","Тараканов","Владислав","Дмитриевич",5,0,7,7,7,1,0,22,{"$nulls":4},"МБОУ \"Средняя общеобразовательная школа № 135 с углубленным изучением отдельных предметов\"",null,"муж"]
[92,"Набережные Челны","МБОУ «Гимназия №26» г. Набережные Челны","Хамзин  ","Наиль","Зинфирович",5,7,7,7,0,1,0,22,{"$nulls":3},"Салихов  Марсель  Ялилович","МБОУ «Гимназия №26» г. Набережные Челны","14.01.2005","муж"]
[93,"Заинский","МБОУ «Заинская средняя общеобразовательная школа №7 с углубленным изучением отдельных предметов» Заинского муниципального района РТ","Цыганова","Елена","Дмитриевна",5,7,7,7,0,1,0,22,5.6,"без изменений\n№5 - согласно критериям: присутствует описание одной из картинок ррлррл; доказательство единственности отсутствует;\n№6 - указанная стратегия Алисы не приводит к успеху. Кролик может последним ходом сходить на 2 и сразу выиграть.\n",null,"Кошенкова Анна Георгиевна","МБОУ «Заинская средняя общеобразовательная школа №7 с углубленным изучением отдельных предметов» Заинского муниципального района РТ","27.11.2005","жен"]
[94,"Набережные Челны","МАОУ «Лицей №78 имени А.С.Пушкина» г. Набережные Челны","Астраханцева  ","Валерия","Даниловна",5,7,7,7,0,0,0,21,{"$nulls":3},"Егорова Наталья Васильевна","МАОУ «Лицей №78 имени А.С.Пушкина» г. Набережные Челны","30.08.2005","жен"]
[95,"Вахитовский","Федеральное Государственное Казенное ОбщеобразовательноеУчреждение \"Казанское суворовское военное училище Министерства обороны Российской Федерации\"","Багавиев","Булат","Альбертович",5,0,7,7,0,7,0,21,6,"без изменений\nутверждение, что при любых способах игры кроликом и Алисой количество их ходов будет равное неверно. Никакой тактики не предложено",null,"Иноземцева Ирина Юрьевна","Федеральное Государственное Казенное ОбщеобразовательноеУчреждение \"Казанское суворовское военное училище Министерства обороны Российской Федерации\"","12.10.2005","муж"]
[96,"Набережные Челны","МБОУ «Средняя общеобразовательная школа №11» г. Набережные Челны","Бычкова","Элина","Алексеевна",5,7,7,7,0,0,0,21,{"$nulls":3},"Якубюк Татьяна Фоминична","МБОУ «Средняя общеобразовательная школа №11» г. Набережные Челны","02.01.2005","жен"]
[97,"Набережные Челны","МБОУ «Средняя общеобразовательная школа №6» г. Набережные Челны","Галяветдинова","Полина","Ринатовна",5,7,7,7,0,0,0,{"$f":"SUM(H99:M99)","v":21},{"$nulls":3},"Рамазанова Алина Сергеевна","МБОУ «Средняя общеобразовательная школа №6» г. Набережные Челны","14.08.2005","жен"]
[98,"Бугульминский","МБОУ «Лицей №2» Бугульминского муниципального района РТ, \"Школа - центр компетенции в электронном образовании\"","Гараев "," Ильдар "," Ленарович",5,7,7,7,0,0,0,21,{"$nulls":3},"Кудряшова Наталья Владимировна","МБОУ «Лицей №2» Бугульминского муниципального района РТ, \"Школа - центр компетенции в электронном образовании\"","11.05.2005","муж"]
[99,"Мамадышский","МБОУ \"Средняя общеобразовательная школа №4 г. Мамадыш\" Мамадышского муниципального района РТ","Дехканов","Ленар","Улмасбаевич",5,3,7,7,0,4,0,21,1,"№1 +3 балла (итого 3). Не критериальный случай - словами пишет восемьдесят единиц, в расчетах использовано число 84. Проверка не полная, 84 умножено на 1 один раз, а не два. ",null,"Горбунова Эльза Эдуардовна","МБОУ \"Средняя общеобразовательная школа №4 г. Мамадыш\" Мамадышского муниципального района РТ","03.08.2005","муж"]
[100,"Вахитовский","МБОУ «Лицей №116» Вахитовского района г. Казани","Исхаков","Булат","Раисович",5,0,7,7,0,7,0,21,{"$nulls":3},"Гаптерахимова Танзиля Таснимовна","МБОУ «Лицей №116» Вахитовского района г. Казани","09.06.2005","муж"]
[101,"Набережные Челны","МБОУ «Средняя общеобразовательная школа №32 с углубленным изучением отдельных предметов» г. Набережные Челны","Королев","Алексей","Николаевич",5,7,7,7,0,0,0,21,{"$nulls":3},"Омарова Хадича Касимовна","МБОУ «Средняя общеобразовательная школа №32 с углубленным изучением отдельных предметов» г. Набережные Челны","07.01.2003","муж"]
[102,"Набережные Челны","МБОУ «Гимназия №26» г. Набережные Челны","Мальцев  ","Владислав ","Михайлович",5,7,0,7,0,7,0,21,{"$nulls":3},"Наумович  Ирина  Николаевна","МБОУ «Гимназия №26» г. Набережные Челны","13.02.2006","муж"]
[103,"Сабинский","МБОУ «Шеморданский лицей Сабинского муниципального района Республики Татарстан\"","Сабиров","Ильнур","Марсович",5,7,7,7,0,0,0,21,4.6,"без изменений \n№ 4 - неверный ответ; №6 - стратегия, как действовать Алисе, чтобы выиграть,  не описана",null,"Батыршина Лилия Назиповна","МБОУ «Шеморданский лицей Сабинского муниципального района Республики Татарстан\"","20.12.2004","муж"]
[104,"Зеленодольский","МБОУ \"Гимназия №3\" Зеленодольского муниципального района РТ ","Смагин","Севастьян","Романович",5,0,7,7,7,0,0,21,{"$nulls":3},"Майстренко Оксана Юрьевна","МБОУ \"Гимназия №3\" Зеленодольского муниципального района РТ ",null,"муж"]
[105,"Авиастроительный","МБОУ «Гимназия №36» Авиастроительного района г. Казани","Улбутов","Савелий","Дмитриевич",5,7,7,0,0,7,0,21,{"$nulls":3},"Дронова Галина Владимировна","МБОУ «Гимназия №36» Авиастроительного района г. Казани","30.09.2005","муж"]
[106,"Бавлинский","МБОУ «Средняя общеобразовательная школа №2 с углубленным изучением отдельных предметов» Бавлинского муниципального района ","Фаррахов","Роберт","Ильдарович",5,7,7,7,0,0,0,21,{"$nulls":3},"Подавалова Вера Васильевна","МБОУ «Средняя общеобразовательная школа №2 с углубленным изучением отдельных предметов» Бавлинского муниципального района ","07.08.2005","муж"]
[107,"Тукаевский","МБОУ «Бурдинская средняя общеобразовательная школа» Тукаевского муниципального района РТ","Чернов","Валентин","Валерианович",5,7,7,7,0,0,0,21,"4,5,6","без изменений\n№4 - в ходе решения перемножаются числа,  а не цифры;\n№5 - не верный ответ, нет идей построения правильного примера\n№6 - ответ победит Кролик, предложенная стратегия (повторять ходы) не работает.",null,"Утяшова Валентина Николаевна","МБОУ «Бурдинская средняя общеобразовательная школа» Тукаевского муниципального района РТ","07.07.2005","муж"]
[108,"Вахитовский","МАОУ СОШИ \"СОлНЦе\"","Габитов ","Булат","Радикович",5,0,7,7,0,6,0,20]
[109,"Набережные Челны","МАОУ «Лицей №78 имени А.С.Пушкина» г. Набережные Челны","Гизатуллин  ","Дамир","Викторович",5,7,5,7,0,1,0,20,{"$nulls":3},"Егорова Наталья Васильевна","МАОУ «Лицей №78 имени А.С.Пушкина» г. Набережные Челны","05.11.2004","муж"]
[110,"Аксубаевский","МБОУ «Староильдеряковская средняя общеобразовательная школа» Аксубаевского муниципального района РТ","Ефимова","Анастасия","Николаевна",5,6,7,0,7,0,0,20,{"$nulls":3},"Глухарева Людмила Васильевна","МБОУ «Староильдеряковская средняя общеобразовательная школа» Аксубаевского муниципального района РТ","02.03.2005","муж"]
[111,"Аксубаевский","МБОУ \"Сунчелеевская средняя общеобразовательная школа имени академика Н.Т.Саврукова\" Аксубаевского муниципального района РТ","Малов","Владимир","Алексеевич",5,5,7,7,0,1,0,20,5,"без изменений\nсогласно критериям: есть одна из картинок",null,"Воркунова Елена Степановна","МБОУ \"Сунчелеевская средняя общеобразовательная школа имени академика Н.Т.Саврукова\" Аксубаевского муниципального района РТ","12.04.2005","муж"]
[112,"Чистопольский","Муниципальное бюджетное общеобразовательное учреждение «Гимназия №1» Чистопольского муниципального района Республики Татарстан","Романов","Дмитрий","Владимирович",5,0,7,7,0,6,0,20,{"$nulls":3},"Муртазова Татьяна Александровна","Муниципальное бюджетное общеобразовательное учреждение «Гимназия №1» Чистопольского муниципального района Республики Татарстан","27.07.2005","муж"]
[113,"Бугульминский","МБОУ «Средняя общеобразовательная школа №6 с углубленным изучением отдельных предметов» Бугульминского муниципального района РТ","Асадуллина","Милана","Руслановна",5,0,7,7,0,5,0,19,4.6,"без изменений\n№ 4  - неверный ответ, школьник не учел, что число, написанное на доске, меняется;\n№6 - повторение ходов кролика не приведет Алису к успеху. Кролик может одним ходом преодолеть расстояние между ними и выиграть",null,"Никонорова Наталья Владимировна","МБОУ «Средняя общеобразовательная школа №6 с углубленным изучением отдельных предметов» Бугульминского муниципального района РТ","11.01.2005","жен"]
[114,"Приволжский","МАОУ \"Гимназия №19\" Приволжского района г. Казани","Гатауллин","Ранэль","Эдуардович",5,7,0,7,0,0,5,19]
[115,"Актанышский","МБОУ «Бугадинская основная общеобразовательная школа» Актанышского района РТ","Хусаенов","Азамат","Ильфарович",5,7,3,7,0,2,0,19,2.5,"№2 +3 балла (итого 3)- решение верное, не доведено до конца, нет никаких вычислений, только идея какие матчи проигрышные и ответ\n№5 без изменений - согласно критериям: - есть ответ 5, 15 лжецов и идея что соседи лжеца однотипны, а соседи рыцаря разные",null,"Фардиева Лайля Рифкатовна","МБОУ «Бугадинская основная общеобразовательная школа» Актанышского района РТ","25.03.2005","муж"]
[116,"Елабужский","МБОУ «Гимназия №1» Елабужского муниципального района Республики Татарстан","Садикова","Эльмира","Эдуардовна",5,7,7,0,0,4,0,18,{"$nulls":3},"Халикова Венера Рафкатовна","МБОУ «Гимназия №1» Елабужского муниципального района Республики Татарстан","30.08.2005","жен"]
[117,"Чистопольский","МБОУ \"Чувашско-Елтанская средняя общеобразовательная школа\"","Сафина","Гулия","Маратовна",5,0,7,7,0,4,0,18,{"$nulls":4},"МБОУ \"Чувашско-Елтанская средняя общеобразовательная школа\"",null,"жен"]
[118,"Приволжский","МБОУ \"СОШ №114\"","Халитова","Айгуль","Ренатовна",5,0,0,7,7,4,0,18]
[119,"Набережные Челны","МБОУ «Средняя общеобразовательная школа №18 с углубленным изучением отдельных предметов» г. Набережные Челны","Никонов","Никита","Русланович",5,7,3,7,0,0,0,17,{"$nulls":3},"Шарапова  Марьям Минрахмановна","ГБОУ «Кадетская школа им. Н.Кайманова» г. Набережные Челны","16.01.2005","муж"]
[120,"Набережные Челны","МАОУ «Лицей-интернат №84 имени Гали Акыша» г. Набережные Челны","Нуртдинова","Айгуль","Альбертовна",5,0,7,7,0,3,0,17,{"$nulls":3},"Сафиуллина Айгюль Рибеловна","МАОУ «Лицей-интернат №84 имени Гали Акыша» г. Набережные Челны","16.03.2006","муж"]
[121,"Приволжский","МБОУ «Татарско-русская средняя общеобразовательная школа №68 с углублённым изучением отдельных предметов» Приволжского района г. Казани","Рахматуллина","Ильяс","Ильназович",5,7,2,7,0,1,0,17,{"$nulls":3},"Фаттерова Минлегуль Фарсыевна","МБОУ «Татарско-русская средняя общеобразовательная школа №68 с углублённым изучением отдельных предметов» Приволжского района г. Казани","12.04.2005","муж"]
[122,"Набережные Челны","МБОУ «Гимназия №26» г. Набережные Челны","Хусаинова  ","Камиля ","Азатовна",5,6,3,7,0,1,0,17,{"$nulls":3},"Наумович  Ирина  Николаевна","МБОУ «Гимназия №26» г. Набережные Челны","02.02.2005","жен"]
[123,"Альметьевский","МАОУ «Средняя общеобразовательная школа №10 с углубленным изучением отдельных предметов» Альметьевского муниципального района РТ","Шайдуллин ","Даниль","Айратович",5,7,2,7,0,1,0,17,{"$nulls":3},"Швыденко Наталья Анатольевна","МАОУ «Средняя общеобразовательная школа №10 с углубленным изучением отдельных предметов» Альметьевского муниципального района РТ","13.04.2005","муж"]
[124,"Набережные Челны","МАОУ «Гимназия №57» г. Набережные Челны","Галлямов  ","Нафис","Инсафович",5,7,2,7,0,0,0,16,2,"№2 +2 балла (итого 2) - идея решения задачи правильная, допущена ошибка;",null,"Барашкова Елена Васильевна","МАОУ «Гимназия №57» г. Набережные Челны","29.11.2004","муж"]
[125,"Альметьевский","Муниципальное автономное общеобразовательное учреждение «Гимназия №5» г. Альметьевска РТ","Курбаткин","Егор","Евгеньевич",5,7,0,7,0,2,0,16,5.6,"без изменений\n№5 - согласно критериям - присутствует одна из картинок ррлррл… и лллл.. ; есть утверждение, что соседи лжеца однотипны, а соседи рыцаря разные;\n№6 - повторение ходов кролика не приведет Алису к успеху. Кролик может одним ходом преодолеть расстояние между ними и выиграть",null,"Храмова Анжела Александровна","Муниципальное автономное общеобразовательное учреждение «Гимназия №5» г. Альметьевска РТ","06.06.2005","муж"]
[126,"Альметьевский","НОУ «Средняя общеобразовательная школа №23 «Менеджер» Альметьевского муниципального района РТ","Хикматуллин","Камиль","Рустемович",5,7,2,7,0,0,0,16,{"$nulls":3},"Ильина Ирина Юрьевна","НОУ «Средняя общеобразовательная школа №23 «Менеджер» Альметьевского муниципального района РТ","11.11.2005","муж"]
[127,"Приволжский","МБОУ «Лицей №83» Приволжского района г. Казани","Шарифулин ","Максим","Фаритович",5,0,7,7,0,2,0,16,{"$nulls":3},"Ахмадиева Гульназ Наилевна","МБОУ «Лицей №83» Приволжского района г. Казани",null,"муж"]
[128,"Ново-Савиновский","МБОУ «Средняя общеобразовательная школа №170 с углублённым изучением отдельных предметов» Ново-Савиновского района г. Казани","Гимадиева","Алия","Сабитовна",5,7,0,0,7,1,0,15,{"$nulls":3},"Логинова Евгения Валентиновна","МБОУ «Средняя общеобразовательная школа №170 с углублённым изучением отдельных предметов» Ново-Савиновского района г. Казани","25.05.2005","жен"]
[129,"Ново-Савиновский","МБОУ «Гимназия №7» Ново-Савиновского района г.Казани. Школа-центр компетенции в электронном образовании","Дидора","Дана","Ярославовна",5,7,3,0,0,5,0,{"$f":"SUM(H131:M131)","v":15},{"$nulls":3},"Гайнанова Мадина Гайнанова","МБОУ «Гимназия №7» Ново-Савиновского района г.Казани. Школа-центр компетенции в электронном образовании","08.07.2005","жен"]
[130,"Вахитовский","МБОУ «Лицей №5» Вахитовского района г. Казани","Зарипов","Даниян","Айдарович",5,7,0,7,0,1,0,15,{"$nulls":3},"Вильданова Резеда Фаритовна","МБОУ «Лицей №5» Вахитовского района г. Казани","08.08.2005","муж"]
[131,"Набережные Челны","МАОУ «Лицей №78 имени А.С.Пушкина» г. Набережные Челны","Кривошеева ","Анастасия","Михайловна",5,7,0,7,0,1,0,15,{"$nulls":3},"Егорова Наталья Васильевна","МАОУ «Лицей №78 имени А.С.Пушкина» г. Набережные Челны","22.05.2005","жен"]
[132,"Нурлатский","МБОУ «Ново-Иглайкинская средняя общеобразовательная школа» Нурлатского муниципального района РТ","Хайруллинн","Муса","Мударисович",5,5,1,7,0,2,0,15,{"$nulls":3},"Юнусова Рамзизя Усмановна","МБОУ «Ново-Иглайкинская средняя общеобразовательная школа» Нурлатского муниципального района РТ","07.07.2005","муж"]
[133,"Набережные Челны","МБОУ «Гимназия №26» г. Набережные Челны","Авзалов","Артур ","Марсович",5,7,0,7,0,0,0,14]
[134,"Нурлатский","МАОУ «Cредняя общеобразовательная школа №2» г.Нурлат Республики Татарстан","Алиев ","Бураган ","Алиевич",5,7,0,7,0,0,0,14,{"$nulls":3},"Габбазова Светлана геннадиевна","МАОУ «Cредняя общеобразовательная школа №2» г.Нурлат Республики Татарстан","10.05.2005","муж"]
[135,"Набережные Челны","МАОУ «Гимназия №57» г. Набережные Челны","Анваров  ","Айнур","Ильмирович",5,7,0,7,0,0,0,14,{"$nulls":3},"Побигушко Валентина Сергеевна","МАОУ «Гимназия №57» г. Набережные Челны","30.01.2005","муж"]
[136,"Набережные Челны","МБОУ «Средняя общеобразовательная школа №22» г. Набережные Челны","Будкин ","Александр","Георгиевич",5,7,0,7,0,0,0,14,{"$nulls":3},"Филипова  Надежда Павловна","МБОУ «Средняя общеобразовательная школа №22» г. Набережные Челны","25.12.2004","муж"]
[137,"Нижнекамский","МБОУ «Лицей №35» г. Нижнекамска Республики Татарстан","Петров","Евгений","Иванович",5,7,0,7,0,0,0,14,{"$nulls":3},"Корягина Юлия Вячеславовна","МБОУ «Лицей №35» г. Нижнекамска Республики Татарстан","26.01.2005","муж"]
[138,"Апастовский","МБОУ «Черемшанская основная общеобразовательная школа имени И.Н.Насыбуллина» Апастовского муниципального района РТ","Сафаров\t","Фанис\t","Раисович",5,0,7,7,0,0,0,14,"1,2,5","№1 без изменений - пример не верный, школьник перепутал сложение и умножение;\n№2 +1 балл (итого 7) - описка не влияющая на ход рассуждений;\n№5 без изменений - согласно критериям: - только один из ответов 5, 15 лжецов без пояснений или с неверным пояснением либо лишние ответы в дополнение к этому набору; в данном случае даны ответы 5,6,...,12,13 "]
[139,"Нижнекамский","МБОУ «Гимназия-интернат № 34» Нижнекамского муниципального района Республики Татарстан","Сорокин","Евгений","Владимирович",5,0,7,7,0,0,0,14,{"$nulls":3},"Ризатдинова Ильсуяр Наиловна","МБОУ «Гимназия-интернат № 34» Нижнекамского муниципального района Республики Татарстан","01.01.2005","муж"]
[140,"Советский","МАОУ \"Лицей № 121\" Советского района г. Казани (Центр образования №178)","Талипов","Шамиль","Гаязович",5,7,0,7,0,0,0,14,{"$nulls":3},"Дементьева Мария Александровна","МАОУ \"Лицей № 121\" Советского района г. Казани (Центр образования №178)","01.01.2006","муж"]
[141,"Набережные Челны","МБОУ «Средняя общеобразовательная школа №19 с углубленным изучением отдельных предметов» г. Набережные Челны","Шакиров","Тимур","Ильфатович",5,7,0,7,0,0,0,14,{"$nulls":3},"Гарипова Алсу Загировна","МБОУ «Средняя общеобразовательная школа №19 с углубленным изучением отдельных предметов» г. Набережные Челны","11.11.2004","муж"]
[142,"Ютазинский","МБОУ \"Уруссинская гимназия\" Ютазинского муниципального района Республики Татарстан/Татарстан Республикасы Ютазы муниципаль районы муниципаль бюджет гомуми белем бирү учреждениясе “Урыссу гимназиясе”","Юнусов","Алмаз","Русланович",5,7,0,0,7,0,0,14,{"$nulls":3},"Рахматуллина Алсу Мукатдисовна","МБОУ \"Уруссинская гимназия\" Ютазинского муниципального района Республики Татарстан/Татарстан Республикасы Ютазы муниципаль районы муниципаль бюджет гомуми белем бирү учреждениясе “Урыссу гимназиясе”","14.02.2006","муж"]
[143,"Елабужский","МБОУ «Гимназия №4» Елабужского муниципального района Республики Татарстан","Марданов","Амир","Рамилевич",5,5,0,7,0,1,0,13,{"$nulls":3},"Мингазова Вагиза Мирсаитовна","МБОУ «Гимназия №4» Елабужского муниципального района Республики Татарстан","19.12.2004","муж"]
[144,"Альметьевский","МБОУ «Верхнемактаминская основная общеобразовательная школа» Альметьевского муниципального района РТ","Шарифуллин","Ильмир","Ильгизович",5,0,2,7,0,4,0,13,{"$nulls":3},"Рахимова  Рамиля Сагадатовна","МБОУ «Верхнемактаминская основная общеобразовательная школа» Альметьевского муниципального района РТ","09.03.2006","муж"]
[145,"г. Набережные Челны","МБОУ \"Гимназия №26\"","Мешалкина ","Полина","Борисовна",5,0,5,7,0,0,0,12,{"$nulls":4},"МБОУ \"Гимназия №26\"",null,"жен"]
[146,"Набережные Челны","МАОУ «Гимназия №61» г. Набережные Челны","Солодилов ","Никита","Владимирович",5,0,5,7,0,0,0,12,{"$nulls":3},"Белоусова  Марина  Васильевна","МАОУ «Гимназия №61» г. Набережные Челны","04.11.2004","муж"]
[147,"Лениногорский","МБОУ «Лицей №12 г.Лениногорска» муниципального образования «Лениногорский муниципальный район» РТ","Тахаутдинова","Самина","Ильшатовна",5,5,0,7,0,0,0,12,{"$nulls":3},"Сафина Юлия Николаевна","МБОУ «Лицей №12 г.Лениногорска» муниципального образования «Лениногорский муниципальный район» РТ","22.04.2005","жен"]
[148,"Набережные Челны","МБОУ «Средняя общеобразовательная школа №44 с углубленным изучением отдельных предметов» г. Набережные Челны","Юрченко","Глеб","Алексанрович",5,5,0,7,0,0,0,12,{"$nulls":3},"Бабкина Елена Сергеевна","МБОУ «Средняя общеобразовательная школа №44 с углубленным изучением отдельных предметов» г. Набережные Челны","24.03.2005","муж"]
[149,"Муслюмовский","МБОУ «Муслюмовский лицей» Муслюмовского муниципального района РТ","Бикмурзина","Аделина","Руслановна",5,0,0,7,0,4,0,11,{"$nulls":3},"Зиннатуллина Раушания Зуфаровна","МБОУ «Муслюмовский лицей» Муслюмовского муниципального района РТ","23.08.2005","жен"]
[150,"Мензелинский","МБОУ «Коноваловская основная общеобразовательная школа имени Горячева А.А.» Мензелинского муниципального района РТ","Килькеева ","Кристина\t","Евгеньевна",5,0,0,7,0,1,0,8,{"$nulls":3},"Ахметова Танзиля Гаязовна","МБОУ «Коноваловская основная общеобразовательная школа имени Горячева А.А.» Мензелинского муниципального района РТ","19.10.2005","жен"]
[151,"Нурлатский","Муниципальное автомное общеобразовательное учреждение «Средняя общеобразовательная школа №3\" г. Нурлат РеспубликиТатарстан","Морозова ","Екатерина ","Александровна",5,0,0,7,0,0,0,7,{"$nulls":3},"Чувалова Лилия Наилевна","Муниципальное автомное общеобразовательное учреждение «Средняя общеобразовательная школа №3\" г. Нурлат РеспубликиТатарстан","17.03.2005","жен"]
[152,"Набережные Челны","МБОУ «Средняя общеобразовательная школа №10» г. Набережные Челны","Фадеева","Дарья","Алексеевна",5,7,0,0,0,0,0,7,{"$nulls":3},"Цыбулько Лариса Михайловна","МБОУ «Средняя общеобразовательная школа №10» г. Набережные Челны","18.03.2005","жен"]
[153,"Буинский","МБОУ «Лицей-интернат (школа для одаренных детей) г. Буинска Республики Татарстан»","Хайруллин","Рустем","Марсович",5,0,0,7,0,0,0,7,{"$nulls":3},"Махмутова Халида Каюмовна","МБОУ «Лицей-интернат (школа для одаренных детей) г. Буинска Республики Татарстан»","09.02.2006","муж"]
[154,"Балтасинский","МБОУ «Карадуванская гимназия имени Баки Зиятдинова» Балтасинского муниципального района РТ","Абдуллин","Рустем","Ильдарович",5,0,5,0,0,1,0,6,{"$nulls":3},"Галимова Рауза Рафаэловна","МБОУ «Карадуванская гимназия имени Баки Зиятдинова» Балтасинского муниципального района РТ","13.10.2004","муж"]
[155,"Альметьевский","МАОУ \"Лицей №2\" г.Альметьевска","Набиуллин ","Камиль ","Маратович",5,0,0,0,0,4,0,4,{"$nulls":3},"Горбунова Нина Вячеславовна","МАОУ \"Лицей №2\" г.Альметьевска","03.02.2005","муж"]
[156,null,null,"Клыкова","Виктория","Романовна",5,0,0,0,0,0,0,0]

{"sheet":"4","index":3,"n_rows":148,"n_cols":22,"rows_kept":148,"merged":[[0,0,0,21]]}
["Протокол заключительного этапа республиканской олимпиады по математике в 2016-2017 учебном году"]
["№ п/п","Муниципалитет","Полное наименование образовательного учреждения (по уставу)","Фамилия","Имя","Отчество","Класс",1,2,3,4,5,6,"Сумма","апелляция по задачам","результат","Итог","Дата рождения","Пол","Статус","Фамилия педагога, подготовившего, участника олимпиады","Полное наименование образовательного учреждения (по уставу)"]
[1,"Авиастроительный","МБОУ \"Средняя общеобразовательная школа №54\" Авиастроительного района г. Казани","Султанов","Дамир","Рафилевич","4",7,7,6,7,5,7,{"$f":"SUM(H3:M3)","v":39},{"$nulls":3},"31.01.2006","муж","Победитель","Киямова Татьяна Николаевна","МБОУ \"Средняя общеобразовательная школа №54\" Авиастроительного района г. Казани"]
[2,"Ново-Савиновский","МБОУ «Средняя общеобразовательная школа № 9 с углубленным изучением английского языка» Ново-Савиновского района г.Казани","Демидов","Илья","Дмитриевич","4",7,1,7,7,7,7,36,2,"только ответ с проверкой - 1 балл согласно критериям",null,"16.02.2006","муж","Призер","Хрулькова Ирина Николаевна","МБОУ «Средняя общеобразовательная школа № 9 с углубленным изучением английского языка» Ново-Савиновского района г.Казани"]
[3,"Набережные Челны","МБОУ \"Пушкинский пролицей №78\"","Серединский","Егор","Олегович","4",7,7,7,7,"-",7,35,{"$nulls":3},"28.01.2006","муж","Призер","Борблик Любовь Михайловна","МАОУ «Лицей №78 имени А.С.Пушкина» г. Набережные Челны"]
[4,"Советский","МБОУ «Средняя общеобразовательная школа №72 с углубленным изучением немецкого языка» Советского района г. Казани","Абзалилов","Артур","Дамирович","3",7,7,7,7,7,0,35,{"$nulls":3},"01.04.2007","муж","Призер","Литвиненко Надежда Владимировна","МБОУ «Средняя общеобразовательная школа №72 с углубленным изучением немецкого языка» Советского района г. Казани"]
[5,"Набережные Челны","МБОУ «Гимназия №26» г. Набережные Челны","Рипенко","Макар","Андреевич","4",7,7,6,0,7,7,34,4,"неверная трактовка условия, использовал нецелые числа",null,"28.07.2006","муж","Призер","Матюшкина Роза Ханифовна","МБОУ «Гимназия №26» г. Набережные Челны"]
[6,"Набережные Челны","МАОУ «Гимназия №57» г. Набережные Челны","Ухова","Полина","Вадимовна","4",7,6,5,7,5,4,34,{"$nulls":3},"20.12.2005","жен","Призер","Мазина  Марина  Валентиновна","МАОУ «Гимназия №57» г. Набережные Челны"]
[7,"Набережные Челны","МБОУ СОШ №28 г. Набережные Челны","Маскин","Николай","Андреевич",4,5,7,3,7,5,6,33,3,"пояснено только то, что 15 - нечетное число, про перекладывания ничего не говорится",{"$nulls":3},"Призер"]
[10,"Набережные Челны","МАОУ «Гимназия №76» г. Набережные Челны","Лукоянов ","Алексей","Сергеевич","4",7,7,7,0,5,7,33,3.5,"№3 поднять с 6 до 7, №5 оценка соответствует критериям",null,"12.11.2005","муж","Призер","Костина Валентина Михайловна","МАОУ «Гимназия №76» г. Набережные Челны"]
[8,"Ново-Савиновский","МБОУ «Средняя общеобразовательная школа №89 с углубленным изучением отдельных предметов» Ново-Савиновского района г.Казани","Мазитов","Назиль","Ильдарович","4",5,7,3,7,5,5,32,3,"не поясняется о чем идет речь в рассуждении четное-четное=четное, оценка соответствует критериям",null,"13.06.2006","муж","Призер","Богданова Нина Николаевна","МБОУ «Средняя общеобразовательная школа №89 с углубленным изучением отдельных предметов» Ново-Савиновского района г.Казани"]
[9,"Ново-Савиновский","МБОУ «Гимназия №7» Ново-Савиновского района г.Казани","Кадырметова","Элина","Вильевна","4",7,7,7,7,3,1,32,{"$nulls":3},"03.02.2006","жен","Призер","Дедюк Инна Вячеславовна","МБОУ «Гимназия №7» Ново-Савиновского района г.Казани"]
[11,"Лениногорский","МБОУ «Лицей №12 г.Лениногорска» муниципального образования «Лениногорский муниципальный район» РТ","Фаттахов","Ринат","Ришатович","4",7,7,7,0,4,7,32,{"$nulls":3},"10.08.2006","муж","Призер","Сагидуллина Илуса Алмазовна","МБОУ «Лицей №12 г.Лениногорска» муниципального образования «Лениногорский муниципальный район» РТ"]
[12,"Набережные Челны","МБОУ «Гимназия №26» г. Набережные Челны","Валиев ","Равиль","Рафаэлевич","4",7,7,7,0,5,5,31,{"$nulls":3},"12.01.2006","муж","Призер","Ханова Рамиля Мударисовна","МБОУ «Гимназия №26» г. Набережные Челны"]
[13,"Лениногорский","МБОУ «Средняя общеобразовательная школа №7» МО \"Лениногорский муниципальный район\" РТ(Школа - центр компетенции в электронном образовании)","Бадертдинов","Амир","Ильшатович","4",7,7,7,0,7,3,31,{"$nulls":3},"29.08.2006","муж","Призер","Терегулова Светлана Мазитовна","МБОУ «Средняя общеобразовательная школа №7» МО \"Лениногорский муниципальный район\" РТ(Школа - центр компетенции в электронном образовании)"]
[14,"Бугульминский","МБОУ «Лицей №2» Бугульминского муниципального района РТ, \"Школа - центр компетенции в электронном образовании\"","Часовская","Софья","Владиславовна","4",7,7,6,7,3,1,31,{"$nulls":3},"10.04.2006","жен","Призер","Стратилатова Татьяна Владимировна","МБОУ «Лицей №2» Бугульминского муниципального района РТ, \"Школа - центр компетенции в электронном образовании\""]
[15,"Набережные Челны","МБОУ «Гимназия №26» г. Набережные Челны","Аетдинов","Ильяс","Эльдарович","4",2,7,3,7,7,4,30,{"$nulls":3},"22.12.2006","муж","Призер","Матюшкина  Роза  Ханифовна","МБОУ «Гимназия №26» г. Набережные Челны"]
[16,"Ново-Савиновский","МБОУ «Гимназия №7» Ново-Савиновского района г.Казани. Школа-центр компетенции в электронном образовании","Панфилова","Елизавета","Павловна","4",7,7,3,7,1,5,30,3.6,"№3 поднять с 2 до 3, соответственно критериям, не упоминается, что числа в сундуках и четные и перекладываем четное. №6 нет пояснений к действиям",null,"09.11.2006","жен","Призер","Дедюк Инна Вячеславовна","МБОУ «Гимназия №7» Ново-Савиновского района г.Казани. Школа-центр компетенции в электронном образовании"]
[17,"Набережные Челны","МАОУ «Лицей №78 имени А.С.Пушкина» г. Набережные Челны","Мустафин","Наиль","Арикович","4",7,7,7,0,6,2,29,{"$nulls":3},"05.03.2006","муж","Призер","Фархутдинова Альбина Рифкатовна","ГБОУ «Кадетская школа им. Н.Кайманова» г. Набережные Челны"]
[18,"Советский","МБОУ «Средняя общеобразовательная школа №175» Советского района г. Казани","Шарипова","Саида","Руслановна","4",7,7,7,0,1,7,29,{"$nulls":3},"06.06.2006","жен","Призер","Мусина Илюся Фаритовна","МБОУ «Средняя общеобразовательная школа №175» Советского района г. Казани"]
[21,"Бугульминский","МБОУ «Средняя общеобразовательная школа №6 с углубленным изучением отдельных предметов» Бугульминского муниципального района РТ","Золотухина","Мария","Сергеевна","4",7,7,2,7,3,3,29,"3,5,6","№3 поднять с 1 до 2, в конце тетради есть вычисления среднего значения, №5 не верен ответ и рассуждения по количеству детей, евших мороженое, №6 соответствует критериям",null,"06.07.2006","жен","Призер","Агеева Марина Ивановна","МБОУ «Средняя общеобразовательная школа №6 с углубленным изучением отдельных предметов» Бугульминского муниципального района РТ"]
[19,"Нижнекамский","МБОУ «Средняя общеобразовательная школа №10 с углубленным изучением отдельных предметов» Нижнекамского муниципального района Республики Татарстан","Ямалетдинов","Арслан","Маратович","4",5,7,5,7,3,1,28,"1,3,5,6","№1 оценка верна по критериям, №3 не указано, что начальные веса четные, №5 решение недостаточно обосновано, №6 только ответ и пример",null,"01.09.2006","муж","Призер","Шакурова Ильсияр Ильдусовна","МБОУ «Средняя общеобразовательная школа №10 с углубленным изучением отдельных предметов» Нижнекамского муниципального района Республики Татарстан"]
[20,"Вахитовский","МБОУ «Лицей №5» Вахитовского района г. Казани","Фазылова","Ирада","Рашитовна","4",7,7,3,7,3,1,28,{"$nulls":3},"28.04.2006","жен","Призер","Ингачева Елена Борисовна","МБОУ «Лицей №5» Вахитовского района г. Казани"]
[22,"Ново-Савиновский","МБОУ «Средняя общеобразовательная школа №170 с углублённым изучением отдельных предметов» Ново-Савиновского района г. Казани","Бариев","Альберт","Дамирович","4",7,7,5,0,7,0,26,3.4,"№3 оценка верна согласно критериям (не упоминается про четность начальных весов в сундуках), №4 7+8=15=5+10",null,"13.02.2006","муж","Призер","Мустаева Светлана Ивановна","МБОУ «Средняя общеобразовательная школа №170 с углублённым изучением отдельных предметов» Ново-Савиновского района г. Казани"]
[23,"Московский","МБОУ \"Гимназия №122 имени Ж.А Зайцевой\" Московского района г.Казани","Насретдинов","Амир","Алмазович","4",7,1,3,7,5,3,26,3,"№3 поднять с 2 до 3, соответственно критериям",null,"14.11.2006","муж","Призер","Самигуллина Гузялия Юнусовна","МБОУ \"Гимназия №122 имени Ж.А Зайцевой\" Московского района г.Казани"]
[40,"Набережные Челны","МБОУ «Гимназия №54» г. Набережные Челны","Минзафаров","Раниф","Асхатович","4",7,5,5,7,0,2,26,4,"поднять с 0 до 7, проверяющие пропустили решение",null,"02.02.2006","муж","Призер","Ильясова Флюра Халиловна","МБОУ «Гимназия №54» г. Набережные Челны"]
[24,"Нижнекамский","МБОУ «Гимназия №25» г. Нижнекамска Республики Татарстан","Фазлиев ","Раиль","Айратович","4",7,7,7,0,3,1,25,{"$nulls":3},"13.08.2006","муж","Призер","Серова Елена Николаевна","МБОУ «Гимназия №25» г. Нижнекамска Республики Татарстан"]
[25,"Ново-Савиновский","МАОУ «Средняя общеобразовательная школа №146 с углубленным изучением отдельных предметов» Ново-Савиновского района г. Казани","Пилясов","Владлен","Эдуардович","4",7,7,2,7,1,1,25,{"$nulls":3},"10.06.2006","муж","Призер","Парамонова Светлана Вячеславовна","МАОУ «Средняя общеобразовательная школа №146 с углубленным изучением отдельных предметов» Ново-Савиновского района г. Казани"]
[26,"Бугульминский","МБОУ «Средняя общеобразовательная школа №6 с углубленным изучением отдельных предметов» Бугульминского муниципального района РТ","Киреев","Никита","Андреевич",4,5,7,5,0,1,7,25,{"$nulls":3},"05.01.2006","муж","Призер","Агеева Марина Ивановна","МБОУ «Средняя общеобразовательная школа №6 с углубленным изучением отдельных предметов» Бугульминского муниципального района РТ"]
[27,"Зеленодольский","МБОУ \"Гимназия №3\" Зеленодольского муниципального района РТ ","Косолапов ","Егор","Игоревич","4",7,7,0,0,3,7,24,"3,4,5","№3 арифметическая ошибка, отсутствие каких-либо обоснований, №4 8+3=11=6+5, №5 ни слова про количество детей, евших мороженое",null,null,"муж","Призер","Мареева Маргарита Владимировна ","МБОУ \"Гимназия №3\" Зеленодольского муниципального района РТ "]
[28,"Набережные Челны","МБОУ «Гимназия №26» г. Набережные Челны","Давыдов ","Иван","Михайлович","4",7,3,2,0,5,7,24,{"$nulls":3},"22.11.2006","муж","Призер","Матюшкина Роза Ханифовна","МБОУ «Гимназия №26» г. Набережные Челны"]
[29,"Набережные Челны","МБОУ «Средняя общеобразовательная школа №32 с углубленным изучением отдельных предметов» г. Набережные Челны","Ревыкин","Никита","Сергеевич","4",7,1,5,7,3,1,24,{"$nulls":3},"28.01.2006","муж","Призер","Абрамова Наталья Витальевна","МБОУ «Средняя общеобразовательная школа №32 с углубленным изучением отдельных предметов» г. Набережные Челны"]
[30,"Сабинский","МБОУ \"Средняя общеобразовательная школа-интернат с углубленным изучением отдельных предметов для одаренных детей\" Сабинского муниципального района Республики Татарстан","Мавлетов","Саид","Рустамович","4",7,1,5,7,2,1,23,{"$nulls":3},"27.01.2006","муж","Призер","Кутдусова Сания Шаймиевна","МБОУ \"Средняя общеобразовательная школа-интернат с углубленным изучением отдельных предметов для одаренных детей\" Сабинского муниципального района Республики Татарстан"]
[39,"Тетюшский","МБОУ «Тетюшская средняя общеобразовательная школа №1 им.Ханжина П.С.» Тетюшского муниципального района РТ Школа - центр компетенции в электронном образовании)","Лузгов","Тимур","Сергеевич","4",7,7,5,0,"-",4,23,3.6,"№3 поднять с 3 до 5, №6 поднять с 3 до 4 ",null,"01.09.2006","муж","Призер","Аввакумова Людмила Анатольевна","МБОУ «Тетюшская средняя общеобразовательная школа №1 им.Ханжина П.С.» Тетюшского муниципального района РТ Школа - центр компетенции в электронном образовании)"]
[31,"Набережные Челны","МБОУ «Гимназия №26» г. Набережные Челны","Халитова","Альбина","Фаридовна","4",7,7,7,0,0,1,{"$f":"SUM(H35:M35)","v":22},{"$nulls":3},"31.08.2006","жен","Призер","Ханова Рамиля Мударисовна","МБОУ «Гимназия №26» г. Набережные Челны"]
[42,"Казань","Государственное бюджетное общеобразовательное учреждение \"Казанская школа № 172 для детей с ограниченными возможностями здоровья\"","Гумеров","Амир","Эдуардович","4",7,7,0,7,"-",1,22,"1,2,3,6","№1 поднять с 5 до 7, №2 поднять с 6 до 7, №3 только ответ в этой задаче оценивался в 0 баллов, решения нет, только попытка уравнять веса в сундуках, №6 ответ с примером оценивался в 1 балл по критериям, на рисунке частный пример",null,"23.01.2006","муж","призер","Хуртина Татьяна Юрьевна","Государственное бюджетное общеобразовательное учреждение \"Казанская школа № 172 для детей с ограниченными возможностями здоровья\""]
[32,"Приволжский","МБОУ «Средняя общеобразовательная русско-татарская школа №150» Приволжского района города Казани","Зарипов","Максим","Ленардович","4",7,7,5,0,1,1,21,{"$nulls":3},"06.07.2006","муж","Призер","Закирова Райля Раиловна","МБОУ «Средняя общеобразовательная русско-татарская школа №150» Приволжского района города Казани"]
[33,"Нижнекамский","МБОУ «Лицей №14» г. Нижнекамска Республики Татарстан","Исламгулов","Данат","Ильгамович","4","-",7,2,0,7,5,21,{"$nulls":3},"05.07.2007","муж","Призер","Очкина Ольга Алексеевна","МБОУ «Лицей №14» г. Нижнекамска Республики Татарстан"]
[34,"Набережные Челны","МБОУ «Средняя общеобразовательная школа №45 с углубленным изучением отдельных предметов» г. Набережные Челны","Трунов","Дмитрий","Сергеевич","4",7,7,7,"-","-","-",21,{"$nulls":3},"22.04.2006","муж","Призер","Яшкова Валентина Николаевна","МБОУ «Средняя общеобразовательная школа №45 с углубленным изучением отдельных предметов» г. Набережные Челны"]
[35,"Зеленодольский","МБОУ \"Гимназия №3\" Зеленодольского муниципального района РТ ","Хан ","Мария ","Сергеевна","4",7,7,7,0,0,0,21,{"$nulls":4},"жен","Призер","Алексеева Светлана Геннадьевна","МБОУ \"Гимназия №3\" Зеленодольского муниципального района РТ "]
[36,"Нижнекамский","МБОУ «Средняя общеобразовательная школа №6» Нижнекамского муниципального района Республики Татарстан","Махмутова","Яна","Рафаиловна","4",7,7,6,0,"-",1,21,{"$nulls":3},"17.03.2006","жен","Призер","Алиева Ольга Германовна","МБОУ «Средняя общеобразовательная школа №6» Нижнекамского муниципального района Республики Татарстан"]
[37,"Набережные Челны","МБОУ «Средняя общеобразовательная школа №7» г. Набережные Челны","Насибуллин","Наиль","Ниязович","4",7,7,7,"-","-",0,21,{"$nulls":3},"05.12.2006","муж","Призер","Назмиева Роза Мунировна","МБОУ «Средняя общеобразовательная школа №7» г. Набережные Челны"]
[38,"Набережные Челны","МАОУ «Лицей инновационных технологий №36» г. Набережные Челны","Стрепетов","Реналь","Ренатович","4",7,7,2,0,5,0,21,{"$nulls":3},"16.11.2005","муж","Призер","Николаева  Маргарита  Витальевна","МАОУ «Лицей инновационных технологий №36» г. Набережные Челны"]
[41,"Бугульминский","МБОУ «Средняя общеобразовательная школа №6 с углубленным изучением отдельных предметов» Бугульминского муниципального района РТ","Саниев","Айрат","Ильгизович","4",7,1,3,7,0,1,19,2.3,"№2 ответ 30 руб. не находится, а дается в готовом виде, далее идет лишь проверка, что ответ подходит, №3 ни слова про то, что перекладывается по 2 кг, то есть четное количество",null,"02.04.2006","муж","Призер","Сенина Марина Петровна","МБОУ «Средняя общеобразовательная школа №6 с углубленным изучением отдельных предметов» Бугульминского муниципального района РТ"]
[43,"Ново-Савиновский","МБОУ «Средняя общеобразовательная школа №170 с углублённым изучением отдельных предметов» Ново-Савиновского района г. Казани","Галеев","Данис","Равилевич","4",7,5,7,0,0,0,19,2,"по критериям это скорее 3 балла",null,"30.11.2006","муж","Призер","Рахматуллина Флюра Даниаловна","МБОУ «Средняя общеобразовательная школа №170 с углублённым изучением отдельных предметов» Ново-Савиновского района г. Казани"]
[44,"Альметьевский","МАОУ \"Лицей №2\" г.Альметьевска","Мухаметзянов","Амир","Анварович","4",7,1,2,7,2,0,19,{"$nulls":3},"06.07.2006","муж","Призер","Муртазина Зульфия Асгатовна","МАОУ \"Лицей №2\" г.Альметьевска"]
[45,"Лениногорский","МАОУ «Средняя общеобразовательная школа №5» МО \"Лениногорский муниципальный район\" РТ","Хаев","Булат","Ильдарович","4",7,1,7,0,0,4,19,{"$nulls":3},"11.06.2006","муж","Призер","Козыркина Вера Ивановна","МАОУ «Средняя общеобразовательная школа №5» МО \"Лениногорский муниципальный район\" РТ"]
[46,"Набережные Челны","МБОУ «Гимназия №26» г. Набережные Челны","Магизова","Яна","Альбертовна","4","-",3,7,0,7,1,18,{"$nulls":3},"19.06.2006","жен",null,"Новикова  Людмила  Анатольевна","МБОУ «Гимназия №26» г. Набережные Челны"]
[47,"Советский","МАОУ «Средняя общеобразовательная школа №141 с углубленным изучением отдельных предметов» Советского района г. Казани","Зазвонов","Альберт","Михайлович","4",7,7,3,0,"-",1,18,6,"оценка соответсвует критериям, ответ и частный пример",null,"09.01.2006","муж",null,"Корчагина  Ольга Николаевна","МАОУ «Средняя общеобразовательная школа №141 с углубленным изучением отдельных предметов» Советского района г. Казани"]
[48,"Елабужский","МБОУ «Средняя общеобразовательная школа №9 с углубленным изучением отдельных предметов» Елабужского муниципального района Республики Татарстан. Школа - центр компетенции в электронном образовании.","Молчанова","Валерия","Игоревна","4",7,1,0,0,7,3,18,{"$nulls":3},"04.04.2006","жен",null,"Максимова Сталина Валерьяновна","МБОУ «Средняя общеобразовательная школа №9 с углубленным изучением отдельных предметов» Елабужского муниципального района Республики Татарстан. Школа - центр компетенции в электронном образовании."]
[49,"Ново-Савиновский","МБОУ «Средняя общеобразовательная школа №38» Ново-Савиновского района г.Казани","Шакиров ","Эмиль","Ильхамович","4",7,1,2,7,"-","-",17,{"$nulls":3},"10.08.2006","муж",null,"Кубарева Светлана Владимировна","МБОУ «Средняя общеобразовательная школа №38» Ново-Савиновского района г.Казани"]
[50,"Верхнеуслонский","Государственное автономное образовательное учреждение «Школа Иннополис»","Газизов ","Данияр ","Дамирович","4",7,1,0,7,1,1,17,{"$nulls":3},"15.06.2006","муж",null,"Мельникова Ольга Владимировна","Государственное автономное образовательное учреждение «Школа Иннополис»"]
[51,"Советский","МБОУ «Гимназия №126» Советского района г. Казани","Гимранов","Аким","Альбертович","4",7,0,1,7,1,1,17,"3,5,6","оценки верны, согласно критериям",null,"06.02.2006","муж",null,"Тахаува Гелзидя Тагирзановна","МБОУ «Гимназия №126» Советского района г. Казани"]
[52,"Ново-Савиновский","МБОУ «Средняя общеобразовательная школа №170 с углублённым изучением отдельных предметов» Ново-Савиновского района г. Казани","Сергеев","Михаил","Артемович","4",7,7,3,0,0,0,17,{"$nulls":3},"07.08.2006","муж",null,"Мустаева Светлана Ивановна","МБОУ «Средняя общеобразовательная школа №170 с углублённым изучением отдельных предметов» Ново-Савиновского района г. Казани"]
[53,"Набережные Челны","МАОУ «Гимназия №61» г. Набережные Челны","Арзамасов","Александр","Вячеславович","4",7,1,2,7,"-",0,17,{"$nulls":3},"01.05.2006","муж",null,"\"Алехина  Дина Фаритовна\"","МАОУ «Гимназия №61» г. Набережные Челны"]
[54,"Ново-Савиновский","МБОУ «Гимназия №7» Ново-Савиновского района г.Казани. Школа-центр компетенции в электронном образовании","Жуков","Роман","Олегович","4",7,7,3,"-","-",0,17,3,"недостаточно обосновано почему нельзя получить нечетное, ничего не говорится про перекладывания",null,"04.08.2006","муж",null,"Минуллина Зульфия Ханафиевна","МБОУ «Гимназия №7» Ново-Савиновского района г.Казани. Школа-центр компетенции в электронном образовании"]
[55,"Альметьевский","МАОУ \"Лицей №2\" г.Альметьевска","Хусаенов","Карим","Маратович","4",6,1,2,7,1,0,17,{"$nulls":3},"18.05.2006","муж",null,"Пахомова Любовь Леонидовна","МАОУ \"Лицей №2\" г.Альметьевска"]
[71,"Кукморский","МБОУ «Сардекбашская средняя школа им.Г.Г.Гарифуллина\" Кукморского муниципального района РТ","Насибуллин","Рафаэль","Дамирович","4",5,7,5,0,0,0,17,1.3,"№1 оценка соответсвует критериям, №3 поднять с 3 до 5",null,"15.11.2006","муж",null,"Самигуллина Рахиля Вакифовна","МБОУ «Сардекбашская средняя школа им.Г.Г.Гарифуллина\" Кукморского муниципального района РТ"]
[56,"Вахитовский","МБОУ «Гимназия №96» Вахитовского района г. Казани","Мусташкин","Андрей","Борисович","4","-",1,7,7,0,1,16,2,"в решении написано не то, что в апелляции",null,"09.02.2006","муж",null,"Мустаева Любовь Юрьевна","МБОУ «Гимназия №96» Вахитовского района г. Казани"]
[57,"Бугульминский","МБОУ гимназия №7 Бугульминского муниципального района РТ","Байбуров","Альберт","Линарович","4",5,1,2,7,1,0,16,{"$nulls":3},"23.03.2006","муж",null,"Прохорова Татьяна Борисовна","МБОУ гимназия №7 Бугульминского муниципального района РТ"]
[58,"Елабужский","МБОУ «Гимназия №1» Елабужского муниципального района Республики Татарстан","Гумеров","Ильгиз","Ирекович","4",7,1,6,0,1,1,16,{"$nulls":3},"16.11.2006","муж",null,"Закирова Гульшат Нигматулловна","МБОУ «Гимназия №1» Елабужского муниципального района Республики Татарстан"]
[59,"Ново-Савиновский","МБОУ «Гимназия №7» Ново-Савиновского района г.Казани","Курин","Андрей","Арсеньевич","4",5,6,2,0,2,1,16,{"$nulls":3},"02.12.2005","муж",null,"Колобова Марина  Владимировна","МБОУ «Гимназия №7» Ново-Савиновского района г.Казани"]
[60,"Приволжский","МБОУ «Средняя общеобразовательная школа №42» Приволжского района г. Казани","Мамочкина","Виктория","Николаевна","4",7,1,7,1,"-","-",16,{"$nulls":3},"09.11.2006","жен",null,"Царькова Мария Сергеевна","МБОУ «Средняя общеобразовательная школа №42» Приволжского района г. Казани"]
[61,"Московский","МБОУ «Татарская гимназия №17 имени Г.Ибрагимова» Московского района г.Казани","Замалеева","Лилия","Рамилевна","4",7,"-",2,7,"-",0,16,{"$nulls":3},"26.06.2006","жен",null,"Хайруллина  Нурия Василовна","МБОУ «Татарская гимназия №17 имени Г.Ибрагимова» Московского района г.Казани"]
[62,"Московский","МБОУ \"Гимназия №122 имени Ж.А Зайцевой\" Московского района г.Казани","Тазюков","Максим","Маратович","4",5,7,2,"-","-",2,16,{"$nulls":3},"06.02.2006","муж",null,"Лимарева Ирина Михайловна","МБОУ \"Гимназия №122 имени Ж.А Зайцевой\" Московского района г.Казани"]
[63,"Набережные Челны","МАОУ «Лицей инновационных технологий №36» г. Набережные Челны","Ахмадиев","Асгат","Ильясович","4",7,1,7,0,0,1,16,{"$nulls":3},"14.07.2006","муж",null,"Николаева  Маргарита  Витальевна","МАОУ «Лицей инновационных технологий №36» г. Набережные Челны"]
[64,"Заинский","МБОУ «Средняя общеобразовательная школа №3» Заинского муниципального района РТ","Минькин","Виктор","Владимирович","4",7,1,0,7,0,1,{"$f":"SUM(H67:M67)","v":16},{"$nulls":3},"28.04.2006","муж",null,"Сотникова Наталия Константиновна","МБОУ «Средняя общеобразовательная школа №3» Заинского муниципального района РТ"]
[65,"Нижнекамский","МБОУ «Гимназия №22» Нижнекамского муниципального района Республики Татарстан","Хисматуллин","Арслан","Рифатович","4",5,7,1,"-",3,0,16,{"$nulls":3},"31.08.2006","муж",null,"Городилова Елена Викторовна","МБОУ «Гимназия №22» Нижнекамского муниципального района Республики Татарстан"]
[88,"Советский","МБОУ «Средняя общеобразовательная школа №171 с углубленным изучением отдельных предметов» Советского района г. Казани","Фархетдинова","Айгуль","Рустамовна","4",7,3,3,"-",3,0,16,2.3,"№2 поднять с 1 до 3 , №3 поднять с 0 до 3, проверяющие пропустили часть решения",null,"24.05.2006","жен",null,"Герфанова  Неля  Наилевна","МБОУ «Средняя общеобразовательная школа №171 с углубленным изучением отдельных предметов» Советского района г. Казани"]
[66,"Нижнекамский","МБОУ «Гимназия №22» Нижнекамского муниципального района Республики Татарстан","Гончаренко","Анастасия","Валерьевна","4",7,7,1,0,"-",0,15,{"$nulls":3},"15.07.2006","муж",null,"Городилова Елена Викторовна","МБОУ «Гимназия №22» Нижнекамского муниципального района Республики Татарстан"]
[67,"Бугульминский","Автономная некоммерческая организация дошкольного и начального общего образования «Прогимназия №14 «Журавушка» города Бугульмы","Исламов","Руслан","Ильдарович","4",5,1,2,7,"-",0,15,{"$nulls":3},"16.03.2006","муж",null,"Хасанова Ольга Викторовна","Автономная некоммерческая организация дошкольного и начального общего образования «Прогимназия №14 «Журавушка» города Бугульмы"]
[68,"Набережные Челны","МБОУ «Гимназия №26» г. Набережные Челны","Котлячков","Никита","Никитич","4",7,7,0,0,"-",1,15,{"$nulls":3},"16.06.2006","муж",null,"Матюшкина Роза Ханифовна","МБОУ «Гимназия №26» г. Набережные Челны"]
[69,"Набережные Челны","МАОУ «Средняя общеобразовательная школа №15» г. Набережные Челны","Кадыров","Марсель","Шамилевич","4",7,1,5,0,0,2,15,{"$nulls":3},"26.02.2006","муж",null,"Новикова Нина Полиектовна","МАОУ «Средняя общеобразовательная школа №15» г. Набережные Челны"]
[70,"Ново-Савиновский","МБОУ «Средняя общеобразовательная школа №38» Ново-Савиновского района г.Казани","Леднёва","Анастасия","Игоревна","4",7,1,6,0,0,1,15,{"$nulls":3},"24.12.2006","жен",null,"Филиппова Наталья Михайловна","МБОУ «Средняя общеобразовательная школа №38» Ново-Савиновского района г.Казани"]
[72,"Чистопольский","Муниципальное бюджетное общеобразовательное учреждение «Гимназия №3» Чистопольского муниципального района Республики Татарстан","Панин","Радион","Олегович","4","-",1,7,7,"-",0,15,{"$nulls":3},"07.07.2006","муж",null,"Смирнова Елена Александровна","Муниципальное бюджетное общеобразовательное учреждение «Гимназия №3» Чистопольского муниципального района Республики Татарстан"]
[73,"Ново-Савиновский","Муниципальное бюджетное общеобразовательное учреждение \"Лицей № 177\" Ново-Савиновского района г. Казани","Вазиев","Карим","Радикович","4",5,6,0,0,2,1,14,{"$nulls":3},"24.04.2006","муж",null,"Миннуллина  Татьяна Александровна","Муниципальное бюджетное общеобразовательное учреждение \"Лицей № 177\" Ново-Савиновского района г. Казани"]
[74,"Тукаевский","МБОУ «Стародрюшевская начальная общеобразовательная школа» Тукаевского муниципального района РТ","Фаррахова","Ралина","Инзировна","4",7,1,5,0,"-",1,14,{"$nulls":3},"25.04.2007","жен",null,"Габсаматова Фаузия Хайдаровна","МБОУ «Стародрюшевская начальная общеобразовательная школа» Тукаевского муниципального района РТ"]
[75,"Ново-Савиновский","МБОУ «Гимназия №26» г. Набережные Челны","Хусейнов","Тимур","Джуракулович","4",0,7,6,0,0,1,14,{"$nulls":3},"30.07.2006","муж",null,"Матюшкина  Роза  Ханифовна","МБОУ «Гимназия №26» г. Набережные Челны"]
[76,"Сабинский","МБОУ \"Средняя общеобразовательная школа-интернат с углубленным изучением отдельных предметов для одаренных детей\" Сабинского муниципального района Республики Татарстан","Гилязетдинов","Инсаф","Робертович","4",6,1,7,0,0,0,14,{"$nulls":3},"14.04.2006","муж",null,"Кутдусова Сания Шаймиевна","МБОУ \"Средняя общеобразовательная школа-интернат с углубленным изучением отдельных предметов для одаренных детей\" Сабинского муниципального района Республики Татарстан"]
[77,"Актанышский","МБОУ «Бугадинская основная общеобразовательная школа» Актанышского района РТ","Курбангалин","Рафил","Рифович","4",7,1,0,0,4,2,14,{"$nulls":3},"13.01.2006","муж",null,"Салихова Гузалия Гависовна","МБОУ «Бугадинская основная общеобразовательная школа» Актанышского района РТ"]
[78,"Зеленодольский","МБОУ \"Гимназия №3\" Зеленодольского муниципального района РТ ","Тарасов ","Матвей","Дмитриевич","4",5,7,0,"-","-",1,13,{"$nulls":4},"муж",null,"Алексеева Светлана Геннадьевна","МБОУ \"Гимназия №3\" Зеленодольского муниципального района РТ "]
[79,"Приволжский","МБОУ «Лицей №83» Приволжского района г. Казани","Абдрахманов","Азамат","Айдарович","4",5,"-",6,"-",0,2,13,{"$nulls":4},"муж",null,"Маркина Алла Александровна","МБОУ «Лицей №83» Приволжского района г. Казани"]
[80,"Московский","МБОУ «Гимназия №102 им. М.С.Устиновой» Московского района г. Казани","Шакиров","Рамиль","Айратович","4",5,1,5,0,1,1,13,{"$nulls":3},"10.08.2006","муж",null,"Кубарева Светлана Владимировна","МБОУ «Гимназия №102 им. М.С.Устиновой» Московского района г. Казани"]
[81,"Актанышский","Структурное подразделение Старозияшевская начальная общеобразовательная школа «Тлякеевской ООШ»","Галиев","Рустам","Расулович","4",7,"-",0,0,"-",6,13,{"$nulls":3},"04.03.2006","муж",null,"Гараева Флюса Сабитовна","Структурное подразделение Старозияшевская начальная общеобразовательная школа «Тлякеевской ООШ»"]
[82,"Бугульминский","МБОУ «Средняя общеобразовательная школа №1 с углубленным изучением отдельных предметов» Бугульминского муниципального района РТ","Худайкулов","Искандер","Алишерович","4",7,1,5,0,0,0,13,{"$nulls":3},"06.09.2006","муж",null,"Басынина Лариса Николаевна","МБОУ «Средняя общеобразовательная школа №1 с углубленным изучением отдельных предметов» Бугульминского муниципального района РТ"]
[83,"Советский","МАОУ \"Лицей № 121\" Советского района г. Казани (Центр образования №178)","Костаков","Александр","Сергеевич","4",7,3,2,0,"-",0,12,{"$nulls":3},"30.06.2006","муж",null,"Кулагина Юлия Валерьевна","МАОУ \"Лицей № 121\" Советского района г. Казани (Центр образования №178)"]
[84,"Казань","Муниципальное автономное общеобразовательное учреждение для детей дошкольного и младшего школьного возраста \"Прогимназия № 360\"","Демидова","Рената","Руслановна","4",7,1,2,0,2,0,12,{"$nulls":3},"15.07.2007","жен",null,"Нурмиева Рамзия Хатыбулловна","Муниципальное автономное общеобразовательное учреждение для детей дошкольного и младшего школьного возраста \"Прогимназия № 360\""]
[85,"Сабинский","МБОУ «Шеморданский лицей Сабинского муниципального района Республики Татарстан\"","Хусаинов","Айдар","Ниязович","4",7,0,3,0,2,0,12,{"$nulls":3},"08.11.2006","муж",null,"Шугаепова Миляуша Минделеевна","МБОУ «Шеморданский лицей Сабинского муниципального района Республики Татарстан\""]
[86,"Советский","МБОУ «Лицей №110» Советского района г. Казани","Гильманов","Айнур","Баграмович","4",5,1,3,0,"-",2,11,{"$nulls":3},"07.09.2006","муж",null,"Дранунова Лариса Андреевна","МБОУ «Лицей №110» Советского района г. Казани"]
[87,"Московский","МБОУ «Гимназия №12 с татарским языком обучения имени Ф. Г. Аитовой» Московского района г. Казани","Усманова","Алина","Руслановна","4",5,5,0,"-",0,1,11,{"$nulls":3},"19.08.2006","жен",null,"Байрашева Фарида Сагировна","МБОУ «Гимназия №12 с татарским языком обучения имени Ф. Г. Аитовой» Московского района г. Казани"]
[89,"Московский","МБОУ \"Гимназия №122 имени Ж.А Зайцевой\" Московского района г.Казани","Назырова","Алина","Алексеевна","4",7,1,2,0,0,1,11,{"$nulls":3},"27.04.2006","жен",null,"Шешинева Ирина Валерьевна","МБОУ \"Гимназия №122 имени Ж.А Зайцевой\" Московского района г.Казани"]
[90,"Нижнекамский","МБОУ \"Средняя общеобразовательная школа №7\", Нижнекамского муниципального района, Республики Татарстан","Рашитова","Диляра","Ильдаровна","4",7,1,3,0,"-",0,11,{"$nulls":3},"06.05.2006","жен",null,"Гайнутдинова Земфира Равиловна","МБОУ \"Средняя общеобразовательная школа №7\", Нижнекамского муниципального района, Республики Татарстан"]
[91,"Набережные Челны","МБОУ «Гимназия №26» г. Набережные Челны","Абдуллина","Азалия","Рафаэлевна","4",7,1,1,0,0,1,10,{"$nulls":3},"23.10.2005","жен",null,"Ханова Рамиля Мударисовна","МБОУ «Гимназия №26» г. Набережные Челны"]
[92,"Зеленодольский","МБОУ «Лицей №9 имени А. С. Пушкина Зеленодольского муниципального района Республики Татарстан\"","Кленько ","Даниил","Антонович","4",7,1,0,0,1,1,10,{"$nulls":4},"муж",null,"Галлямова Ольга Тимофеевна","МБОУ «Лицей №9 имени А. С. Пушкина Зеленодольского муниципального района Республики Татарстан\""]
[93,"Набережные Челны","МБОУ «Средняя общеобразовательная школа №53» г. Набережные Челны","Семенов","Егор","Сергеевич","4","-",7,0,0,3,"-",10,{"$nulls":3},"24.07.2006","муж",null,"Дудник Наталья Сайфулловна","МБОУ «Средняя общеобразовательная школа №53» г. Набережные Челны"]
[94,"Лениногорский","МБОУ «Лениногорская средняя общеобразовательная школа №6» Лениногорского муниципального района РТ","Фаттахов","Булат","Рамилевич","4",7,1,2,0,0,0,10,{"$nulls":3},"26.08.2006","муж",null,"Ваганова Надежда Алесандровна","МБОУ «Лениногорская средняя общеобразовательная школа №6» Лениногорского муниципального района РТ"]
[95,"Пестречинский","МБОУ «Ленино-Кокушкинская средняя общеобразовательная школа» Пестречинского муниципального района РТ","Блаченова","Анна","Владимировна","4",7,1,2,0,0,0,10,{"$nulls":3},"10.05.2006","жен",null,"Абдирахманова Миляуша Аруновна","МБОУ «Ленино-Кокушкинская средняя общеобразовательная школа» Пестречинского муниципального района РТ"]
[96,"Набережные Челны","МАОУ «Гимназия №77» г. Набережные Челны","Зиятдинов","Марат","Рустемович","4",7,1,2,0,0,0,10,{"$nulls":3},"10.11.2006","муж",null,"Тутынина  Елена Васильевна","МАОУ «Гимназия №77» г. Набережные Челны"]
[97,"Менделеевский","МБОУ \"Средняя общеобразовательная школа №1\" Менделеевского муниципального района РТ (Школа - центр компетенции в электронном образовании)","Климов","Ленар","Павлович","4",7,1,2,0,0,0,{"$f":"SUM(H99:M99)","v":10},{"$nulls":3},"06.01.2006","муж",null,"Сеина Альбина Аминовна","МБОУ \"Средняя общеобразовательная школа №1\" Менделеевского муниципального района РТ (Школа - центр компетенции в электронном образовании)"]
[98,"Ютазинский","МБОУ \"Уруссинская гимназия\" Ютазинского муниципального района Республики Татарстан/Татарстан Республикасы Ютазы муниципаль районы муниципаль бюджет гомуми белем бирү учреждениясе “Урыссу гимназиясе”","Ковалева","Виктория","Андреевна","4",0,1,2,7,0,0,10,{"$nulls":3},"25.05.2006","жен",null,"Хикматуллина Фирдалия Кариповна","МБОУ \"Уруссинская гимназия\" Ютазинского муниципального района Республики Татарстан/Татарстан Республикасы Ютазы муниципаль районы муниципаль бюджет гомуми белем бирү учреждениясе “Урыссу гимназиясе”"]
[99,"Набережные Челны","МАОУ «Средняя общеобразовательная школа №50 с углубленным изучением отдельных предметов» г. Набережные Челны","Мингазов ","Тимур","Бариевич","4",7,1,0,0,"-",2,10,{"$nulls":3},"14.12.2006","муж",null,"Гаязова  Фирдания Махмутовна","МАОУ «Средняя общеобразовательная школа №50 с углубленным изучением отдельных предметов» г. Набережные Челны"]
[100,"Нижнекамский","МБОУ «Камскополянская средняя общеобразовательная школа №2 с углубленным изучением отдельных предметов» Нижнекамского муниципального района РТ","Мустафин","Камиль","Рахимзянович","4",7,1,2,0,0,0,10,{"$nulls":3},"30.07.2006","муж",null,"Михалаш татьяна Витальевна","МБОУ «Камскополянская средняя общеобразовательная школа №2 с углубленным изучением отдельных предметов» Нижнекамского муниципального района РТ"]
[101,"Ново-Савиновский","МБОУ «Гимназия №7» Ново-Савиновского района г.Казани. Школа-центр компетенции в электронном образовании","Шамазов","Камиль","Фаридович","4",7,1,0,0,1,1,10,{"$nulls":3},"20.02.2006","муж",null,"Минуллина Зульфия Ханафиевна","МБОУ «Гимназия №7» Ново-Савиновского района г.Казани. Школа-центр компетенции в электронном образовании"]
[102,"Нижнекамский","МБОУ «Средняя общеобразовательная школа №31 с углубленным изучением предметов» г. Нижнекамска Республики Татарстан","Бердигулов","Дамир","Ханнанович","4",5,1,3,0,0,0,9,{"$nulls":3},"31.12.2005","муж",null,"Ахмедшина Гульзада Рафаиловна","МБОУ «Средняя общеобразовательная школа №31 с углубленным изучением предметов» г. Нижнекамска Республики Татарстан"]
[103,"Нижнекамский","МБОУ «Гимназия №22» Нижнекамского муниципального района Республики Татарстан","Латфуллина","Элина","Ильсуровна","4",7,0,2,0,"-",0,9,{"$nulls":3},"21.02.2006","муж",null,"Городилова Елена Викторовна","МБОУ «Гимназия №22» Нижнекамского муниципального района Республики Татарстан"]
[104,"Нижнекамский","МБОУ «Средняя общеобразовательная школа №3» г. Нижнекамска Республики Татарстан","Мясников","Максим","Игоревич","4",7,1,0,0,"-",1,9,{"$nulls":3},"06.10.2006","муж",null,"Леонова Наталья Анатольевна","МБОУ «Средняя общеобразовательная школа №3» г. Нижнекамска Республики Татарстан"]
[105,"Бугульминский","МБОУ «Средняя общеобразовательная школа №1 с углубленным изучением отдельных предметов» Бугульминского муниципального района РТ","Санкова","София","Вячеславовна","4",7,0,2,0,0,0,9,{"$nulls":3},"22.09.2006","жен",null,"Басынина Лариса Николаевна","МБОУ «Средняя общеобразовательная школа №1 с углубленным изучением отдельных предметов» Бугульминского муниципального района РТ"]
[106,"Буинский","МБОО «Лицей №2 г. Буинска Республики Татарстан» «Школа-центр компетенции в электронном образовании на 2011-2015 годы», Школа Intel в Республике Татарстан»","Сафина","Лиана","Эдуардовна","4",7,1,0,0,1,0,9,{"$nulls":3},"01.12.2005","жен",null,"Насейкина Людмила Валерьевна","МБОО «Лицей №2 г. Буинска Республики Татарстан» «Школа-центр компетенции в электронном образовании на 2011-2015 годы», Школа Intel в Республике Татарстан»"]
[107,"Нижнекамский","МБОУ «Гимназия №25» г. Нижнекамска Республики Татарстан","Шиманская","Дана","Олеговна","4",5,1,3,0,0,0,9,{"$nulls":3},"12.05.2006","жен",null,"Серова Елена Николаевна","МБОУ «Гимназия №25» г. Нижнекамска Республики Татарстан"]
[108,"Вахитовский","МБОУ «Открытая (сменная) общеобразовательная школа №12» Вахитовского района г. Казани","Исхаков","Карим","Эдуардович","4",7,1,1,0,0,0,9,{"$nulls":3},"29.04.2006","муж",null,"Шашкова Ольга Леонидовна","МБОУ «Открытая (сменная) общеобразовательная школа №12» Вахитовского района г. Казани"]
[109,"Черемшанский","МБОУ «Черемшанская средняя общеобразовательная школа №1 им. П. С. Курасанова» Черемшанского муниципального района РТ - Школа Превосходства (Приказ МОиН РТ №327/14 от 27.01.2014 г.)","Муксинов","Данияр","Альбертович","4",7,1,1,0,0,0,9,{"$nulls":3},"26.05.2006","муж",null,"Долгополова Любовь Ефимовна","МБОУ «Черемшанская средняя общеобразовательная школа №1 им. П. С. Курасанова» Черемшанского муниципального района РТ - Школа Превосходства (Приказ МОиН РТ №327/14 от 27.01.2014 г.)"]
[110,"Азнакаевский","МБОУ «Средняя общеобразовательная школа №1 пгт. Актюбинский» Азнакаевского муниципального района РТ","Мухмадеев","Данил","Максимович","4",7,1,0,0,0,1,9,{"$nulls":3},"11.08.2006","муж",null,"Дементьева Светлана Викторовна","МБОУ «Средняя общеобразовательная школа №1 пгт. Актюбинский» Азнакаевского муниципального района РТ"]
[111,"Нижнекамский","Муниципальное бюджетное общеобразовательное учреждение «Средняя общеобразовательная школа №16 с углубленным изучением отдельных предметов» г. Нижнекамска Республики Татарстан","Харисов","Данил","Маратович","4",7,1,0,0,0,1,9,"2,3,6","№2 только ответ с проверкой, №3 ответ в этой задаче оценивается в 0 баллов по критериям, №6 есть ответ и неверный пример",null,"15.09.2006","муж",null,"Мухаметзянова Рушания Кашаповна","Муниципальное бюджетное общеобразовательное учреждение «Средняя общеобразовательная школа №16 с углубленным изучением отдельных предметов» г. Нижнекамска Республики Татарстан"]
[112,"Вахитовский","МБОУ «Лицей №5» Вахитовского района г. Казани","Борзова","Алина","Александровна","4",7,0,2,0,0,0,9,{"$nulls":3},"03.05.2007","жен",null,"Ингачева Елена Борисовна","МБОУ «Лицей №5» Вахитовского района г. Казани"]
[113,"Московский","МБОУ «Гимназия №102 им. М.С.Устиновой» Московского района г. Казани","Михайлова","Мария","Владимировна","4",7,1,0,0,0,0,8,{"$nulls":3},"22.09.2006","жен",null,"Кубарева Светлана Владимировна","МБОУ «Гимназия №102 им. М.С.Устиновой» Московского района г. Казани"]
[114,"Балтасинский","МБОУ «Балтасинская гимназия» Балтасинского муниципального района РТ","Хамитова","Зиля","Камилевна","4",5,1,2,0,"-","-",8,{"$nulls":3},"07.04.2006","жен",null,"Газимова Резеда Рашитовна","МБОУ «Балтасинская гимназия» Балтасинского муниципального района РТ"]
[115,"Апастовский","МБОУ «Черемшанская основная общеобразовательная школа имени И.Н.Насыбуллина» Апастовского муниципального района РТ","Сафаров\t","Рафис\t","Раисович","4",7,1,0,0,0,0,8,{"$nulls":3},"14.03.2007","муж",null,"Сафина \tАмина","МБОУ «Черемшанская основная общеобразовательная школа имени И.Н.Насыбуллина» Апастовского муниципального района РТ"]
[116,"Балтасинский","МБОУ «Балтасинская гимназия» Балтасинского муниципального района РТ","Габделганиев","Расил","Фанисович","4",7,1,0,0,"-",0,8,{"$nulls":3},"15.01.2006","муж",null,"Газиева Резеда Рашитовна","МБОУ «Балтасинская гимназия» Балтасинского муниципального района РТ"]
[117,"Балтасинский","МБОУ «Арборская основная общеобразовательная школа» Балтасинского муниципального района РТ","Гарипов","Альфис","Фаритович","4",5,1,2,0,0,0,8,"1,4,5","№1 оценка верна по критериям, №4 5+1=6=2+4, №5 16 человек ели мороженое - ответ неверный",null,"08.10.2006","муж",null,"Губайдуллина Фарида Анварьязовна","МБОУ «Арборская основная общеобразовательная школа» Балтасинского муниципального района РТ"]
[118,"Московский","МБОУ \"Гимназия №122 имени Ж.А Зайцевой\" Московского района г.Казани","Грабалина","Ангелина","Евгеньевна","4",7,1,"-",0,"-","-",8,{"$nulls":3},"17.05.2006","жен",null,"Шешинева Ирина Валерьевна","МБОУ \"Гимназия №122 имени Ж.А Зайцевой\" Московского района г.Казани"]
[119,"Набережные Челны","Муниципальное автономное общеобразовательное учреждение города Набережные Челны «Средняя общеобразовательная школа №48»","Мингулова","Алия","Рифатовна","4",0,5,3,0,"-",0,8,{"$nulls":3},"09.11.2006","жен",null,"Николаева Марина Викторовна","Муниципальное автономное общеобразовательное учреждение города Набережные Челны «Средняя общеобразовательная школа №48»"]
[120,"Авиастроительный","МБОУ \"Средняя общеобразовательная школа №54\" Авиастроительного района г. Казани","Стюфеев","Александр","Евгеньевич","4",0,7,0,0,0,1,8,{"$nulls":3},"09.02.2006","муж",null,"Киямова Татьяна Николаевна","МБОУ \"Средняя общеобразовательная школа №54\" Авиастроительного района г. Казани"]
[121,"Черемшанский","МБОУ «Черемшанский лицей» Черемшанского муниципального района РТ (Школа - центр компетенции в электронном образовании)","Абдуллин","Марат","Ильясович","4",7,0,0,0,0,0,7,{"$nulls":3},"09.03.2006","муж",null,"Мухаметшина Гульфира Минахсяновна","МБОУ «Черемшанский лицей» Черемшанского муниципального района РТ (Школа - центр компетенции в электронном образовании)"]
[122,"Бугульминский","МБОУ \"Татарская гимназия №14 имени Хади Атласи Бугульминского муниципального района РТ\"","Бельман","Артур","Витальевич","4",5,1,"-",0,0,1,7,{"$nulls":3},"19.01.2006","муж",null,"Хамматова Фарида Шарифовна","МБОУ \"Татарская гимназия №14 имени Хади Атласи Бугульминского муниципального района РТ\""]
[123,"Высокогорский","МБОУ «Бирюлинская средняя общеобразовательная школа» Высокогорского муниципального района РТ","Каримов","Азат","Рустемович","4",0,0,0,7,0,0,7,{"$nulls":3},"23.08.2006","муж",null,"Титова Людмила Геннадьевна","МБОУ «Бирюлинская средняя общеобразовательная школа» Высокогорского муниципального района РТ"]
[124,"Высокогорский","МБОУ \"Высокогорская средняя общеобразовательная школа №3 Высокогорского муниципального района РТ\"","Колпакова","Валерия","Олеговна","4",5,1,0,0,0,1,7,{"$nulls":3},"23.03.2006","жен",null,"Абдуллина Эльмира Ильдусовна","МБОУ \"Высокогорская средняя общеобразовательная школа №3 Высокогорского муниципального района РТ\""]
[125,"Кукморский","Муниципальное бюджетное общеобразовательное учреждение «Кукморская средняя школа №3» Кукморского муниципального района Республики Татарстан","Галиахметов","Тахир","Альбертович","4",7,"-","-",0,0,"-",7,{"$nulls":3},"19.09.2006","муж",null,"Антипова Эльмира Викторовна","Муниципальное бюджетное общеобразовательное учреждение «Кукморская средняя школа №3» Кукморского муниципального района Республики Татарстан"]
[126,"Пестречинский","МБОУ \"Пестречинская средняя общеобразовательная школа №1 с углубленным изучением отдельных предметов\" (Школа - центр компетенции в электронном образовании)","Миннигулов","Ислам","Ильдусович","4",5,1,1,0,0,0,7,{"$nulls":3},"23.11.2005","муж",null,"Гурьянова Нина Павловна","МБОУ \"Пестречинская средняя общеобразовательная школа №1 с углубленным изучением отдельных предметов\" (Школа - центр компетенции в электронном образовании)"]
[127,"Вахитовский","МБОУ «Гимназия №96» Вахитовского района г. Казани","Тухватуллин","Илья","Айдарович","4","-",0,0,7,"-",0,7,{"$nulls":3},"21.02.2006","муж",null,"Шацилло Лада Игоревна","МБОУ «Гимназия №96» Вахитовского района г. Казани"]
[128,"Лаишевский","МБОУ «Основная общеобразовательная школа №3 г. Лаишево»","Шигапова","Айсылу","Ильясовна","4",0,1,5,"-","-",1,7,{"$nulls":3},"15.09.2006","жен",null,"Коробейникова Лариса Анатольевна","МБОУ «Основная общеобразовательная школа №3 г. Лаишево»"]
[129,"Набережные Челны","МБОУ «Гимназия №26» г. Набережные Челны","Ахметшин","Фёдор","Ирекович","4",5,1,0,0,0,0,{"$f":"SUM(H131:M131)","v":6},{"$nulls":3},"07.09.2005","муж",null,"Новикова  Людмила  Анатольевна","МБОУ «Гимназия №26» г. Набережные Челны"]
[130,"Приволжский","МБОУ «Лицей №83» Приволжского района г. Казани","Садиков","Тимур","Растиславович","4",0,0,6,0,"-",0,6,{"$nulls":4},"муж",null,"Ахмадиева Гульназ Наилевна","МБОУ «Лицей №83» Приволжского района г. Казани"]
[131,"Сабинский","МБОУ \"Большеарташская основная общеобразовательная школа Сабинского муниципального района Республики Татарстан\"","Ахметов","Искандер","Ринатович","4",5,1,0,0,0,0,6,{"$nulls":3},"06.02.2006","муж",null,"Мухаметзянова Ляля Базгетдиновна","МБОУ \"Большеарташская основная общеобразовательная школа Сабинского муниципального района Республики Татарстан\""]
[132,"Вахитовский","МБОУ «Гимназия №3 Вахитовского района г. Казани»","Прыгунов","Ярослав","Александрович","4",5,1,0,0,0,0,6,{"$nulls":3},"10.06.2006","муж",null,"Сабирзянова Эльтвира Мухаметбакиевна","МБОУ «Гимназия №3 Вахитовского района г. Казани»"]
[133,"Алексеевский","Муниципальное бюджетное общеобразовательное учреждение «Алексеевская средняя общеобразовательная школа №2 с углубленным изучением отдельных предметов» Алексеевского муниципального района Республики Татарстан","Шалкинский","Святослав","Олегович","4",5,0,0,0,0,0,5,{"$nulls":3},"18.07.2006","муж",null,"Калимуллина Зинаида Николаевна","Муниципальное бюджетное общеобразовательное учреждение «Алексеевская средняя общеобразовательная школа №2 с углубленным изучением отдельных предметов» Алексеевского муниципального района Республики Татарстан"]
[134,"Лениногорский","МБОУ «Средняя общеобразовательная школа №10 г.Лениногорска» МО \"Лениногорский муниципальный район\" РТ","Камзин","Дмитрий","Алексеевич","4",0,1,3,0,0,1,5,{"$nulls":3},"12.07.2006","муж",null,"Спиридонова Ирина Валентиновна","МБОУ «Средняя общеобразовательная школа №10 г.Лениногорска» МО \"Лениногорский муниципальный район\" РТ"]
[135,"Сабинский","МБОУ «Корсабашская основная общеобразовательная школа Сабинского муниципального района Республики Татарстан\"","Юсупов","Наиль","Зуфарович","4",0,1,2,0,2,0,5,{"$nulls":3},"29.10.2006","муж",null,"Фазулзянова Гульфира Исмагиловна","МБОУ «Корсабашская основная общеобразовательная школа Сабинского муниципального района Республики Татарстан\""]
[136,"Сармановский","МБОУ «Джалильская средняя общеобразовательная школа №2» Сармановского муниципального района РТ. (Школа - центр компетенции в электронном образовании).","Шигапов","Динар","Айдарович","4",5,0,0,0,0,0,5,{"$nulls":3},"16.01.2007","муж",null,"Даровских Ольга Васильевна","МБОУ «Джалильская средняя общеобразовательная школа №2» Сармановского муниципального района РТ. (Школа - центр компетенции в электронном образовании)."]
[137,"Арский","МБОУ «Арская СОШ №1 им.В.Ф.Ежкова с УИОП» Арского МР РТ,\"Школа-центр компетенции в электронном образовании\"","Молченко","Александр","Сергеевич","4","-",1,0,0,0,1,2,2.3,"оценки верны согласно критериям",null,null,"муж",null,"Хуснутдинова Лилия Ханифовна","МБОУ «Арская СОШ №1 им.В.Ф.Ежкова с УИОП» Арского МР РТ,\"Школа-центр компетенции в электронном образовании\""]
[138,"Альметьевский","МБОУ \"Старосуркинская средняя общеобразовательная школа\" Альметьевского муниципального района РТ","Усманова","Муниса","Султаналиевна","4",0,1,0,0,1,0,2,{"$nulls":3},"14.02.2006","жен",null,"Шаниязва Юлия Ахметовна","МБОУ \"Старосуркинская средняя общеобразовательная школа\" Альметьевского муниципального района РТ"]
[139,"Московский","МБОУ \"Гимназия №122 имени Ж.А Зайцевой\" Московского района г.Казани","Шарафутдинов","Амирхан","Маратович","4","-","-",0,0,1,1,2,{"$nulls":3},"16.02.2006","муж",null,"Самигуллина Гузялия Юнусовна","МБОУ \"Гимназия №122 имени Ж.А Зайцевой\" Московского района г.Казани"]
[140,"Приволжский","МБОУ «Лицей №83» Приволжского района г. Казани","Егоров ","Азат","Артурович","4",0,0,0,"-","-",1,1,{"$nulls":4},"муж",null,"Яруллина Юлия Александровна","МБОУ «Лицей №83» Приволжского района г. Казани"]
[141,"Кукморский","МБОУ «Многопрофильный лицей имени А.М. Булатова п.г.т. Кукмор» Кукморского муниципального района РТ","Назаров","Даниил","Геннадьевич","4","-",1,0,0,0,0,1,{"$nulls":3},"21.08.2006","муж",null,"Лукьянова Елизавета Павловна","МБОУ «Многопрофильный лицей имени А.М. Булатова п.г.т. Кукмор» Кукморского муниципального района РТ"]
[142,"Зеленодольский","ГБОУ «Васильевская кадетская школа - интернат имени Героя Советского Союза Николая Волостнова\"","Петров "," Всеволод","Владимирович","4",0,1,0,0,0,0,1,{"$nulls":4},"муж",null,"Бикмухаметова Ольга Александровна","ГБОУ «Васильевская кадетская школа - интернат имени Героя Советского Союза Николая Волостнова\""]
[143,"Высокогорский","МБОУ \"Высокогорская средняя общеобразовательная школа №3 Высокогорского муниципального района РТ\"","Юсубов","Мухаммад","Робилевич","4",0,0,0,0,"-",0,0,{"$nulls":3},"13.03.2007","муж",null,"Абдуллина Эльмира Ильдусовна","МБОУ \"Высокогорская средняя общеобразовательная школа №3 Высокогорского муниципального района РТ\""]
[144,"Зеленодольский","МБОУ «Гимназия №5 Зеленодольского муниципального района РТ\"","Зиганшина ","Алия","Ильсуровна","4",0,"-",0,0,"-","-",0,{"$nulls":4},"жен",null,"Галиуллина Фарида Равилевна ","МБОУ «Гимназия №5 Зеленодольского муниципального района РТ\""]
[145,"Алексеевский","Муниципальное бюджетное общеобразовательное учреждение Сахаровская средняя общеобразовательная школа Алексеевского муниципального района Республики Татарстан","Садреев","Айнур","Радикович","4",0,"-",0,0,0,0,0,{"$nulls":3},"16.06.2006","муж",null,"Капралова Светлана Геннадиевна","Муниципальное бюджетное общеобразовательное учреждение Сахаровская средняя общеобразовательная школа Алексеевского муниципального района Республики Татарстан"]
[146,"Кировский","МБОУ «Гимназия №50» Кировского района г. Казани","Сергеева","Рената","Рустемовна","4","-",0,0,"-",0,0,0,{"$nulls":3},"04.04.2006","жен",null,"Залялютдинова Ирина Николаевна","МБОУ «Гимназия №50» Кировского района г. Казани"]